{"text_format":"1","workbook":"xlsx","n_sheets":5,"sheets":["Req","Req (2)","Req (3)","Req (4)","Req (5)"],"not_rendered":{"charts":0,"images":0,"macros":1,"external_links":0,"defined_names":55,"comments":0,"pivot_tables":0},"unopened":[],"bounds":{"document_bytes":16777216,"sheet_cells":100000,"rows_first":2000,"rows_last":500,"rows_between":2000,"halvings":0,"cell_chars":16384,"cell_head_chars":4096},"cells_cut":0,"cells_raw":0,"read":"whole","date_system":"1900"}

{"sheet":"Req","index":0,"n_rows":358,"n_cols":30,"rows_kept":358,"cut":false,"hidden":false,"merged":[[50,4,52,5],[38,9,38,10],[39,9,39,10],[41,3,41,6],[41,9,44,10],[42,3,42,6],[44,3,46,6],[37,1,37,9],[26,3,26,8],[27,3,27,8],[28,3,28,8],[29,3,29,8],[30,3,30,8],[31,3,31,8],[32,3,32,8],[33,3,33,8],[34,3,34,8],[35,3,35,8],[36,3,36,8],[25,3,25,8],[17,8,17,10],[18,4,18,7],[18,8,18,10],[19,0,19,3],[19,4,19,7],[19,8,19,10],[20,3,20,8],[21,3,21,8],[22,3,22,8],[23,3,23,8],[24,3,24,8],[16,2,16,3],[16,4,16,5],[16,6,16,7],[17,0,17,1],[17,2,17,3],[17,4,17,5],[17,6,17,7],[11,1,11,4],[11,6,11,10],[12,1,12,4],[12,6,12,10],[13,6,13,7],[13,8,13,10],[5,0,5,6],[5,7,6,10],[6,0,6,6],[7,7,8,10],[10,1,10,4],[10,6,10,10],[0,0,0,10],[1,0,1,10],[1,12,3,13],[1,18,1,20],[2,0,2,6],[2,7,2,10],[3,0,3,6],[3,7,4,10],[4,0,4,6]]}
[]
["Requisition",null,null,null,null,null,null,null,null,null,null,null,null,null,null,null,"Building","Form Type","Sites",null,null,null,"Elementary Codes","Middle School Codes","High School Codes","Bus/Maintenance Codes","SPED Codes","PDC Codes","Food Service","All Codes"]
[null,null,null,null,null,null,null,"fv. 06122018"]
["BILL TO:  BOARD OF EDUCATION",null,null,null,null,null,null,{"$f":"IF(A2=\"PURCHASE ORDER\",\"PURCHASE ORDER\",\"\")","v":""},null,null,null,null,null,null,null,null,"WC_District","Requisition","West St. Francois County R-IV Bus/Maintenance","1124 Main Street","Leadwood, MO. 63653",null,"***  FUNCTION  1110  : ELEMENTARY  INSTRUCTION    ","***  FUNCTION  1130  : MIDDLE SCHOOL INSTRUCTION    ","***  FUNCTION  1150  : HIGH  SCHOOL INSTRUCTION    ",null,"***  FUNCTION  1221  : SPECIAL    PROGRAMS - EMH    ","***  FUNCTION  2214  : PROFESSIONAL  DEVELOPMENT    ","***  FUNCTION  2561  : FOOD SERVICES    ","***  FUNCTION  1110  : ELEMENTARY  INSTRUCTION    "]
["  WEST ST. FRANCOIS COUNTY R-IV SCHOOL DISTRICT",null,null,null,null,null,null,null,null,null,null,null,null,null,null,null,"WC_SPED","Purchase Order","West St. Francois County R-IV School District SPED","1124 Main Street","Leadwood, MO. 63653",null,"1 1110 6319 402 EL  PURCH/TECH  SERV","1 1130 6319 300 MS  PURCH/TECH  SERV","1 1150 6319 105 HS  PURCH/TECH SERVICE",null,"1 1221 6319 402  03 SE  PURCH/TECH SERV","2 2214 6121 800 PD  SUBST   TEACHER","1 2561 6151 105 FD  COOKS  SALARY","1 1110 6319 402 EL  PURCH/TECH  SERV"]
["                   1124 MAIN STREET, LEADWOOD, MO  63653-1214",null,null,null,null,null,null,null,null,null,null,null,null,null,null,null,"WCES",null,"West St. Francois County R-IV Food Service","624 Chariton Ave","Parkhills, MO.  63601",null,"1 1110 6343 402 EL  MILEAGE/EXPENSE","1 1130 6332 300 MS CONTR REPAIR","1 1150 6332 105 HS  CONTR REPAIR",null,"1 1221 6343 105  03 SE  MILEAGE/EXPENSE","2 2214 6131 800 PD  STIPENDS ","1 2561 6151 300 FD  COOKS  SALARY","1 1110 6343 402 EL  MILEAGE/EXPENSE"]
["                   (573)562-7535 fax (573)562-2710",null,null,null,null,null,null,null,null,null,null,null,null,null,null,null,"WCMS",null,"West St. Francois County R-IV Middle School","728 Hwy. M","Park Hills, MO.  63601",null,"1 1110 6410 402 EL   GEN  SUPPLIES","1 1130 6343 300 MS MILEAGE/EXPENSE","1 1150 6343 105 HS  MILEAGE/EXPENSE",null,"1 1221 6343 300  03 SE  MILEAGE/EXPENSE","2 2214 6211 800 PD  RETIREMENT  TEA","1 2561 6151 402 FD  COOKS  SALARY","1 1110 6410 402 EL   GEN  SUPPLIES"]
[" ",null,null,null,null,null,null,{"$f":"IF(A2=\"PURCHASE ORDER\",\"THIS NUMBER MUST APPEAR ON ALL PACKAGES, LABELS, CARTONS, PACKING SLIPS, BILLS OF LADING, INVOICES, AND ALL CORRESPONDANCE REFERRING TO THIS ORDER\",\"\")","v":""},null,null,null,null,null,null,null,null,"WCHS",null,"West St. Francois County R-IV High School","768 Highway M","Park Hills, MO.  63601",null,"1 1110 6410.1 402 EL  TECH  SUPPLIES","1 1130 6410 300 MS  GEN   SUPPLIES","1 1150 6410 105 HS   GEN  SUPPLIES",null,"1 1221 6343 402  03 SE  MILEAGE/EXPENSE","1 2214 6221 800 PD  NON-TEACHER  RET","1 2561 6151 800 FD  COOKS  SALARY","1 1110 6410.1 402 EL  TECH  SUPPLIES"]
[null,null,null,null,null,null,null,null,null,null,null,null,null,null,null,null,"WC_Bus_Maint",null,"West St. Francois County R-IV Bus/Maintenance","1124 Main Street","Leadwood, MO. 63653",null,null,"1 1130 6410.1 300 MS  TECH   SUPPLIES","1 1150 6410.1 105 HS  TECH  SUPPLIES",null,"1 1221 6343 800  03 SE  MILEAGE/EXPENSE","1 2214 6231 800 PD  SOC  SEC ","1 2561 6161 105 FD  PT   COOK SALARY/SUB","***  FUNCTION  1119  : READING  1ST GRANT    "]
["VENDOR NO.",null,null,null,null,"SHIP FREIGHT PREPAID TO:",null,null,null,null,null,null,null,null,null,null,"WC_FS",null,"West St. Francois County R-IV High School","768 Highway M","Park Hills, MO.  63601",null,null,"4 1130 6541 300 MS  GEN  EQUIPMENT","4 1150 6541 105 HS  GEN  EQUIPMENT",null,"1 1221 6410 105  03 SE   GEN SUPPLIES","2 2214 6231 800 PD  SOC  SEC ","1 2561 6161 300 FD  PT   COOK SALARY/SUB","***  FUNCTION  1130  : MIDDLE SCHOOL INSTRUCTION    "]
[null,null,null,null,null,null,{"$f":"IF(I20=\"\",\"\",VLOOKUP(I20,Q4:U12,3))","v":"West St. Francois County R-IV High School"},null,null,null,null,null,null,null,null,null,"WC_PDC",null,"West St. Francois County R-IV Middle School","728 Hwy. M","Park Hills, MO.  63601",null,null,"***  FUNCTION  1341  : HOME ECONOMICS    ","***  FUNCTION  1341  : HOME ECONOMICS    ",null,"1 1221 6410 300  03 SE   GEN SUPPLIES","1 2214 6232 800 PD  MEDICARE","1 2561 6161 402 FD  PT   COOK SALARY/SUB","1 1130 6319 300 MS  PURCH/TECH  SERV"]
[null,null,null,null,null,null,{"$f":"IF(G11=\"\",\"\",VLOOKUP(I20,Q4:U12,4))","v":"768 Highway M"},null,null,null,null,null,null,null,null,null,null,null,null,null,null,null,null,"1 1341 6410 300 HE  GEN  SUPPLIES","2 1341 6112 105 HE  TEACHER  SALARY",null,"1 1221 6410 402  03 SE   GEN SUPPLIES","2 2214 6232 800 PD  MEDICARE","1 2561 6171 300 FD  SICKLEAVE   PAY","1 1130 6332 300 MS CONTR REPAIR"]
[null,null,null,null,null,null,{"$f":"IF(G11=\"\",\"\",VLOOKUP(I20,Q4:U12,5))","v":"Park Hills, MO.  63601"},null,null,null,null,null,null,null,null,null,null,null,null,null,null,null,null,"***  FUNCTION  1351  : VOC INDUSTRIAL    TECH    ","2 1341 6211 105 HE  RETIREMENT   TEA",null,"1 1221 6410 800  03 SE   GEN SUPPLIES","2 2214 6312 800 PD  TUITION   REIMBURSMT","1 2561 6221 105 FD  NON  TEACHER  RET","1 1130 6343 300 MS MILEAGE/EXPENSE"]
[null,"Phone",null,"Fax",null,null,"Attention:",null,{"$f":"IF(E20=\"\",\"\",E20)","v":""},null,null,null,null,null,null,null,null,null,null,null,null,null,null,"1 1351 6410 300 IT GEN  SUPPLIES","2 1341 6232 105 HE  MEDICARE",null,null,"1 2214 6319 800 PD  PURC/TECH   SERV","1 2561 6221 300 FD  NON  TEACHER  RET","1 1130 6410 300 MS  GEN   SUPPLIES"]
[null,null,null,null,null,null,null,null,null,null,null,null,null,null,null,null,null,null,null,null,null,null,null,"***  FUNCTION  1411  : STUDENT  ACTIVITIES    ","2 1341 6241 105 HE  MEDICAL   INS",null,null,"1 2214 6343 800 PD  MILEAGE/EXPENSE ","1 2561 6221 402 FD  NON  TEACHER  RET","1 1130 6410.1 300 MS  TECH   SUPPLIES"]
["THIS IS A TAX EXEMPT PURCHASE.  DO NOT INCLUDE STATE SALES TAX OR FEDERAL EXCISE TAX",null,null,null,null,null,null,null,null,null,null,null,null,null,null,null,null,null,null,null,null,null,null,"1 1411 6411.002  SA  MIDDLE  SCHOOL EXP","1 1341 6343 105 HE MILEAGE/EXPENSE",null,null,"1 2214 6410 800 PD  GEN SUPPLIES ","1 2561 6221 800 FD  NON  TEACHER  RET","4 1130 6541 300 MS  GEN  EQUIPMENT"]
["ORDER DATE",null,"DATE WANTED",null,"SHIP VIA",null,"TERMS",null,"IN ACCORDANCE WITH BID OR CONTRACT DATED",null,null,null,null,null,null,null,null,null,null,null,null,null,null,"***  FUNCTION  2120  : GUIDANCE SERVICES    ","1 1341 6410 105 HE  GEN  SUPPLIES",null,null,null,"1 2561 6231 105 FD  SOC  SEC","***  FUNCTION  1150  : HIGH  SCHOOL INSTRUCTION    "]
[null,null,null,null,null,null,null,null,null,null,null,null,null,null,null,null,null,null,null,null,null,null,null,"1 2120 6410 300 GU  GEN   SUPPLIES","***  FUNCTION  1351  : VOC INDUSTRIAL    TECH    ",null,null,null,"1 2561 6231 300 FD  SOC  SEC","1 1150 6319 105 HS  PURCH/TECH SERVICE"]
["FUND APPROPRIATION EXPENDITURE ACCOUNT",null,null,null,"REQUISITIONED BY ",null,null,null,"BUILDING",null,null,null,null,null,null,null,null,null,null,null,null,null,null,"***  FUNCTION  2130  : NURSING SERVICES    ","1 1351 6343 105 IT MILEAGE/EXPENSE",null,null,null,"1 2561 6231 402 FD  SOC  SEC","1 1150 6332 105 HS  CONTR REPAIR"]
[null,null,null,null,null,null,null,null,"WCHS",null,null,null,null,null,null,null,null,null,null,null,null,null,null,"1 2130 6410 300 NU  GEN  SUPPLIES","1 1351 6410 105 IT GEN  SUPPLIES",null,null,null,"1 2561 6231 800 FD  SOC  SEC","1 1150 6343 105 HS  MILEAGE/EXPENSE"]
[null,"Quantity","Catalog Number","Description",null,null,null,null,null,"Unit Price","Amount",null,null,null,null,null,null,null,null,null,null,null,null,"***  FUNCTION  2220  : MEDIA SERVICES    ","***  FUNCTION  1341  : HOME ECONOMICS    ",null,null,null,"1 2561 6232 105 FD  MEDICARE","1 1150 6410 105 HS   GEN  SUPPLIES"]
[null,null,null,null,null,null,null,null,null,null,{"$f":"IF(B22=\"\",\"\",B22*J22)","v":""},null,null,null,null,null,null,null,null,null,null,null,null,"1 2220 6319.7 300 T6.B PURCH/TECH  SERV","1 1341 6343 105 HE MILEAGE/EXPENSE",null,null,null,"1 2561 6232 300 FD  MEDICARE","1 1150 6410.1 105 HS  TECH  SUPPLIES"]
[null,null,null,null,null,null,null,null,null,null,"",null,null,null,null,null,null,null,null,null,null,null,null,"1 2220 6410 300 LB   GEN  SUPPLIES","1 1341 6410 105 HE  GEN  SUPPLIES",null,null,null,"1 2561 6232 402 FD  MEDICARE","4 1150 6541 105 HS  GEN  EQUIPMENT"]
[null,null,null,null,null,null,null,null,null,null,"",null,null,null,null,null,null,null,null,null,null,null,null,"1 2220 6441 300 LB  LIBRARY   BOOKS","1 1341 6410 300 HE  GEN  SUPPLIES",null,null,null,"1 2561 6232 800 FD  MEDICARE","***  FUNCTION  1170  : ALTERNATIVE INSTRUCTION    "]
[null,null,null,null,null,null,null,null,null,null,"",null,null,null,null,null,null,null,null,null,null,null,null,"***  FUNCTION  2540  : OPER  OF  PLANT   - CUSTODIAL    ","***  FUNCTION  1411  : STUDENT  ACTIVITIES    ",null,null,null,"1 2561 6241 105 FD  MEDICAL  INS","1 1170 6319 105 AL  PURCH/TECH  SERV"]
[null,null,null,null,null,null,null,null,null,null,"",null,null,null,null,null,null,null,null,null,null,null,null,"1 2540 6410 300 GEN SUPPLIES","1 1411 6121 800 SA  ACTIVITY PAY/PT",null,null,null,"1 2561 6241 300 FD  MEDICAL  INS","1 1170 6410 105 AL  GEN  SUPPLIES"]
[null,null,null,null,null,null,null,null,null,null,"",null,null,null,null,null,null,null,null,null,null,null,null,"***  FUNCTION  2210  : FEDERAL   PROGRAMS    ","1 1411 6131 800 SA  ACTIVITY  PAY/TRS",null,null,null,"1 2561 6241 402 FD  MEDICAL  INS","***  FUNCTION  1191  : SUMMER SCHOOL    "]
[null,null,null,null,null,null,null,null,null,null,"",null,null,null,null,null,null,null,null,null,null,null,null,"1 2210 6319.8 300 21CENT/PURCH  SERVICE","1 1411 6161 800 SA  ACTIVITY  PAY/NT",null,null,null,"1 2561 6261 105 FD   WORKMANS COMP","1 1191 6410 800 SS GEN  SUPPLIES"]
[null,null,null,null,null,null,null,null,null,null,"",null,null,null,null,null,null,null,null,null,null,null,null,"1 2210 6410.8 300 21CENT/GEN SUPPLIES","1 1411 6411 39 SA  CROSS  COUNTRY EXP",null,null,null,"1 2561 6261 300 FD   WORKMANS COMP","***  FUNCTION  1192  : JUVENILE    PROGRAM    "]
[null,null,null,null,null,null,null,null,null,null,"",null,null,null,null,null,null,null,null,null,null,null,null,"***  FUNCTION  2214  : PROFESSIONAL  DEVELOPMENT    ","1 1411 6411.001  SA  ATHLETICS  EXP",null,null,null,"1 2561 6261 402 FD   WORKMANS COMP","1 1192 6319 105 JP PURCH/TECH  SERV"]
[null,null,null,null,null,null,null,null,null,null,"",null,null,null,null,null,null,null,null,null,null,null,null,"2 2214 6312 800 PD  TUITION   REIMBURSMT","1 1411 6411.002  SA  MIDDLE  SCHOOL EXP",null,null,null,"1 2561 6343 402 FD  MILEAGE/EXPENSE","1 1192 6410 105 JP GEN  SUPPLIES"]
[null,null,null,null,null,null,null,null,null,null,"",null,null,null,null,null,null,null,null,null,null,null,null,"1 2214 6319 800 PD  PURC/TECH   SERV","1 1411 6411.003  SA  BAND EXP",null,null,null,"1 2561 6343 800 FD  MILEAGE/EXPENSE","***  FUNCTION  1211  : SPECIAL    PROGRAMS - GIFTED    "]
[null,null,null,null,null,null,null,null,null,null,"",null,null,null,null,null,null,null,null,null,null,null,null,"1 2214 6343 800 PD  MILEAGE/EXPENSE ","1 1411 6411.005  SA  JUNIOR  EXP",null,null,null,"1 2561 6391 105 FD  OTHER PURCH SERV","***  FUNCTION  1221  : SPECIAL    PROGRAMS - EMH    "]
[null,null,null,null,null,null,null,null,null,null,"",null,null,null,null,null,null,null,null,null,null,null,null,"1 2214 6410 800 PD  GEN SUPPLIES ","1 1411 6411.006  SA  BASEBALL  EXP",null,null,null,"1 2561 6410 105 FD  GEN  SUPPLIES","1 1221 6319 402  03 SE  PURCH/TECH SERV"]
[null,null,null,null,null,null,null,null,null,null,"",null,null,null,null,null,null,null,null,null,null,null,null,null,"1 1411 6411.007  SA   ENVIRONMENTAL CLUB",null,null,null,"1 2561 6410 300 FD  GEN  SUPPLIES","1 1221 6343 105  03 SE  MILEAGE/EXPENSE"]
[null,null,null,null,null,null,null,null,null,null,"",null,null,null,null,null,null,null,null,null,null,null,null,null,"1 1411 6411.009  SA  SPIRIT    SQUAD EXP",null,null,null,"1 2561 6410 402 FD  GEN  SUPPLIES","1 1221 6343 300  03 SE  MILEAGE/EXPENSE"]
[null,null,null,null,null,null,null,null,null,null,"",null,null,null,null,null,null,null,null,null,null,null,null,null,"1 1411 6411.011  SA  FCCLA  EXP",null,null,null,"1 2561 6471 105 FD  FOOD  SUPPLIES","1 1221 6343 402  03 SE  MILEAGE/EXPENSE"]
[null,"SHIPPING",null,null,null,null,null,null,null,null,null,null,null,null,null,null,null,null,null,null,null,null,null,null,"1 1411 6411.012  SA  MATH/PHYSICS   EXP",null,null,null,"1 2561 6471 300 FD  FOOD  SUPPLIES","1 1221 6343 800  03 SE  MILEAGE/EXPENSE"]
["*** Bill to Board of Education, West St. Francois County R-IV, at above address",null,null,null,null,null,null,null,null,"Total Amount",null,null,null,null,null,null,null,null,null,null,null,null,null,null,"1 1411 6411.013  SA  BOYS  BASKETBALL",null,null,null,"1 2561 6471 402 FD  FOOD  SUPPLIES","1 1221 6410 105  03 SE   GEN SUPPLIES"]
[null,null,null,null,null,null,null,null,null,{"$f":"IF(K22=\"\",\"\",SUM(K22:K38))","v":""},null,null,null,null,null,null,null,null,null,null,null,null,null,null,"1 1411 6411.014  SA  LIBRARY  CLUB  EXP",null,null,null,"4 2561 6541 105 FD  GEN  EQUIPMENT","1 1221 6410 300  03 SE   GEN SUPPLIES"]
[null,null,null,null,null,null,null,null,null,null,null,null,null,null,null,null,null,null,null,null,null,null,null,null,"1 1411 6411.015  SA  MISC  EXP",null,null,null,"4 2561 6541 402 FD  GEN  EQUIPMENT","1 1221 6410 402  03 SE   GEN SUPPLIES"]
[null,null,null,null,null,null,null,null,null,{"$f":"IF($K$38=\"\",\"IF YOU SEE THIS YOU HAVE NOT ENTERED SHIPPING CHARGES\",\"\")","v":"IF YOU SEE THIS YOU HAVE NOT ENTERED SHIPPING CHARGES"},null,null,null,null,null,null,null,null,null,null,null,null,null,null,"1 1411 6411.016  SA  VOCAL MUSIC  EXP",null,null,null,"*** FUNC TION  3911  : SUMMER  FOOD   SERVICE  ","1 1221 6410 800  03 SE   GEN SUPPLIES"]
[null,null,null,{"$f":"IF(A2=\"PURCHASE ORDER\",\"Superintendent\",\"Building Principal\")","v":"Building Principal"},null,null,null,null,null,null,null,null,null,null,null,null,null,null,null,null,null,null,null,null,"1 1411 6411.017  SA  NHS  EXP",null,null,null,"1 3911 6161 105 SS COOK SALARY ","***  FUNCTION  1231  : SPECIAL    PROGRAMS - SPEECH    "]
[null,null,null,null,null,null,null,null,null,null,null,null,null,null,null,null,null,null,null,null,null,null,null,null,"1 1411 6411.018  SA  GIRLS   BASKETBALL",null,null,null,"1 3911 6161 402 SS COOK SALARY ","***  FUNCTION  1234  : HOMEBOUND   INSTRUCTION    "]
[null,null,null,null,null,null,null,null,null,null,null,null,null,null,null,null,null,null,null,null,null,null,null,null,"1 1411 6411.019  SA  FBLA  EXP",null,null,null,"1 3911 6221 105 SS NON  TEACHER  RET ","***  FUNCTION  1241  : EMOT/BEHAV DISTURBED    "]
[null,null,null,null,null,null,null,null,null,null,null,null,null,null,null,null,null,null,null,null,null,null,null,null,"1 1411 6411.02  SA  REFLECTOR EXP",null,null,null,"1 3911 6221 402 SS NON  TEACHER  RET ","***  FUNCTION  1251  : COMPENS  EDUC  - TITLE  1    "]
[null,null,null,null,null,null,null,null,null,null,null,null,null,null,null,null,null,null,null,null,null,null,null,null,"1 1411 6411.022  SA  STU  COUNCIL  EXP",null,null,null,"1 3911 6231 105 SS SOC  SEC ","1 1251 6319 402  50 T1 PURCH/TECH  SERVICE "]
[null,null,null,null,null,null,null,null,null,null,null,null,null,null,null,null,null,null,null,null,null,null,null,null,"1 1411 6411.023  SA  VOLLEYBALL EXP",null,null,null,"1 3911 6231 402 SS SOC  SEC ","***  FUNCTION  1261  : SPECIAL    PROGRAMS - LD    "]
[null,null,null,null,null,null,null,null,null,null,null,null,null,null,null,null,null,null,null,null,null,null,null,null,"1 1411 6411.025  SA  INSTRUC  ACTIV  EXP",null,null,null,"1 3911 6232 105 SS MEDICARE","***  FUNCTION  1281  : EARLY  CHILDHOOD/SPEC    EDUC    "]
[null,null,null,null,null,null,null,null,null,null,null,null,null,null,null,null,null,null,null,null,null,null,null,null,"1 1411 6411.026  SA  SPECIAL   ED  EXP",null,null,null,"1 3911 6232 402 SS MEDICARE","1 1281 6319 402 42 EC  PURCH/TECH  SERVICE "]
[null,null,null,null,null,null,null,null,null,null,null,null,null,null,null,null,null,null,null,null,null,null,null,null,"1 1411 6411.029  SA  WCTSA EXP"]
[null,null,null,null,null,null,null,null,null,null,null,null,null,null,null,null,null,null,null,null,null,null,null,null,"1 1411 6411.031  SA  DISTR   TOURNEY EXP"]
[null,null,null,null,null,null,null,null,null,null,null,null,null,null,null,null,null,null,null,null,null,null,null,null,"1 1411 6411.032  SA   COMMUNITY SERVICE"]
[null,null,null,null,null,null,null,null,null,null,null,null,null,null,null,null,null,null,null,null,null,null,null,null,"1 1411 6411.033  SA  FCA",null,null,null,"1 3911 6491 300 SS FOOD SUPPLIES ","1 1331 6410 105 BU  GEN SUPPLIES "]
[null,null,null,null,null,null,null,null,null,null,null,null,null,null,null,null,null,null,null,null,null,null,null,null,"1 1411 6411.035  SA  SOFTBALL",null,null,null,"1 3911 6491 402 SS FOOD SUPPLIES ","***  FUNCTION  1332  : VOCATIONAL BUSINESS    GRANT    "]
[null,null,null,null,null,null,null,null,null,null,null,null,null,null,null,null,null,null,null,null,null,null,null,null,"1 1411 6411.037  SA  SPEC  OLYMPICS",null,null,null,null,"***  FUNCTION  1341  : HOME ECONOMICS    "]
[null,null,null,null,null,null,null,null,null,null,null,null,null,null,null,null,null,null,null,null,null,null,null,null,"1 1411 6411.038  SA  GOLF EXP",null,null,null,null,"1 1341 6343 105 HE MILEAGE/EXPENSE"]
[null,null,null,null,null,null,null,null,null,null,null,null,null,null,null,null,null,null,null,null,null,null,null,null,"***  FUNCTION  2120  : GUIDANCE SERVICES    ",null,null,null,null,"1 1341 6410 105 HE  GEN  SUPPLIES"]
[null,null,null,null,null,null,null,null,null,null,null,null,null,null,null,null,null,null,null,null,null,null,null,null,"1 2120 6316 105 GU  TEST   SCORING",null,null,null,null,"1 1341 6410 300 HE  GEN  SUPPLIES"]
[null,null,null,null,null,null,null,null,null,null,null,null,null,null,null,null,null,null,null,null,null,null,null,null,"1 2120 6316.1 105 GU TEST  SCORING/ACT",null,null,null,null,"***  FUNCTION  1351  : VOC INDUSTRIAL    TECH    "]
[null,null,null,null,null,null,null,null,null,null,null,null,null,null,null,null,null,null,null,null,null,null,null,null,"1 2120 6410 105 GU  GEN   SUPPLIES",null,null,null,null,"1 1351 6343 105 IT MILEAGE/EXPENSE"]
[null,null,null,null,null,null,null,null,null,null,null,null,null,null,null,null,null,null,null,null,null,null,null,null,"***  FUNCTION  2130  : NURSING SERVICES    ",null,null,null,null,"1 1351 6410 105 IT GEN  SUPPLIES"]
[null,null,null,null,null,null,null,null,null,null,null,null,null,null,null,null,null,null,null,null,null,null,null,null,"1 2130 6410 105 NU  GEN  SUPPLIES",null,null,null,null,"1 1351 6410 300 IT GEN  SUPPLIES"]
[null,null,null,null,null,null,null,null,null,null,null,null,null,null,null,null,null,null,null,null,null,null,null,null,"***  FUNCTION  2220  : MEDIA SERVICES    ",null,null,null,null,"***  FUNCTION  1361  : VOC-TECH    ENHANCEMENT GRNT    "]
[null,null,null,null,null,null,null,null,null,null,null,null,null,null,null,null,null,null,null,null,null,null,null,null,"1 2220 6319.7 105 T6.B PURCH/TECH  SERV",null,null,null,null,"1 1361 6343 105 VE MILEAGE/EXPENSE"]
[null,null,null,null,null,null,null,null,null,null,null,null,null,null,null,null,null,null,null,null,null,null,null,null,"1 2220 6410 105 LB   GEN  SUPPLIES",null,null,null,null,"1 1361 6410 105 VE GEN SUPPLIES"]
[null,null,null,null,null,null,null,null,null,null,null,null,null,null,null,null,null,null,null,null,null,null,null,null,"1 2220 6441 105 LB  LIBRARY   BOOKS",null,null,null,null,"***  FUNCTION  1391  : OTHER CAREER  EDUCATION    "]
[null,null,null,null,null,null,null,null,null,null,null,null,null,null,null,null,null,null,null,null,null,null,null,null,"***  FUNCTION  2540  : OPER  OF  PLANT   - CUSTODIAL    ",null,null,null,null,"1 1391 6319 105 JG  PURCH/TECH SERVICE"]
[null,null,null,null,null,null,null,null,null,null,null,null,null,null,null,null,null,null,null,null,null,null,null,null,"1 2540 6319 105 OM   PURC/TECH  SERV",null,null,null,null,"1 1391 6343 105 JG  MILEAGE/EXPENSE"]
[null,null,null,null,null,null,null,null,null,null,null,null,null,null,null,null,null,null,null,null,null,null,null,null,"1 2540 6335 105 OM   WATER/SEWER",null,null,null,null,"1 1391 6410 105 JG   GEN  SUPPLIES"]
[null,null,null,null,null,null,null,null,null,null,null,null,null,null,null,null,null,null,null,null,null,null,null,null,"1 2540 6336 105 OM  TRASH    REMOVAL",null,null,null,null,"***  FUNCTION  1411  : STUDENT  ACTIVITIES    "]
[null,null,null,null,null,null,null,null,null,null,null,null,null,null,null,null,null,null,null,null,null,null,null,null,"1 2540 6339 105 OM   OTH/PEST    CONTROL",null,null,null,null,"1 1411 6121 800 SA  ACTIVITY PAY/PT"]
[null,null,null,null,null,null,null,null,null,null,null,null,null,null,null,null,null,null,null,null,null,null,null,null,"1 2540 6351 105 OM   PROPERTY INSURANCE",null,null,null,null,"1 1411 6131 800 SA  ACTIVITY  PAY/TRS"]
[null,null,null,null,null,null,null,null,null,null,null,null,null,null,null,null,null,null,null,null,null,null,null,null,null,null,null,null,null,"1 1411 6161 800 SA  ACTIVITY  PAY/NT"]
[null,null,null,null,null,null,null,null,null,null,null,null,null,null,null,null,null,null,null,null,null,null,null,null,null,null,null,null,null,"1 1411 6211 800 SA  RETIREMENT  TEA"]
[null,null,null,null,null,null,null,null,null,null,null,null,null,null,null,null,null,null,null,null,null,null,null,null,null,null,null,null,null,"1 1411 6221 800 SA  NON-TEACHER  RET"]
[null,null,null,null,null,null,null,null,null,null,null,null,null,null,null,null,null,null,null,null,null,null,null,null,null,null,null,null,null,"1 1411 6231 800 SA  SOC  SEC"]
[null,null,null,null,null,null,null,null,null,null,null,null,null,null,null,null,null,null,null,null,null,null,null,null,null,null,null,null,null,"1 1411 6232 800 SA  MEDICARE"]
[null,null,null,null,null,null,null,null,null,null,null,null,null,null,null,null,null,null,null,null,null,null,null,null,null,null,null,null,null,"1 1411 6411 39 SA  CROSS  COUNTRY EXP"]
[null,null,null,null,null,null,null,null,null,null,null,null,null,null,null,null,null,null,null,null,null,null,null,null,null,null,null,null,null,"1 1411 6411.001  SA  ATHLETICS  EXP"]
[null,null,null,null,null,null,null,null,null,null,null,null,null,null,null,null,null,null,null,null,null,null,null,null,null,null,null,null,null,"1 1411 6411.002  SA  MIDDLE  SCHOOL EXP"]
[null,null,null,null,null,null,null,null,null,null,null,null,null,null,null,null,null,null,null,null,null,null,null,null,null,null,null,null,null,"1 1411 6411.003  SA  BAND EXP"]
[null,null,null,null,null,null,null,null,null,null,null,null,null,null,null,null,null,null,null,null,null,null,null,null,null,null,null,null,null,"1 1411 6411.005  SA  JUNIOR  EXP"]
[null,null,null,null,null,null,null,null,null,null,null,null,null,null,null,null,null,null,null,null,null,null,null,null,null,null,null,null,null,"1 1411 6411.006  SA  BASEBALL  EXP"]
[null,null,null,null,null,null,null,null,null,null,null,null,null,null,null,null,null,null,null,null,null,null,null,null,null,null,null,null,null,"1 1411 6411.007  SA   ENVIRONMENTAL CLUB"]
[null,null,null,null,null,null,null,null,null,null,null,null,null,null,null,null,null,null,null,null,null,null,null,null,null,null,null,null,null,"1 1411 6411.009  SA  SPIRIT    SQUAD EXP"]
[null,null,null,null,null,null,null,null,null,null,null,null,null,null,null,null,null,null,null,null,null,null,null,null,null,null,null,null,null,"1 1411 6411.01  SA  ELEM GEN EXP"]
[null,null,null,null,null,null,null,null,null,null,null,null,null,null,null,null,null,null,null,null,null,null,null,null,null,null,null,null,null,"1 1411 6411.011  SA  FCCLA  EXP"]
[null,null,null,null,null,null,null,null,null,null,null,null,null,null,null,null,null,null,null,null,null,null,null,null,null,null,null,null,null,"1 1411 6411.012  SA  MATH/PHYSICS   EXP"]
[null,null,null,null,null,null,null,null,null,null,null,null,null,null,null,null,null,null,null,null,null,null,null,null,null,null,null,null,null,"1 1411 6411.013  SA  BOYS  BASKETBALL"]
[null,null,null,null,null,null,null,null,null,null,null,null,null,null,null,null,null,null,null,null,null,null,null,null,null,null,null,null,null,"1 1411 6411.014  SA  LIBRARY  CLUB  EXP"]
[null,null,null,null,null,null,null,null,null,null,null,null,null,null,null,null,null,null,null,null,null,null,null,null,null,null,null,null,null,"1 1411 6411.015  SA  MISC  EXP"]
[null,null,null,null,null,null,null,null,null,null,null,null,null,null,null,null,null,null,null,null,null,null,null,null,null,null,null,null,null,"1 1411 6411.016  SA  VOCAL MUSIC  EXP"]
[null,null,null,null,null,null,null,null,null,null,null,null,null,null,null,null,null,null,null,null,null,null,null,null,null,null,null,null,null,"1 1411 6411.017  SA  NHS  EXP"]
[null,null,null,null,null,null,null,null,null,null,null,null,null,null,null,null,null,null,null,null,null,null,null,null,null,null,null,null,null,"1 1411 6411.018  SA  GIRLS   BASKETBALL"]
[null,null,null,null,null,null,null,null,null,null,null,null,null,null,null,null,null,null,null,null,null,null,null,null,null,null,null,null,null,"1 1411 6411.019  SA  FBLA  EXP"]
[null,null,null,null,null,null,null,null,null,null,null,null,null,null,null,null,null,null,null,null,null,null,null,null,null,null,null,null,null,"1 1411 6411.02  SA  REFLECTOR EXP"]
[null,null,null,null,null,null,null,null,null,null,null,null,null,null,null,null,null,null,null,null,null,null,null,null,null,null,null,null,null,"1 1411 6411.022  SA  STU  COUNCIL  EXP"]
[null,null,null,null,null,null,null,null,null,null,null,null,null,null,null,null,null,null,null,null,null,null,null,null,null,null,null,null,null,"1 1411 6411.023  SA  VOLLEYBALL EXP"]
[null,null,null,null,null,null,null,null,null,null,null,null,null,null,null,null,null,null,null,null,null,null,null,null,null,null,null,null,null,"1 1411 6411.025  SA  INSTRUC  ACTIV  EXP"]
[null,null,null,null,null,null,null,null,null,null,null,null,null,null,null,null,null,null,null,null,null,null,null,null,null,null,null,null,null,"1 1411 6411.026  SA  SPECIAL   ED  EXP"]
[null,null,null,null,null,null,null,null,null,null,null,null,null,null,null,null,null,null,null,null,null,null,null,null,null,null,null,null,null,"1 1411 6411.029  SA  WCTSA EXP"]
[null,null,null,null,null,null,null,null,null,null,null,null,null,null,null,null,null,null,null,null,null,null,null,null,null,null,null,null,null,"1 1411 6411.031  SA  DISTR   TOURNEY EXP"]
[null,null,null,null,null,null,null,null,null,null,null,null,null,null,null,null,null,null,null,null,null,null,null,null,null,null,null,null,null,"1 1411 6411.032  SA   COMMUNITY SERVICE"]
[null,null,null,null,null,null,null,null,null,null,null,null,null,null,null,null,null,null,null,null,null,null,null,null,null,null,null,null,null,"1 1411 6411.033  SA  FCA"]
[null,null,null,null,null,null,null,null,null,null,null,null,null,null,null,null,null,null,null,null,null,null,null,null,null,null,null,null,null,"1 1411 6411.035  SA  SOFTBALL"]
[null,null,null,null,null,null,null,null,null,null,null,null,null,null,null,null,null,null,null,null,null,null,null,null,null,null,null,null,null,"1 1411 6411.037  SA  SPEC  OLYMPICS"]
[null,null,null,null,null,null,null,null,null,null,null,null,null,null,null,null,null,null,null,null,null,null,null,null,null,null,null,null,null,"1 1411 6411.038  SA  GOLF EXP"]
[null,null,null,null,null,null,null,null,null,null,null,null,null,null,null,null,null,null,null,null,null,null,null,null,null,null,null,null,null,"***  FUNCTION  1910  : TUITION  - OTHER  SCHOOLS    "]
[null,null,null,null,null,null,null,null,null,null,null,null,null,null,null,null,null,null,null,null,null,null,null,null,null,null,null,null,null,"***  FUNCTION  1911  :    "]
[null,null,null,null,null,null,null,null,null,null,null,null,null,null,null,null,null,null,null,null,null,null,null,null,null,null,null,null,null,"2 1911 6311 105 TU  DUAL CREDIT/MAC"]
[null,null,null,null,null,null,null,null,null,null,null,null,null,null,null,null,null,null,null,null,null,null,null,null,null,null,null,null,null,"***  FUNCTION  1921  :    "]
[null,null,null,null,null,null,null,null,null,null,null,null,null,null,null,null,null,null,null,null,null,null,null,null,null,null,null,null,null,"2 1921 6311 105 TU  AREA VOC/TUITION "]
[null,null,null,null,null,null,null,null,null,null,null,null,null,null,null,null,null,null,null,null,null,null,null,null,null,null,null,null,null,"***  FUNCTION  1931  :    "]
[null,null,null,null,null,null,null,null,null,null,null,null,null,null,null,null,null,null,null,null,null,null,null,null,null,null,null,null,null,"***  FUNCTION  1941  : CONTRACTED  EDUC  SERVICES    "]
[null,null,null,null,null,null,null,null,null,null,null,null,null,null,null,null,null,null,null,null,null,null,null,null,null,null,null,null,null,"2 1941 6311 800 CE  CONTR  EDUC  SERV "]
[null,null,null,null,null,null,null,null,null,null,null,null,null,null,null,null,null,null,null,null,null,null,null,null,null,null,null,null,null,"***  FUNCTION  1942  : SUPPLEMENTAL EDUC  SERV    "]
[null,null,null,null,null,null,null,null,null,null,null,null,null,null,null,null,null,null,null,null,null,null,null,null,null,null,null,null,null,"***  FUNCTION  2111  : TITLE  I TESTING    "]
[null,null,null,null,null,null,null,null,null,null,null,null,null,null,null,null,null,null,null,null,null,null,null,null,null,null,null,null,null,"***  FUNCTION  2112  : ATTENDANCE  SERVICES    "]
[null,null,null,null,null,null,null,null,null,null,null,null,null,null,null,null,null,null,null,null,null,null,null,null,null,null,null,null,null,"1 2120 6316 105 GU  TEST   SCORING"]
[null,null,null,null,null,null,null,null,null,null,null,null,null,null,null,null,null,null,null,null,null,null,null,null,null,null,null,null,null,"1 2120 6316 300 GU  TEST   SCORING"]
[null,null,null,null,null,null,null,null,null,null,null,null,null,null,null,null,null,null,null,null,null,null,null,null,null,null,null,null,null,"1 2120 6316 402 GU  TEST   SCORING"]
[null,null,null,null,null,null,null,null,null,null,null,null,null,null,null,null,null,null,null,null,null,null,null,null,null,null,null,null,null,"1 2120 6316.1 105 GU TEST  SCORING/ACT"]
[null,null,null,null,null,null,null,null,null,null,null,null,null,null,null,null,null,null,null,null,null,null,null,null,null,null,null,null,null,"1 2120 6410 105 GU  GEN   SUPPLIES"]
[null,null,null,null,null,null,null,null,null,null,null,null,null,null,null,null,null,null,null,null,null,null,null,null,null,null,null,null,null,"1 2120 6410 300 GU  GEN   SUPPLIES"]
[null,null,null,null,null,null,null,null,null,null,null,null,null,null,null,null,null,null,null,null,null,null,null,null,null,null,null,null,null,"1 2120 6410 402 GU  GEN   SUPPLIES"]
[null,null,null,null,null,null,null,null,null,null,null,null,null,null,null,null,null,null,null,null,null,null,null,null,null,null,null,null,null,"***  FUNCTION  2130  : NURSING SERVICES    "]
[null,null,null,null,null,null,null,null,null,null,null,null,null,null,null,null,null,null,null,null,null,null,null,null,null,null,null,null,null,"1 2130 6410 105 NU  GEN  SUPPLIES"]
[null,null,null,null,null,null,null,null,null,null,null,null,null,null,null,null,null,null,null,null,null,null,null,null,null,null,null,null,null,"1 2130 6410 300 NU  GEN  SUPPLIES"]
[null,null,null,null,null,null,null,null,null,null,null,null,null,null,null,null,null,null,null,null,null,null,null,null,null,null,null,null,null,"1 2130 6410 402 NU  GEN  SUPPLIES"]
[null,null,null,null,null,null,null,null,null,null,null,null,null,null,null,null,null,null,null,null,null,null,null,null,null,null,null,null,null,"***  FUNCTION  2132  : HEALTH  SERVICES    "]
[null,null,null,null,null,null,null,null,null,null,null,null,null,null,null,null,null,null,null,null,null,null,null,null,null,null,null,null,null,"1 2132 6319 402 HE  CONTR HEALTH SERV"]
[null,null,null,null,null,null,null,null,null,null,null,null,null,null,null,null,null,null,null,null,null,null,null,null,null,null,null,null,null,"1 2132 6319 800 HE  CONTR HEALTH SERV"]
[null,null,null,null,null,null,null,null,null,null,null,null,null,null,null,null,null,null,null,null,null,null,null,null,null,null,null,null,null,"***  FUNCTION  2142  : PSYCHOL/EVAL SERVICES    "]
[null,null,null,null,null,null,null,null,null,null,null,null,null,null,null,null,null,null,null,null,null,null,null,null,null,null,null,null,null,"***  FUNCTION  2210  : FEDERAL   PROGRAMS    "]
[null,null,null,null,null,null,null,null,null,null,null,null,null,null,null,null,null,null,null,null,null,null,null,null,null,null,null,null,null,"1 2210 6319.6 105 T5 PURCH/TECH  SERV"]
[null,null,null,null,null,null,null,null,null,null,null,null,null,null,null,null,null,null,null,null,null,null,null,null,null,null,null,null,null,"1 2210 6319.6 300 T5 PURCH/TECH  SERV"]
[null,null,null,null,null,null,null,null,null,null,null,null,null,null,null,null,null,null,null,null,null,null,null,null,null,null,null,null,null,"1 2210 6319.6 402 T5 PURCH/TECH  SERV"]
[null,null,null,null,null,null,null,null,null,null,null,null,null,null,null,null,null,null,null,null,null,null,null,null,null,null,null,null,null,"1 2210 6319.8 105 21CENT/PURCH  SERVICE"]
[null,null,null,null,null,null,null,null,null,null,null,null,null,null,null,null,null,null,null,null,null,null,null,null,null,null,null,null,null,"1 2210 6319.8 300 21CENT/PURCH  SERVICE"]
[null,null,null,null,null,null,null,null,null,null,null,null,null,null,null,null,null,null,null,null,null,null,null,null,null,null,null,null,null,"1 2210 6319.8 402 21CENT/PURCH  SERVICE"]
[null,null,null,null,null,null,null,null,null,null,null,null,null,null,null,null,null,null,null,null,null,null,null,null,null,null,null,null,null,"1 2210 6343.8 105 21CENT/MILEAGE/EXPENS"]
[null,null,null,null,null,null,null,null,null,null,null,null,null,null,null,null,null,null,null,null,null,null,null,null,null,null,null,null,null,"1 2210 6343.8 402 21CENT/MILEAGE/EXPENS"]
[null,null,null,null,null,null,null,null,null,null,null,null,null,null,null,null,null,null,null,null,null,null,null,null,null,null,null,null,null,"1 2210 6410.8 105 21CENT/GEN SUPPLIES"]
[null,null,null,null,null,null,null,null,null,null,null,null,null,null,null,null,null,null,null,null,null,null,null,null,null,null,null,null,null,"1 2210 6410.8 300 21CENT/GEN SUPPLIES"]
[null,null,null,null,null,null,null,null,null,null,null,null,null,null,null,null,null,null,null,null,null,null,null,null,null,null,null,null,null,"1 2210 6410.8 402 21CENT/GEN SUPPLIES"]
[null,null,null,null,null,null,null,null,null,null,null,null,null,null,null,null,null,null,null,null,null,null,null,null,null,null,null,null,null,"***  FUNCTION  2211  : CAREER  LADDER    "]
[null,null,null,null,null,null,null,null,null,null,null,null,null,null,null,null,null,null,null,null,null,null,null,null,null,null,null,null,null,"***  FUNCTION  2213  : IMPROVEMT  OF  INSTRUCTION    "]
[null,null,null,null,null,null,null,null,null,null,null,null,null,null,null,null,null,null,null,null,null,null,null,null,null,null,null,null,null,"1 2213 6319 402  50 T1 PURCH/TECH  SERVICE "]
[null,null,null,null,null,null,null,null,null,null,null,null,null,null,null,null,null,null,null,null,null,null,null,null,null,null,null,null,null,"***  FUNCTION  2214  : PROFESSIONAL  DEVELOPMENT    "]
[null,null,null,null,null,null,null,null,null,null,null,null,null,null,null,null,null,null,null,null,null,null,null,null,null,null,null,null,null,"2 2214 6312 800 PD  TUITION   REIMBURSMT"]
[null,null,null,null,null,null,null,null,null,null,null,null,null,null,null,null,null,null,null,null,null,null,null,null,null,null,null,null,null,"1 2214 6319 800 PD  PURC/TECH   SERV"]
[null,null,null,null,null,null,null,null,null,null,null,null,null,null,null,null,null,null,null,null,null,null,null,null,null,null,null,null,null,"1 2214 6343 800 PD  MILEAGE/EXPENSE "]
[null,null,null,null,null,null,null,null,null,null,null,null,null,null,null,null,null,null,null,null,null,null,null,null,null,null,null,null,null,"1 2214 6410 800 PD  GEN SUPPLIES "]
[null,null,null,null,null,null,null,null,null,null,null,null,null,null,null,null,null,null,null,null,null,null,null,null,null,null,null,null,null,"***  FUNCTION  2219  : GOALS  2000  - LOCAL   REFORM    "]
[null,null,null,null,null,null,null,null,null,null,null,null,null,null,null,null,null,null,null,null,null,null,null,null,null,null,null,null,null,"***  FUNCTION  2220  : MEDIA SERVICES    "]
[null,null,null,null,null,null,null,null,null,null,null,null,null,null,null,null,null,null,null,null,null,null,null,null,null,null,null,null,null,"1 2220 6319.7 105 T6.B PURCH/TECH  SERV"]
[null,null,null,null,null,null,null,null,null,null,null,null,null,null,null,null,null,null,null,null,null,null,null,null,null,null,null,null,null,"1 2220 6319.7 300 T6.B PURCH/TECH  SERV"]
[null,null,null,null,null,null,null,null,null,null,null,null,null,null,null,null,null,null,null,null,null,null,null,null,null,null,null,null,null,"1 2220 6319.7 402 T6.B PURCH/TECH  SERV"]
[null,null,null,null,null,null,null,null,null,null,null,null,null,null,null,null,null,null,null,null,null,null,null,null,null,null,null,null,null,"1 2220 6410 105 LB   GEN  SUPPLIES"]
[null,null,null,null,null,null,null,null,null,null,null,null,null,null,null,null,null,null,null,null,null,null,null,null,null,null,null,null,null,"1 2220 6410 300 LB   GEN  SUPPLIES"]
[null,null,null,null,null,null,null,null,null,null,null,null,null,null,null,null,null,null,null,null,null,null,null,null,null,null,null,null,null,"1 2220 6410 402 LB   GEN  SUPPLIES"]
[null,null,null,null,null,null,null,null,null,null,null,null,null,null,null,null,null,null,null,null,null,null,null,null,null,null,null,null,null,"1 2220 6441 105 LB  LIBRARY   BOOKS"]
[null,null,null,null,null,null,null,null,null,null,null,null,null,null,null,null,null,null,null,null,null,null,null,null,null,null,null,null,null,"1 2220 6441 300 LB  LIBRARY   BOOKS"]
[null,null,null,null,null,null,null,null,null,null,null,null,null,null,null,null,null,null,null,null,null,null,null,null,null,null,null,null,null,"1 2220 6441 402 LB  LIBRARY   BOOKS"]
[null,null,null,null,null,null,null,null,null,null,null,null,null,null,null,null,null,null,null,null,null,null,null,null,null,null,null,null,null,"***  FUNCTION  2223  : AUDIO VISUAL  SERVICES    "]
[null,null,null,null,null,null,null,null,null,null,null,null,null,null,null,null,null,null,null,null,null,null,null,null,null,null,null,null,null,"1 2223 6319 800 E"]
[null,null,null,null,null,null,null,null,null,null,null,null,null,null,null,null,null,null,null,null,null,null,null,null,null,null,null,null,null,"1 2223 6361 800 E"]
[null,null,null,null,null,null,null,null,null,null,null,null,null,null,null,null,null,null,null,null,null,null,null,null,null,null,null,null,null,"***  FUNCTION  2310  : BD OF EDUC SERVICES    "]
[null,null,null,null,null,null,null,null,null,null,null,null,null,null,null,null,null,null,null,null,null,null,null,null,null,null,null,null,null,"1 2310 6319 800 BE  PURC/TECH   SERV"]
[null,null,null,null,null,null,null,null,null,null,null,null,null,null,null,null,null,null,null,null,null,null,null,null,null,null,null,null,null,"1 2310 6343 800 BE  MILEAGE/EXPENSE"]
[null,null,null,null,null,null,null,null,null,null,null,null,null,null,null,null,null,null,null,null,null,null,null,null,null,null,null,null,null,"1 2310 6352 800 BE  LIABILITY   INS"]
[null,null,null,null,null,null,null,null,null,null,null,null,null,null,null,null,null,null,null,null,null,null,null,null,null,null,null,null,null,"1 2310 6353 800 BE  TREAS  BONDS"]
[null,null,null,null,null,null,null,null,null,null,null,null,null,null,null,null,null,null,null,null,null,null,null,null,null,null,null,null,null,"1 2310 6362 800 BE  ADVERTISING"]
[null,null,null,null,null,null,null,null,null,null,null,null,null,null,null,null,null,null,null,null,null,null,null,null,null,null,null,null,null,"1 2310 6371 800 BE DUES/FEES"]
[null,null,null,null,null,null,null,null,null,null,null,null,null,null,null,null,null,null,null,null,null,null,null,null,null,null,null,null,null,"1 2310 6410 800 BE   GEN  SUPPLIES"]
[null,null,null,null,null,null,null,null,null,null,null,null,null,null,null,null,null,null,null,null,null,null,null,null,null,null,null,null,null,"***  FUNCTION  2320  : EXECUTIVE  ADMINISTRATION    "]
[null,null,null,null,null,null,null,null,null,null,null,null,null,null,null,null,null,null,null,null,null,null,null,null,null,null,null,null,null,"1 2320 6319 800 EA  PURC/TECH   SERV"]
[null,null,null,null,null,null,null,null,null,null,null,null,null,null,null,null,null,null,null,null,null,null,null,null,null,null,null,null,null,"1 2320 6334 800 EA  LEASE/RENTAL"]
[null,null,null,null,null,null,null,null,null,null,null,null,null,null,null,null,null,null,null,null,null,null,null,null,null,null,null,null,null,"1 2320 6343 800 EA  MILEAGE/EXPENSE"]
[null,null,null,null,null,null,null,null,null,null,null,null,null,null,null,null,null,null,null,null,null,null,null,null,null,null,null,null,null,"1 2320 6361 800 EA  POSTAGE"]
[null,null,null,null,null,null,null,null,null,null,null,null,null,null,null,null,null,null,null,null,null,null,null,null,null,null,null,null,null,"1 2320 6371 800 EA DUES/FEES"]
[null,null,null,null,null,null,null,null,null,null,null,null,null,null,null,null,null,null,null,null,null,null,null,null,null,null,null,null,null,"1 2320 6398 800 EA  OTH EXPENSE/REFUND"]
[null,null,null,null,null,null,null,null,null,null,null,null,null,null,null,null,null,null,null,null,null,null,null,null,null,null,null,null,null,"1 2320 6410 800 EA  GEN  SUPPLIES"]
[null,null,null,null,null,null,null,null,null,null,null,null,null,null,null,null,null,null,null,null,null,null,null,null,null,null,null,null,null,"***  FUNCTION  2400  : BLD  LEVEL  ADMINISTRATION    "]
[null,null,null,null,null,null,null,null,null,null,null,null,null,null,null,null,null,null,null,null,null,null,null,null,null,null,null,null,null,"1 2400 6343 105 BL  MILEAGE/EXPENSE"]
[null,null,null,null,null,null,null,null,null,null,null,null,null,null,null,null,null,null,null,null,null,null,null,null,null,null,null,null,null,"1 2400 6343 300 BL  MILEAGE/EXPENSE"]
[null,null,null,null,null,null,null,null,null,null,null,null,null,null,null,null,null,null,null,null,null,null,null,null,null,null,null,null,null,"1 2400 6343 402 BL  MILEAGE/EXPENSE"]
[null,null,null,null,null,null,null,null,null,null,null,null,null,null,null,null,null,null,null,null,null,null,null,null,null,null,null,null,null,"1 2400 6343 402  42 EC  MILEAGE/EXPENSE"]
[null,null,null,null,null,null,null,null,null,null,null,null,null,null,null,null,null,null,null,null,null,null,null,null,null,null,null,null,null,"1 2400 6361 105 BL  POSTAGE"]
[null,null,null,null,null,null,null,null,null,null,null,null,null,null,null,null,null,null,null,null,null,null,null,null,null,null,null,null,null,"1 2400 6361 300 BL  POSTAGE"]
[null,null,null,null,null,null,null,null,null,null,null,null,null,null,null,null,null,null,null,null,null,null,null,null,null,null,null,null,null,"1 2400 6361 402 BL  POSTAGE"]
[null,null,null,null,null,null,null,null,null,null,null,null,null,null,null,null,null,null,null,null,null,null,null,null,null,null,null,null,null,"1 2400 6371 105 BL DUES/FEES"]
[null,null,null,null,null,null,null,null,null,null,null,null,null,null,null,null,null,null,null,null,null,null,null,null,null,null,null,null,null,"1 2400 6371 300 BL DUES/FEES"]
[null,null,null,null,null,null,null,null,null,null,null,null,null,null,null,null,null,null,null,null,null,null,null,null,null,null,null,null,null,"1 2400 6371 402 E"]
[null,null,null,null,null,null,null,null,null,null,null,null,null,null,null,null,null,null,null,null,null,null,null,null,null,null,null,null,null,"***  FUNCTION  2540  : OPER  OF  PLANT   - CUSTODIAL    "]
[null,null,null,null,null,null,null,null,null,null,null,null,null,null,null,null,null,null,null,null,null,null,null,null,null,null,null,null,null,"1 2540 6319 105 OM   PURC/TECH  SERV"]
[null,null,null,null,null,null,null,null,null,null,null,null,null,null,null,null,null,null,null,null,null,null,null,null,null,null,null,null,null,"1 2540 6319 402 OM   PURC/TECH  SERV"]
[null,null,null,null,null,null,null,null,null,null,null,null,null,null,null,null,null,null,null,null,null,null,null,null,null,null,null,null,null,"1 2540 6319 800 OM   PURC/TECH  SERV"]
[null,null,null,null,null,null,null,null,null,null,null,null,null,null,null,null,null,null,null,null,null,null,null,null,null,null,null,null,null,"1 2552 6319 800 PT  PURC/TECH  SERV"]
[null,null,null,null,null,null,null,null,null,null,null,null,null,null,null,null,null,null,null,null,null,null,null,null,null,null,null,null,null,"1 2552 6332 800 PT  CONTR REPAIR"]
[null,null,null,null,null,null,null,null,null,null,null,null,null,null,null,null,null,null,null,null,null,null,null,null,null,null,null,null,null,"***  FUNCTION  2554  : HANDIC  TRANS  - DISTRICT    "]
[null,null,null,null,null,null,null,null,null,null,null,null,null,null,null,null,null,null,null,null,null,null,null,null,null,null,null,null,null,"1 2554 6410 800 HD GEN SUPPLIES "]
[null,null,null,null,null,null,null,null,null,null,null,null,null,null,null,null,null,null,null,null,null,null,null,null,null,null,null,null,null,"***  FUNCTION  2558  : NONALLOWABLE  TRANS  EXPENS    "]
[null,null,null,null,null,null,null,null,null,null,null,null,null,null,null,null,null,null,null,null,null,null,null,null,null,null,null,null,null,"***  FUNCTION  2559  : ECSE  TRANSPORT    "]
[null,null,null,null,null,null,null,null,null,null,null,null,null,null,null,null,null,null,null,null,null,null,null,null,null,null,null,null,null,"1 2559 6341 402 42 EC  CONTR  TRANSP "]
[null,null,null,null,null,null,null,null,null,null,null,null,null,null,null,null,null,null,null,null,null,null,null,null,null,null,null,null,null,"***  FUNCTION  2561  : FOOD SERVICES    "]
[null,null,null,null,null,null,null,null,null,null,null,null,null,null,null,null,null,null,null,null,null,null,null,null,null,null,null,null,null,"1 2561 6410 105 FD  GEN  SUPPLIES"]
[null,null,null,null,null,null,null,null,null,null,null,null,null,null,null,null,null,null,null,null,null,null,null,null,null,null,null,null,null,"1 2561 6410 300 FD  GEN  SUPPLIES"]
[null,null,null,null,null,null,null,null,null,null,null,null,null,null,null,null,null,null,null,null,null,null,null,null,null,null,null,null,null,"1 2561 6410 402 FD  GEN  SUPPLIES"]
[null,null,null,null,null,null,null,null,null,null,null,null,null,null,null,null,null,null,null,null,null,null,null,null,null,null,null,null,null,"1 2561 6471 105 FD  FOOD  SUPPLIES"]
[null,null,null,null,null,null,null,null,null,null,null,null,null,null,null,null,null,null,null,null,null,null,null,null,null,null,null,null,null,"1 2561 6471 300 FD  FOOD  SUPPLIES"]
[null,null,null,null,null,null,null,null,null,null,null,null,null,null,null,null,null,null,null,null,null,null,null,null,null,null,null,null,null,"1 2561 6471 402 FD  FOOD  SUPPLIES"]
[null,null,null,null,null,null,null,null,null,null,null,null,null,null,null,null,null,null,null,null,null,null,null,null,null,null,null,null,null,"4 2561 6541 105 FD  GEN  EQUIPMENT"]
[null,null,null,null,null,null,null,null,null,null,null,null,null,null,null,null,null,null,null,null,null,null,null,null,null,null,null,null,null,"4 2561 6541 402 FD  GEN  EQUIPMENT"]
[null,null,null,null,null,null,null,null,null,null,null,null,null,null,null,null,null,null,null,null,null,null,null,null,null,null,null,null,null,"***  FUNCTION  2660  : DATA PROCESSING    "]
[null,null,null,null,null,null,null,null,null,null,null,null,null,null,null,null,null,null,null,null,null,null,null,null,null,null,null,null,null,"1 2660 6151 800 DP  TECH  SALARY"]
[null,null,null,null,null,null,null,null,null,null,null,null,null,null,null,null,null,null,null,null,null,null,null,null,null,null,null,null,null,"1 2660 6221 800 DP  NON  TEACHER  RET"]
[null,null,null,null,null,null,null,null,null,null,null,null,null,null,null,null,null,null,null,null,null,null,null,null,null,null,null,null,null,"1 2660 6231 800 DP  SOC  SEC"]
[null,null,null,null,null,null,null,null,null,null,null,null,null,null,null,null,null,null,null,null,null,null,null,null,null,null,null,null,null,"1 2660 6232 800 DP  MEDICARE"]
[null,null,null,null,null,null,null,null,null,null,null,null,null,null,null,null,null,null,null,null,null,null,null,null,null,null,null,null,null,"1 2660 6241 800 DP  MEDICAL  INS"]
[null,null,null,null,null,null,null,null,null,null,null,null,null,null,null,null,null,null,null,null,null,null,null,null,null,null,null,null,null,"1 2660 6319 105 DP  PURCH/TECH  SERV"]
[null,null,null,null,null,null,null,null,null,null,null,null,null,null,null,null,null,null,null,null,null,null,null,null,null,null,null,null,null,"1 2660 6319 300 DP  PURCH/TECH  SERV"]
[null,null,null,null,null,null,null,null,null,null,null,null,null,null,null,null,null,null,null,null,null,null,null,null,null,null,null,null,null,"1 2660 6319 402 DP  PURCH/TECH  SERV"]
[null,null,null,null,null,null,null,null,null,null,null,null,null,null,null,null,null,null,null,null,null,null,null,null,null,null,null,null,null,"1 2660 6319 800 DP  PURCH/TECH  SERV"]
[null,null,null,null,null,null,null,null,null,null,null,null,null,null,null,null,null,null,null,null,null,null,null,null,null,null,null,null,null,"1 2660 6332 105 DP  CONTR REPAIR"]
[null,null,null,null,null,null,null,null,null,null,null,null,null,null,null,null,null,null,null,null,null,null,null,null,null,null,null,null,null,"1 2660 6332 300 DP  CONTR REPAIR"]
[null,null,null,null,null,null,null,null,null,null,null,null,null,null,null,null,null,null,null,null,null,null,null,null,null,null,null,null,null,"1 2660 6332 402 DP  CONTR REPAIR"]
[null,null,null,null,null,null,null,null,null,null,null,null,null,null,null,null,null,null,null,null,null,null,null,null,null,null,null,null,null,"1 2660 6332 800 DP  CONTR REPAIR"]
[null,null,null,null,null,null,null,null,null,null,null,null,null,null,null,null,null,null,null,null,null,null,null,null,null,null,null,null,null,"1 2660 6343 800 DP  MILEAGE/EXPENSE"]
[null,null,null,null,null,null,null,null,null,null,null,null,null,null,null,null,null,null,null,null,null,null,null,null,null,null,null,null,null,"1 2660 6410 105 DP  GEN  SUPPLIES"]
[null,null,null,null,null,null,null,null,null,null,null,null,null,null,null,null,null,null,null,null,null,null,null,null,null,null,null,null,null,"1 2660 6410 300 DP  GEN  SUPPLIES"]
[null,null,null,null,null,null,null,null,null,null,null,null,null,null,null,null,null,null,null,null,null,null,null,null,null,null,null,null,null,"1 2660 6410 402 DP  GEN  SUPPLIES"]
[null,null,null,null,null,null,null,null,null,null,null,null,null,null,null,null,null,null,null,null,null,null,null,null,null,null,null,null,null,"1 2660 6410 800 DP  GEN  SUPPLIES"]
[null,null,null,null,null,null,null,null,null,null,null,null,null,null,null,null,null,null,null,null,null,null,null,null,null,null,null,null,null,"4 2660 6541 800 E EQUIPMENT"]
[null,null,null,null,null,null,null,null,null,null,null,null,null,null,null,null,null,null,null,null,null,null,null,null,null,null,null,null,null,"***  FUNCTION  3000  : COMMUNITY  SERVICES    "]
[null,null,null,null,null,null,null,null,null,null,null,null,null,null,null,null,null,null,null,null,null,null,null,null,null,null,null,null,null,"***  FUNCTION  3511  : PARENTS  AS  TEACHERS    "]
[null,null,null,null,null,null,null,null,null,null,null,null,null,null,null,null,null,null,null,null,null,null,null,null,null,null,null,null,null,"2 3511 6151 800 PA  PARENT  EDUC  SALARY"]
[null,null,null,null,null,null,null,null,null,null,null,null,null,null,null,null,null,null,null,null,null,null,null,null,null,null,null,null,null,"2 3511 6161 800 PA  PT  PARENT  EDUC  SAL "]
[null,null,null,null,null,null,null,null,null,null,null,null,null,null,null,null,null,null,null,null,null,null,null,null,null,null,null,null,null,"2 3511 6211 800 PA  RETIREMENT  TEA"]
[null,null,null,null,null,null,null,null,null,null,null,null,null,null,null,null,null,null,null,null,null,null,null,null,null,null,null,null,null,"2 3511 6221 800 PA  NON-TEACHER  RET"]
[null,null,null,null,null,null,null,null,null,null,null,null,null,null,null,null,null,null,null,null,null,null,null,null,null,null,null,null,null,"2 3511 6231 800 PA  SOC  SEC "]
[null,null,null,null,null,null,null,null,null,null,null,null,null,null,null,null,null,null,null,null,null,null,null,null,null,null,null,null,null,"2 3511 6232 800 PA  MEDICARE"]
[null,null,null,null,null,null,null,null,null,null,null,null,null,null,null,null,null,null,null,null,null,null,null,null,null,null,null,null,null,"2 3511 6241 800 PA  MEDICAL  INS"]
[null,null,null,null,null,null,null,null,null,null,null,null,null,null,null,null,null,null,null,null,null,null,null,null,null,null,null,null,null,"1 3511 6319 800 PA  PURC/TECH   SERV"]
[null,null,null,null,null,null,null,null,null,null,null,null,null,null,null,null,null,null,null,null,null,null,null,null,null,null,null,null,null,"1 3511 6343 800 PA  MILEAGE/EXPENSE "]
[null,null,null,null,null,null,null,null,null,null,null,null,null,null,null,null,null,null,null,null,null,null,null,null,null,null,null,null,null,"1 3511 6410 800 PA  GEN SUPPLIES "]
[null,null,null,null,null,null,null,null,null,null,null,null,null,null,null,null,null,null,null,null,null,null,null,null,null,null,null,null,null,"***  FUNCTION  3512  : TITLE  I PRE-SCHOOL    "]
[null,null,null,null,null,null,null,null,null,null,null,null,null,null,null,null,null,null,null,null,null,null,null,null,null,null,null,null,null,"2 3512 6112 402  52 PS TEACHER  SALARY"]
[null,null,null,null,null,null,null,null,null,null,null,null,null,null,null,null,null,null,null,null,null,null,null,null,null,null,null,null,null,"2 3512 6151 402  52 PS AIDE   SALARY"]
[null,null,null,null,null,null,null,null,null,null,null,null,null,null,null,null,null,null,null,null,null,null,null,null,null,null,null,null,null,"2 3512 6211 402  52 PS RETIREMENT  TEA"]
[null,null,null,null,null,null,null,null,null,null,null,null,null,null,null,null,null,null,null,null,null,null,null,null,null,null,null,null,null,"2 3512 6221 402  52 PS NON-TEACHER  RET"]
[null,null,null,null,null,null,null,null,null,null,null,null,null,null,null,null,null,null,null,null,null,null,null,null,null,null,null,null,null,"2 3512 6231 402  52 PS SOC  SEC "]
[null,null,null,null,null,null,null,null,null,null,null,null,null,null,null,null,null,null,null,null,null,null,null,null,null,null,null,null,null,"2 3512 6232 402  52 PS MEDICARE"]
[null,null,null,null,null,null,null,null,null,null,null,null,null,null,null,null,null,null,null,null,null,null,null,null,null,null,null,null,null,"2 3512 6241 402  52 PS MEDICAL  INS"]
[null,null,null,null,null,null,null,null,null,null,null,null,null,null,null,null,null,null,null,null,null,null,null,null,null,null,null,null,null,"1 3512 6410 402  52 PS GEN SUPPLIES "]
[null,null,null,null,null,null,null,null,null,null,null,null,null,null,null,null,null,null,null,null,null,null,null,null,null,null,null,null,null,"***  FUNCTION  3800  : SCHOOL-AGE  CHILD   CARE    "]
[null,null,null,null,null,null,null,null,null,null,null,null,null,null,null,null,null,null,null,null,null,null,null,null,null,null,null,null,null,"***  FUNCTION  3812  :    "]
[null,null,null,null,null,null,null,null,null,null,null,null,null,null,null,null,null,null,null,null,null,null,null,null,null,null,null,null,null,"1 3812 6161.8 402 AS   PT   COOK SALARY"]
[null,null,null,null,null,null,null,null,null,null,null,null,null,null,null,null,null,null,null,null,null,null,null,null,null,null,null,null,null,"1 3812 6221.8 402 AS   NON  TEACHER  RET"]
[null,null,null,null,null,null,null,null,null,null,null,null,null,null,null,null,null,null,null,null,null,null,null,null,null,null,null,null,null,"1 3812 6231.8 402 AS  SOC  SEC "]
[null,null,null,null,null,null,null,null,null,null,null,null,null,null,null,null,null,null,null,null,null,null,null,null,null,null,null,null,null,"1 3812 6232.8 402 AS  MEDICARE"]
[null,null,null,null,null,null,null,null,null,null,null,null,null,null,null,null,null,null,null,null,null,null,null,null,null,null,null,null,null,"1 3812 6491 105 AS  FOOD SUPPLIES "]
[null,null,null,null,null,null,null,null,null,null,null,null,null,null,null,null,null,null,null,null,null,null,null,null,null,null,null,null,null,"1 3812 6491 300 AS  FOOD SUPPLIES "]
[null,null,null,null,null,null,null,null,null,null,null,null,null,null,null,null,null,null,null,null,null,null,null,null,null,null,null,null,null,"1 3812 6491 402 AS  FOOD SUPPLIES "]
[null,null,null,null,null,null,null,null,null,null,null,null,null,null,null,null,null,null,null,null,null,null,null,null,null,null,null,null,null,"*** FUNC TION  3900  : SCHOLARSHIP  "]
[null,null,null,null,null,null,null,null,null,null,null,null,null,null,null,null,null,null,null,null,null,null,null,null,null,null,null,null,null,"1 3900 6390 800 CS  SCHOLARSHIPS  PAID "]
[null,null,null,null,null,null,null,null,null,null,null,null,null,null,null,null,null,null,null,null,null,null,null,null,null,null,null,null,null,"*** FUNC TION  3911  : SUMMER  FOOD   SERVICE  "]
[null,null,null,null,null,null,null,null,null,null,null,null,null,null,null,null,null,null,null,null,null,null,null,null,null,null,null,null,null,"1 3911 6161 105 SS COOK SALARY "]
[null,null,null,null,null,null,null,null,null,null,null,null,null,null,null,null,null,null,null,null,null,null,null,null,null,null,null,null,null,"1 3911 6161 402 SS COOK SALARY "]
[null,null,null,null,null,null,null,null,null,null,null,null,null,null,null,null,null,null,null,null,null,null,null,null,null,null,null,null,null,"1 3911 6221 105 SS NON  TEACHER  RET "]
[null,null,null,null,null,null,null,null,null,null,null,null,null,null,null,null,null,null,null,null,null,null,null,null,null,null,null,null,null,"1 3911 6221 402 SS NON  TEACHER  RET "]
[null,null,null,null,null,null,null,null,null,null,null,null,null,null,null,null,null,null,null,null,null,null,null,null,null,null,null,null,null,"1 3911 6231 105 SS SOC  SEC "]
[null,null,null,null,null,null,null,null,null,null,null,null,null,null,null,null,null,null,null,null,null,null,null,null,null,null,null,null,null,"1 3911 6231 402 SS SOC  SEC "]
[null,null,null,null,null,null,null,null,null,null,null,null,null,null,null,null,null,null,null,null,null,null,null,null,null,null,null,null,null,"1 3911 6232 105 SS MEDICARE"]
[null,null,null,null,null,null,null,null,null,null,null,null,null,null,null,null,null,null,null,null,null,null,null,null,null,null,null,null,null,"1 3911 6232 402 SS MEDICARE"]
[null,null,null,null,null,null,null,null,null,null,null,null,null,null,null,null,null,null,null,null,null,null,null,null,null,null,null,null,null,"1 3911 6410 300 SS GEN SUPPLIES "]
[null,null,null,null,null,null,null,null,null,null,null,null,null,null,null,null,null,null,null,null,null,null,null,null,null,null,null,null,null,"1 3911 6410 402 SS GEN SUPPLIES "]
[null,null,null,null,null,null,null,null,null,null,null,null,null,null,null,null,null,null,null,null,null,null,null,null,null,null,null,null,null,"1 3911 6491 105 SS FOOD SUPPLIES "]
[null,null,null,null,null,null,null,null,null,null,null,null,null,null,null,null,null,null,null,null,null,null,null,null,null,null,null,null,null,"1 3911 6491 300 SS FOOD SUPPLIES "]
[null,null,null,null,null,null,null,null,null,null,null,null,null,null,null,null,null,null,null,null,null,null,null,null,null,null,null,null,null,"1 3911 6491 402 SS FOOD SUPPLIES "]
[null,null,null,null,null,null,null,null,null,null,null,null,null,null,null,null,null,null,null,null,null,null,null,null,null,null,null,null,null,"***  FUNCTION  3912  : PARENTAL   INVOLVEMENT    "]
[null,null,null,null,null,null,null,null,null,null,null,null,null,null,null,null,null,null,null,null,null,null,null,null,null,null,null,null,null,"***  FUNCTION  4000  : FACILITY   ACQUIS/CONSTRUC    "]
[null,null,null,null,null,null,null,null,null,null,null,null,null,null,null,null,null,null,null,null,null,null,null,null,null,null,null,null,null,"4 4000 6521 300 E"]
[null,null,null,null,null,null,null,null,null,null,null,null,null,null,null,null,null,null,null,null,null,null,null,null,null,null,null,null,null,"***  FUNCTION  4050  : BUILDING    IMPROVEMENT    "]
[null,null,null,null,null,null,null,null,null,null,null,null,null,null,null,null,null,null,null,null,null,null,null,null,null,null,null,null,null,"4 4050 6521 105 BI BLDG IMPROV/MAINT"]
[null,null,null,null,null,null,null,null,null,null,null,null,null,null,null,null,null,null,null,null,null,null,null,null,null,null,null,null,null,"4 4050 6521 300 BI BLDG IMPROV/MAINT"]
[null,null,null,null,null,null,null,null,null,null,null,null,null,null,null,null,null,null,null,null,null,null,null,null,null,null,null,null,null,"4 4050 6521 402 BI BLDG IMPROV/MAINT"]
[null,null,null,null,null,null,null,null,null,null,null,null,null,null,null,null,null,null,null,null,null,null,null,null,null,null,null,null,null,"***  FUNCTION  5110  :    "]
[null,null,null,null,null,null,null,null,null,null,null,null,null,null,null,null,null,null,null,null,null,null,null,null,null,null,null,null,null,"3 5110 6611 800 DS   RET  OF  BONDS"]
[null,null,null,null,null,null,null,null,null,null,null,null,null,null,null,null,null,null,null,null,null,null,null,null,null,null,null,null,null,"*** FUNCTION 5210  "]
[null,null,null,null,null,null,null,null,null,null,null,null,null,null,null,null,null,null,null,null,null,null,null,null,null,null,null,null,null,"3 5210 6621 800 DS  INTEREST    ON  BONDS"]
[null,null,null,null,null,null,null,null,null,null,null,null,null,null,null,null,null,null,null,null,null,null,null,null,null,null,null,null,null,"*** FUNCTION 5230  "]
[null,null,null,null,null,null,null,null,null,null,null,null,null,null,null,null,null,null,null,null,null,null,null,null,null,null,null,null,null,"4 5230 6623 300 LP  LEAS/PURC  INTEREST"]
[null,null,null,null,null,null,null,null,null,null,null,null,null,null,null,null,null,null,null,null,null,null,null,null,null,null,null,null,null,"*** FUNCTION 5310  "]
[null,null,null,null,null,null,null,null,null,null,null,null,null,null,null,null,null,null,null,null,null,null,null,null,null,null,null,null,null,"3 5310 6631 800 DS   OTHER FEES"]
[null,null,null,null,null,null,null,null,null,null,null,null,null,null,null,null,null,null,null,null,null,null,null,null,null,null,null,null,null,"*** FUNCTION 5330  "]
[null,null,null,null,null,null,null,null,null,null,null,null,null,null,null,null,null,null,null,null,null,null,null,null,null,null,null,null,null,"4 5330 6631 300 LP   OTHER FEES"]
[]
[]
[]
[]
[]
[]
[]
[]
[]
[]
[]
[]
[]
[]
[]
[]
[]
[]
[]
[]
[]
[]
[]
[]
[]
[]
[]
[]
[]
[]
[]
[]
[]
[]
[]
[]
[]
[]
[]
[]
[]
[]
[]
[]
[]
[]
[]
[]
[]
[]
[]
[]
[]
[]
[null,null,null,null,null,null,null,null,null,null,null,null,null,null,null,null,null,null,null,null,null,null,null,null,null,null,null,null,null,"   "]
[null,null,null,null,null,null,null,null,null,null,null,null,null,null,null,null,null,null,null,null,null,null,null,null,null,null,null,null,null,"   "]
[null,null,null,null,null,null,null,null,null,null,null,null,null,null,null,null,null,null,null,null,null,null,null,null,null,null,null,null,null,"   "]
[null,null,null,null,null,null,null,null,null,null,null,null,null,null,null,null,null,null,null,null,null,null,null,null,null,null,null,null,null,"   "]
[null,null,null,null,null,null,null,null,null,null,null,null,null,null,null,null,null,null,null,null,null,null,null,null,null,null,null,null,null,"   "]
[null,null,null,null,null,null,null,null,null,null,null,null,null,null,null,null,null,null,null,null,null,null,null,null,null,null,null,null,null,"   "]

{"sheet":"Req (2)","index":1,"n_rows":358,"n_cols":30,"rows_kept":358,"cut":false,"hidden":false,"merged":[[0,0,0,10],[1,0,1,10],[1,12,3,13],[1,18,1,20],[2,0,2,6],[2,7,2,10],[3,0,3,6],[3,7,4,10],[4,0,4,6],[5,0,5,6],[5,7,6,10],[6,0,6,6],[7,7,8,10],[10,1,10,4],[10,6,10,10],[11,1,11,4],[11,6,11,10],[12,1,12,4],[12,6,12,10],[13,6,13,7],[13,8,13,10],[16,2,16,3],[16,4,16,5],[16,6,16,7],[17,0,17,1],[17,2,17,3],[17,4,17,5],[17,6,17,7],[25,3,25,8],[17,8,17,10],[18,4,18,7],[18,8,18,10],[19,0,19,3],[19,4,19,7],[19,8,19,10],[20,3,20,8],[21,3,21,8],[22,3,22,8],[23,3,23,8],[24,3,24,8],[37,1,37,9],[26,3,26,8],[27,3,27,8],[28,3,28,8],[29,3,29,8],[30,3,30,8],[31,3,31,8],[32,3,32,8],[33,3,33,8],[34,3,34,8],[35,3,35,8],[36,3,36,8],[50,4,52,5],[38,9,38,10],[39,9,39,10],[41,3,41,6],[41,9,44,10],[42,3,42,6],[44,3,46,6]]}
[]
["Requisition",null,null,null,null,null,null,null,null,null,null,null,null,null,null,null,"Building","Form Type","Sites",null,null,null,"Elementary Codes","Middle School Codes","High School Codes","Bus/Maintenance Codes","SPED Codes","PDC Codes","Food Service","All Codes"]
[null,null,null,null,null,null,null,"fv. 06122018"]
["BILL TO:  BOARD OF EDUCATION",null,null,null,null,null,null,{"$f":"IF(A2=\"PURCHASE ORDER\",\"PURCHASE ORDER\",\"\")","v":""},null,null,null,null,null,null,null,null,"WC_District","Requisition","West St. Francois County R-IV Bus/Maintenance","1124 Main Street","Leadwood, MO. 63653",null,"***  FUNCTION  1110  : ELEMENTARY  INSTRUCTION    ","***  FUNCTION  1130  : MIDDLE SCHOOL INSTRUCTION    ","***  FUNCTION  1150  : HIGH  SCHOOL INSTRUCTION    ",null,"***  FUNCTION  1221  : SPECIAL    PROGRAMS - EMH    ","***  FUNCTION  2214  : PROFESSIONAL  DEVELOPMENT    ","***  FUNCTION  2561  : FOOD SERVICES    ","***  FUNCTION  1110  : ELEMENTARY  INSTRUCTION    "]
["  WEST ST. FRANCOIS COUNTY R-IV SCHOOL DISTRICT",null,null,null,null,null,null,null,null,null,null,null,null,null,null,null,"WC_SPED","Purchase Order","West St. Francois County R-IV School District SPED","1124 Main Street","Leadwood, MO. 63653",null,"1 1110 6319 402 EL  PURCH/TECH  SERV","1 1130 6319 300 MS  PURCH/TECH  SERV","1 1150 6319 105 HS  PURCH/TECH SERVICE",null,"1 1221 6319 402  03 SE  PURCH/TECH SERV","2 2214 6121 800 PD  SUBST   TEACHER","1 2561 6151 105 FD  COOKS  SALARY","1 1110 6319 402 EL  PURCH/TECH  SERV"]
["                   1124 MAIN STREET, LEADWOOD, MO  63653-1214",null,null,null,null,null,null,null,null,null,null,null,null,null,null,null,"WCES",null,"West St. Francois County R-IV Food Service","624 Chariton Ave","Parkhills, MO.  63601",null,"1 1110 6343 402 EL  MILEAGE/EXPENSE","1 1130 6332 300 MS CONTR REPAIR","1 1150 6332 105 HS  CONTR REPAIR",null,"1 1221 6343 105  03 SE  MILEAGE/EXPENSE","2 2214 6131 800 PD  STIPENDS ","1 2561 6151 300 FD  COOKS  SALARY","1 1110 6343 402 EL  MILEAGE/EXPENSE"]
["                   (573)562-7535 fax (573)562-2710",null,null,null,null,null,null,null,null,null,null,null,null,null,null,null,"WCMS",null,"West St. Francois County R-IV Middle School","728 Hwy. M","Park Hills, MO.  63601",null,"1 1110 6410 402 EL   GEN  SUPPLIES","1 1130 6343 300 MS MILEAGE/EXPENSE","1 1150 6343 105 HS  MILEAGE/EXPENSE",null,"1 1221 6343 300  03 SE  MILEAGE/EXPENSE","2 2214 6211 800 PD  RETIREMENT  TEA","1 2561 6151 402 FD  COOKS  SALARY","1 1110 6410 402 EL   GEN  SUPPLIES"]
[" ",null,null,null,null,null,null,{"$f":"IF(A2=\"PURCHASE ORDER\",\"THIS NUMBER MUST APPEAR ON ALL PACKAGES, LABELS, CARTONS, PACKING SLIPS, BILLS OF LADING, INVOICES, AND ALL CORRESPONDANCE REFERRING TO THIS ORDER\",\"\")","v":""},null,null,null,null,null,null,null,null,"WCHS",null,"West St. Francois County R-IV High School","768 Highway M","Park Hills, MO.  63601",null,"1 1110 6410.1 402 EL  TECH  SUPPLIES","1 1130 6410 300 MS  GEN   SUPPLIES","1 1150 6410 105 HS   GEN  SUPPLIES",null,"1 1221 6343 402  03 SE  MILEAGE/EXPENSE","1 2214 6221 800 PD  NON-TEACHER  RET","1 2561 6151 800 FD  COOKS  SALARY","1 1110 6410.1 402 EL  TECH  SUPPLIES"]
[null,null,null,null,null,null,null,null,null,null,null,null,null,null,null,null,"WC_Bus_Maint",null,"West St. Francois County R-IV Bus/Maintenance","1124 Main Street","Leadwood, MO. 63653",null,null,"1 1130 6410.1 300 MS  TECH   SUPPLIES","1 1150 6410.1 105 HS  TECH  SUPPLIES",null,"1 1221 6343 800  03 SE  MILEAGE/EXPENSE","1 2214 6231 800 PD  SOC  SEC ","1 2561 6161 105 FD  PT   COOK SALARY/SUB","***  FUNCTION  1119  : READING  1ST GRANT    "]
["VENDOR NO.",null,null,null,null,"SHIP FREIGHT PREPAID TO:",null,null,null,null,null,null,null,null,null,null,"WC_FS",null,"West St. Francois County R-IV High School","768 Highway M","Park Hills, MO.  63601",null,null,"4 1130 6541 300 MS  GEN  EQUIPMENT","4 1150 6541 105 HS  GEN  EQUIPMENT",null,"1 1221 6410 105  03 SE   GEN SUPPLIES","2 2214 6231 800 PD  SOC  SEC ","1 2561 6161 300 FD  PT   COOK SALARY/SUB","***  FUNCTION  1130  : MIDDLE SCHOOL INSTRUCTION    "]
[null,null,null,null,null,null,{"$f":"IF(I20=\"\",\"\",VLOOKUP(I20,Q4:U12,3))","v":""},null,null,null,null,null,null,null,null,null,"WC_PDC",null,"West St. Francois County R-IV Middle School","728 Hwy. M","Park Hills, MO.  63601",null,null,"***  FUNCTION  1341  : HOME ECONOMICS    ","***  FUNCTION  1341  : HOME ECONOMICS    ",null,"1 1221 6410 300  03 SE   GEN SUPPLIES","1 2214 6232 800 PD  MEDICARE","1 2561 6161 402 FD  PT   COOK SALARY/SUB","1 1130 6319 300 MS  PURCH/TECH  SERV"]
[null,null,null,null,null,null,{"$f":"IF(G11=\"\",\"\",VLOOKUP(I20,Q4:U12,4))","v":""},null,null,null,null,null,null,null,null,null,null,null,null,null,null,null,null,"1 1341 6410 300 HE  GEN  SUPPLIES","2 1341 6112 105 HE  TEACHER  SALARY",null,"1 1221 6410 402  03 SE   GEN SUPPLIES","2 2214 6232 800 PD  MEDICARE","1 2561 6171 300 FD  SICKLEAVE   PAY","1 1130 6332 300 MS CONTR REPAIR"]
[null,null,null,null,null,null,{"$f":"IF(G11=\"\",\"\",VLOOKUP(I20,Q4:U12,5))","v":""},null,null,null,null,null,null,null,null,null,null,null,null,null,null,null,null,"***  FUNCTION  1351  : VOC INDUSTRIAL    TECH    ","2 1341 6211 105 HE  RETIREMENT   TEA",null,"1 1221 6410 800  03 SE   GEN SUPPLIES","2 2214 6312 800 PD  TUITION   REIMBURSMT","1 2561 6221 105 FD  NON  TEACHER  RET","1 1130 6343 300 MS MILEAGE/EXPENSE"]
[null,"Phone",null,"Fax",null,null,"Attention:",null,{"$f":"IF(E20=\"\",\"\",E20)","v":""},null,null,null,null,null,null,null,null,null,null,null,null,null,null,"1 1351 6410 300 IT GEN  SUPPLIES","2 1341 6232 105 HE  MEDICARE",null,null,"1 2214 6319 800 PD  PURC/TECH   SERV","1 2561 6221 300 FD  NON  TEACHER  RET","1 1130 6410 300 MS  GEN   SUPPLIES"]
[null,null,null,null,null,null,null,null,null,null,null,null,null,null,null,null,null,null,null,null,null,null,null,"***  FUNCTION  1411  : STUDENT  ACTIVITIES    ","2 1341 6241 105 HE  MEDICAL   INS",null,null,"1 2214 6343 800 PD  MILEAGE/EXPENSE ","1 2561 6221 402 FD  NON  TEACHER  RET","1 1130 6410.1 300 MS  TECH   SUPPLIES"]
["THIS IS A TAX EXEMPT PURCHASE.  DO NOT INCLUDE STATE SALES TAX OR FEDERAL EXCISE TAX",null,null,null,null,null,null,null,null,null,null,null,null,null,null,null,null,null,null,null,null,null,null,"1 1411 6411.002  SA  MIDDLE  SCHOOL EXP","1 1341 6343 105 HE MILEAGE/EXPENSE",null,null,"1 2214 6410 800 PD  GEN SUPPLIES ","1 2561 6221 800 FD  NON  TEACHER  RET","4 1130 6541 300 MS  GEN  EQUIPMENT"]
["ORDER DATE",null,"DATE WANTED",null,"SHIP VIA",null,"TERMS",null,"IN ACCORDANCE WITH BID OR CONTRACT DATED",null,null,null,null,null,null,null,null,null,null,null,null,null,null,"***  FUNCTION  2120  : GUIDANCE SERVICES    ","1 1341 6410 105 HE  GEN  SUPPLIES",null,null,null,"1 2561 6231 105 FD  SOC  SEC","***  FUNCTION  1150  : HIGH  SCHOOL INSTRUCTION    "]
[null,null,null,null,null,null,null,null,null,null,null,null,null,null,null,null,null,null,null,null,null,null,null,"1 2120 6410 300 GU  GEN   SUPPLIES","***  FUNCTION  1351  : VOC INDUSTRIAL    TECH    ",null,null,null,"1 2561 6231 300 FD  SOC  SEC","1 1150 6319 105 HS  PURCH/TECH SERVICE"]
["FUND APPROPRIATION EXPENDITURE ACCOUNT",null,null,null,"REQUISITIONED BY ",null,null,null,"BUILDING",null,null,null,null,null,null,null,null,null,null,null,null,null,null,"***  FUNCTION  2130  : NURSING SERVICES    ","1 1351 6343 105 IT MILEAGE/EXPENSE",null,null,null,"1 2561 6231 402 FD  SOC  SEC","1 1150 6332 105 HS  CONTR REPAIR"]
[null,null,null,null,null,null,null,null,null,null,null,null,null,null,null,null,null,null,null,null,null,null,null,"1 2130 6410 300 NU  GEN  SUPPLIES","1 1351 6410 105 IT GEN  SUPPLIES",null,null,null,"1 2561 6231 800 FD  SOC  SEC","1 1150 6343 105 HS  MILEAGE/EXPENSE"]
[null,"Quantity","Catalog Number","Description",null,null,null,null,null,"Unit Price","Amount",null,null,null,null,null,null,null,null,null,null,null,null,"***  FUNCTION  2220  : MEDIA SERVICES    ","***  FUNCTION  1341  : HOME ECONOMICS    ",null,null,null,"1 2561 6232 105 FD  MEDICARE","1 1150 6410 105 HS   GEN  SUPPLIES"]
[null,null,null,null,null,null,null,null,null,null,{"$f":"IF(B22=\"\",\"\",B22*J22)","v":""},null,null,null,null,null,null,null,null,null,null,null,null,"1 2220 6319.7 300 T6.B PURCH/TECH  SERV","1 1341 6343 105 HE MILEAGE/EXPENSE",null,null,null,"1 2561 6232 300 FD  MEDICARE","1 1150 6410.1 105 HS  TECH  SUPPLIES"]
[null,null,null,null,null,null,null,null,null,null,"",null,null,null,null,null,null,null,null,null,null,null,null,"1 2220 6410 300 LB   GEN  SUPPLIES","1 1341 6410 105 HE  GEN  SUPPLIES",null,null,null,"1 2561 6232 402 FD  MEDICARE","4 1150 6541 105 HS  GEN  EQUIPMENT"]
[null,null,null,null,null,null,null,null,null,null,"",null,null,null,null,null,null,null,null,null,null,null,null,"1 2220 6441 300 LB  LIBRARY   BOOKS","1 1341 6410 300 HE  GEN  SUPPLIES",null,null,null,"1 2561 6232 800 FD  MEDICARE","***  FUNCTION  1170  : ALTERNATIVE INSTRUCTION    "]
[null,null,null,null,null,null,null,null,null,null,"",null,null,null,null,null,null,null,null,null,null,null,null,"***  FUNCTION  2540  : OPER  OF  PLANT   - CUSTODIAL    ","***  FUNCTION  1411  : STUDENT  ACTIVITIES    ",null,null,null,"1 2561 6241 105 FD  MEDICAL  INS","1 1170 6319 105 AL  PURCH/TECH  SERV"]
[null,null,null,null,null,null,null,null,null,null,"",null,null,null,null,null,null,null,null,null,null,null,null,"1 2540 6410 300 GEN SUPPLIES","1 1411 6121 800 SA  ACTIVITY PAY/PT",null,null,null,"1 2561 6241 300 FD  MEDICAL  INS","1 1170 6410 105 AL  GEN  SUPPLIES"]
[null,null,null,null,null,null,null,null,null,null,"",null,null,null,null,null,null,null,null,null,null,null,null,"***  FUNCTION  2210  : FEDERAL   PROGRAMS    ","1 1411 6131 800 SA  ACTIVITY  PAY/TRS",null,null,null,"1 2561 6241 402 FD  MEDICAL  INS","***  FUNCTION  1191  : SUMMER SCHOOL    "]
[null,null,null,null,null,null,null,null,null,null,"",null,null,null,null,null,null,null,null,null,null,null,null,"1 2210 6319.8 300 21CENT/PURCH  SERVICE","1 1411 6161 800 SA  ACTIVITY  PAY/NT",null,null,null,"1 2561 6261 105 FD   WORKMANS COMP","1 1191 6410 800 SS GEN  SUPPLIES"]
[null,null,null,null,null,null,null,null,null,null,"",null,null,null,null,null,null,null,null,null,null,null,null,"1 2210 6410.8 300 21CENT/GEN SUPPLIES","1 1411 6411 39 SA  CROSS  COUNTRY EXP",null,null,null,"1 2561 6261 300 FD   WORKMANS COMP","***  FUNCTION  1192  : JUVENILE    PROGRAM    "]
[null,null,null,null,null,null,null,null,null,null,"",null,null,null,null,null,null,null,null,null,null,null,null,"***  FUNCTION  2214  : PROFESSIONAL  DEVELOPMENT    ","1 1411 6411.001  SA  ATHLETICS  EXP",null,null,null,"1 2561 6261 402 FD   WORKMANS COMP","1 1192 6319 105 JP PURCH/TECH  SERV"]
[null,null,null,null,null,null,null,null,null,null,"",null,null,null,null,null,null,null,null,null,null,null,null,"2 2214 6312 800 PD  TUITION   REIMBURSMT","1 1411 6411.002  SA  MIDDLE  SCHOOL EXP",null,null,null,"1 2561 6343 402 FD  MILEAGE/EXPENSE","1 1192 6410 105 JP GEN  SUPPLIES"]
[null,null,null,null,null,null,null,null,null,null,"",null,null,null,null,null,null,null,null,null,null,null,null,"1 2214 6319 800 PD  PURC/TECH   SERV","1 1411 6411.003  SA  BAND EXP",null,null,null,"1 2561 6343 800 FD  MILEAGE/EXPENSE","***  FUNCTION  1211  : SPECIAL    PROGRAMS - GIFTED    "]
[null,null,null,null,null,null,null,null,null,null,"",null,null,null,null,null,null,null,null,null,null,null,null,"1 2214 6343 800 PD  MILEAGE/EXPENSE ","1 1411 6411.005  SA  JUNIOR  EXP",null,null,null,"1 2561 6391 105 FD  OTHER PURCH SERV","***  FUNCTION  1221  : SPECIAL    PROGRAMS - EMH    "]
[null,null,null,null,null,null,null,null,null,null,"",null,null,null,null,null,null,null,null,null,null,null,null,"1 2214 6410 800 PD  GEN SUPPLIES ","1 1411 6411.006  SA  BASEBALL  EXP",null,null,null,"1 2561 6410 105 FD  GEN  SUPPLIES","1 1221 6319 402  03 SE  PURCH/TECH SERV"]
[null,null,null,null,null,null,null,null,null,null,"",null,null,null,null,null,null,null,null,null,null,null,null,null,"1 1411 6411.007  SA   ENVIRONMENTAL CLUB",null,null,null,"1 2561 6410 300 FD  GEN  SUPPLIES","1 1221 6343 105  03 SE  MILEAGE/EXPENSE"]
[null,null,null,null,null,null,null,null,null,null,"",null,null,null,null,null,null,null,null,null,null,null,null,null,"1 1411 6411.009  SA  SPIRIT    SQUAD EXP",null,null,null,"1 2561 6410 402 FD  GEN  SUPPLIES","1 1221 6343 300  03 SE  MILEAGE/EXPENSE"]
[null,null,null,null,null,null,null,null,null,null,"",null,null,null,null,null,null,null,null,null,null,null,null,null,"1 1411 6411.011  SA  FCCLA  EXP",null,null,null,"1 2561 6471 105 FD  FOOD  SUPPLIES","1 1221 6343 402  03 SE  MILEAGE/EXPENSE"]
[null,"SHIPPING",null,null,null,null,null,null,null,null,null,null,null,null,null,null,null,null,null,null,null,null,null,null,"1 1411 6411.012  SA  MATH/PHYSICS   EXP",null,null,null,"1 2561 6471 300 FD  FOOD  SUPPLIES","1 1221 6343 800  03 SE  MILEAGE/EXPENSE"]
["*** Bill to Board of Education, West St. Francois County R-IV, at above address",null,null,null,null,null,null,null,null,"Total Amount",null,null,null,null,null,null,null,null,null,null,null,null,null,null,"1 1411 6411.013  SA  BOYS  BASKETBALL",null,null,null,"1 2561 6471 402 FD  FOOD  SUPPLIES","1 1221 6410 105  03 SE   GEN SUPPLIES"]
[null,null,null,null,null,null,null,null,null,{"$f":"IF(K22=\"\",\"\",SUM(K22:K38))","v":""},null,null,null,null,null,null,null,null,null,null,null,null,null,null,"1 1411 6411.014  SA  LIBRARY  CLUB  EXP",null,null,null,"4 2561 6541 105 FD  GEN  EQUIPMENT","1 1221 6410 300  03 SE   GEN SUPPLIES"]
[null,null,null,null,null,null,null,null,null,null,null,null,null,null,null,null,null,null,null,null,null,null,null,null,"1 1411 6411.015  SA  MISC  EXP",null,null,null,"4 2561 6541 402 FD  GEN  EQUIPMENT","1 1221 6410 402  03 SE   GEN SUPPLIES"]
[null,null,null,null,null,null,null,null,null,{"$f":"IF($K$38=\"\",\"IF YOU SEE THIS YOU HAVE NOT ENTERED SHIPPING CHARGES\",\"\")","v":"IF YOU SEE THIS YOU HAVE NOT ENTERED SHIPPING CHARGES"},null,null,null,null,null,null,null,null,null,null,null,null,null,null,"1 1411 6411.016  SA  VOCAL MUSIC  EXP",null,null,null,"*** FUNC TION  3911  : SUMMER  FOOD   SERVICE  ","1 1221 6410 800  03 SE   GEN SUPPLIES"]
[null,null,null,{"$f":"IF(A2=\"PURCHASE ORDER\",\"Superintendent\",\"Building Principal\")","v":"Building Principal"},null,null,null,null,null,null,null,null,null,null,null,null,null,null,null,null,null,null,null,null,"1 1411 6411.017  SA  NHS  EXP",null,null,null,"1 3911 6161 105 SS COOK SALARY ","***  FUNCTION  1231  : SPECIAL    PROGRAMS - SPEECH    "]
[null,null,null,null,null,null,null,null,null,null,null,null,null,null,null,null,null,null,null,null,null,null,null,null,"1 1411 6411.018  SA  GIRLS   BASKETBALL",null,null,null,"1 3911 6161 402 SS COOK SALARY ","***  FUNCTION  1234  : HOMEBOUND   INSTRUCTION    "]
[null,null,null,null,null,null,null,null,null,null,null,null,null,null,null,null,null,null,null,null,null,null,null,null,"1 1411 6411.019  SA  FBLA  EXP",null,null,null,"1 3911 6221 105 SS NON  TEACHER  RET ","***  FUNCTION  1241  : EMOT/BEHAV DISTURBED    "]
[null,null,null,null,null,null,null,null,null,null,null,null,null,null,null,null,null,null,null,null,null,null,null,null,"1 1411 6411.02  SA  REFLECTOR EXP",null,null,null,"1 3911 6221 402 SS NON  TEACHER  RET ","***  FUNCTION  1251  : COMPENS  EDUC  - TITLE  1    "]
[null,null,null,null,null,null,null,null,null,null,null,null,null,null,null,null,null,null,null,null,null,null,null,null,"1 1411 6411.022  SA  STU  COUNCIL  EXP",null,null,null,"1 3911 6231 105 SS SOC  SEC ","1 1251 6319 402  50 T1 PURCH/TECH  SERVICE "]
[null,null,null,null,null,null,null,null,null,null,null,null,null,null,null,null,null,null,null,null,null,null,null,null,"1 1411 6411.023  SA  VOLLEYBALL EXP",null,null,null,"1 3911 6231 402 SS SOC  SEC ","***  FUNCTION  1261  : SPECIAL    PROGRAMS - LD    "]
[null,null,null,null,null,null,null,null,null,null,null,null,null,null,null,null,null,null,null,null,null,null,null,null,"1 1411 6411.025  SA  INSTRUC  ACTIV  EXP",null,null,null,"1 3911 6232 105 SS MEDICARE","***  FUNCTION  1281  : EARLY  CHILDHOOD/SPEC    EDUC    "]
[null,null,null,null,null,null,null,null,null,null,null,null,null,null,null,null,null,null,null,null,null,null,null,null,"1 1411 6411.026  SA  SPECIAL   ED  EXP",null,null,null,"1 3911 6232 402 SS MEDICARE","1 1281 6319 402 42 EC  PURCH/TECH  SERVICE "]
[null,null,null,null,null,null,null,null,null,null,null,null,null,null,null,null,null,null,null,null,null,null,null,null,"1 1411 6411.029  SA  WCTSA EXP"]
[null,null,null,null,null,null,null,null,null,null,null,null,null,null,null,null,null,null,null,null,null,null,null,null,"1 1411 6411.031  SA  DISTR   TOURNEY EXP"]
[null,null,null,null,null,null,null,null,null,null,null,null,null,null,null,null,null,null,null,null,null,null,null,null,"1 1411 6411.032  SA   COMMUNITY SERVICE"]
[null,null,null,null,null,null,null,null,null,null,null,null,null,null,null,null,null,null,null,null,null,null,null,null,"1 1411 6411.033  SA  FCA",null,null,null,"1 3911 6491 300 SS FOOD SUPPLIES ","1 1331 6410 105 BU  GEN SUPPLIES "]
[null,null,null,null,null,null,null,null,null,null,null,null,null,null,null,null,null,null,null,null,null,null,null,null,"1 1411 6411.035  SA  SOFTBALL",null,null,null,"1 3911 6491 402 SS FOOD SUPPLIES ","***  FUNCTION  1332  : VOCATIONAL BUSINESS    GRANT    "]
[null,null,null,null,null,null,null,null,null,null,null,null,null,null,null,null,null,null,null,null,null,null,null,null,"1 1411 6411.037  SA  SPEC  OLYMPICS",null,null,null,null,"***  FUNCTION  1341  : HOME ECONOMICS    "]
[null,null,null,null,null,null,null,null,null,null,null,null,null,null,null,null,null,null,null,null,null,null,null,null,"1 1411 6411.038  SA  GOLF EXP",null,null,null,null,"1 1341 6343 105 HE MILEAGE/EXPENSE"]
[null,null,null,null,null,null,null,null,null,null,null,null,null,null,null,null,null,null,null,null,null,null,null,null,"***  FUNCTION  2120  : GUIDANCE SERVICES    ",null,null,null,null,"1 1341 6410 105 HE  GEN  SUPPLIES"]
[null,null,null,null,null,null,null,null,null,null,null,null,null,null,null,null,null,null,null,null,null,null,null,null,"1 2120 6316 105 GU  TEST   SCORING",null,null,null,null,"1 1341 6410 300 HE  GEN  SUPPLIES"]
[null,null,null,null,null,null,null,null,null,null,null,null,null,null,null,null,null,null,null,null,null,null,null,null,"1 2120 6316.1 105 GU TEST  SCORING/ACT",null,null,null,null,"***  FUNCTION  1351  : VOC INDUSTRIAL    TECH    "]
[null,null,null,null,null,null,null,null,null,null,null,null,null,null,null,null,null,null,null,null,null,null,null,null,"1 2120 6410 105 GU  GEN   SUPPLIES",null,null,null,null,"1 1351 6343 105 IT MILEAGE/EXPENSE"]
[null,null,null,null,null,null,null,null,null,null,null,null,null,null,null,null,null,null,null,null,null,null,null,null,"***  FUNCTION  2130  : NURSING SERVICES    ",null,null,null,null,"1 1351 6410 105 IT GEN  SUPPLIES"]
[null,null,null,null,null,null,null,null,null,null,null,null,null,null,null,null,null,null,null,null,null,null,null,null,"1 2130 6410 105 NU  GEN  SUPPLIES",null,null,null,null,"1 1351 6410 300 IT GEN  SUPPLIES"]
[null,null,null,null,null,null,null,null,null,null,null,null,null,null,null,null,null,null,null,null,null,null,null,null,"***  FUNCTION  2220  : MEDIA SERVICES    ",null,null,null,null,"***  FUNCTION  1361  : VOC-TECH    ENHANCEMENT GRNT    "]
[null,null,null,null,null,null,null,null,null,null,null,null,null,null,null,null,null,null,null,null,null,null,null,null,"1 2220 6319.7 105 T6.B PURCH/TECH  SERV",null,null,null,null,"1 1361 6343 105 VE MILEAGE/EXPENSE"]
[null,null,null,null,null,null,null,null,null,null,null,null,null,null,null,null,null,null,null,null,null,null,null,null,"1 2220 6410 105 LB   GEN  SUPPLIES",null,null,null,null,"1 1361 6410 105 VE GEN SUPPLIES"]
[null,null,null,null,null,null,null,null,null,null,null,null,null,null,null,null,null,null,null,null,null,null,null,null,"1 2220 6441 105 LB  LIBRARY   BOOKS",null,null,null,null,"***  FUNCTION  1391  : OTHER CAREER  EDUCATION    "]
[null,null,null,null,null,null,null,null,null,null,null,null,null,null,null,null,null,null,null,null,null,null,null,null,"***  FUNCTION  2540  : OPER  OF  PLANT   - CUSTODIAL    ",null,null,null,null,"1 1391 6319 105 JG  PURCH/TECH SERVICE"]
[null,null,null,null,null,null,null,null,null,null,null,null,null,null,null,null,null,null,null,null,null,null,null,null,"1 2540 6319 105 OM   PURC/TECH  SERV",null,null,null,null,"1 1391 6343 105 JG  MILEAGE/EXPENSE"]
[null,null,null,null,null,null,null,null,null,null,null,null,null,null,null,null,null,null,null,null,null,null,null,null,"1 2540 6335 105 OM   WATER/SEWER",null,null,null,null,"1 1391 6410 105 JG   GEN  SUPPLIES"]
[null,null,null,null,null,null,null,null,null,null,null,null,null,null,null,null,null,null,null,null,null,null,null,null,"1 2540 6336 105 OM  TRASH    REMOVAL",null,null,null,null,"***  FUNCTION  1411  : STUDENT  ACTIVITIES    "]
[null,null,null,null,null,null,null,null,null,null,null,null,null,null,null,null,null,null,null,null,null,null,null,null,"1 2540 6339 105 OM   OTH/PEST    CONTROL",null,null,null,null,"1 1411 6121 800 SA  ACTIVITY PAY/PT"]
[null,null,null,null,null,null,null,null,null,null,null,null,null,null,null,null,null,null,null,null,null,null,null,null,"1 2540 6351 105 OM   PROPERTY INSURANCE",null,null,null,null,"1 1411 6131 800 SA  ACTIVITY  PAY/TRS"]
[null,null,null,null,null,null,null,null,null,null,null,null,null,null,null,null,null,null,null,null,null,null,null,null,null,null,null,null,null,"1 1411 6161 800 SA  ACTIVITY  PAY/NT"]
[null,null,null,null,null,null,null,null,null,null,null,null,null,null,null,null,null,null,null,null,null,null,null,null,null,null,null,null,null,"1 1411 6211 800 SA  RETIREMENT  TEA"]
[null,null,null,null,null,null,null,null,null,null,null,null,null,null,null,null,null,null,null,null,null,null,null,null,null,null,null,null,null,"1 1411 6221 800 SA  NON-TEACHER  RET"]
[null,null,null,null,null,null,null,null,null,null,null,null,null,null,null,null,null,null,null,null,null,null,null,null,null,null,null,null,null,"1 1411 6231 800 SA  SOC  SEC"]
[null,null,null,null,null,null,null,null,null,null,null,null,null,null,null,null,null,null,null,null,null,null,null,null,null,null,null,null,null,"1 1411 6232 800 SA  MEDICARE"]
[null,null,null,null,null,null,null,null,null,null,null,null,null,null,null,null,null,null,null,null,null,null,null,null,null,null,null,null,null,"1 1411 6411 39 SA  CROSS  COUNTRY EXP"]
[null,null,null,null,null,null,null,null,null,null,null,null,null,null,null,null,null,null,null,null,null,null,null,null,null,null,null,null,null,"1 1411 6411.001  SA  ATHLETICS  EXP"]
[null,null,null,null,null,null,null,null,null,null,null,null,null,null,null,null,null,null,null,null,null,null,null,null,null,null,null,null,null,"1 1411 6411.002  SA  MIDDLE  SCHOOL EXP"]
[null,null,null,null,null,null,null,null,null,null,null,null,null,null,null,null,null,null,null,null,null,null,null,null,null,null,null,null,null,"1 1411 6411.003  SA  BAND EXP"]
[null,null,null,null,null,null,null,null,null,null,null,null,null,null,null,null,null,null,null,null,null,null,null,null,null,null,null,null,null,"1 1411 6411.005  SA  JUNIOR  EXP"]
[null,null,null,null,null,null,null,null,null,null,null,null,null,null,null,null,null,null,null,null,null,null,null,null,null,null,null,null,null,"1 1411 6411.006  SA  BASEBALL  EXP"]
[null,null,null,null,null,null,null,null,null,null,null,null,null,null,null,null,null,null,null,null,null,null,null,null,null,null,null,null,null,"1 1411 6411.007  SA   ENVIRONMENTAL CLUB"]
[null,null,null,null,null,null,null,null,null,null,null,null,null,null,null,null,null,null,null,null,null,null,null,null,null,null,null,null,null,"1 1411 6411.009  SA  SPIRIT    SQUAD EXP"]
[null,null,null,null,null,null,null,null,null,null,null,null,null,null,null,null,null,null,null,null,null,null,null,null,null,null,null,null,null,"1 1411 6411.01  SA  ELEM GEN EXP"]
[null,null,null,null,null,null,null,null,null,null,null,null,null,null,null,null,null,null,null,null,null,null,null,null,null,null,null,null,null,"1 1411 6411.011  SA  FCCLA  EXP"]
[null,null,null,null,null,null,null,null,null,null,null,null,null,null,null,null,null,null,null,null,null,null,null,null,null,null,null,null,null,"1 1411 6411.012  SA  MATH/PHYSICS   EXP"]
[null,null,null,null,null,null,null,null,null,null,null,null,null,null,null,null,null,null,null,null,null,null,null,null,null,null,null,null,null,"1 1411 6411.013  SA  BOYS  BASKETBALL"]
[null,null,null,null,null,null,null,null,null,null,null,null,null,null,null,null,null,null,null,null,null,null,null,null,null,null,null,null,null,"1 1411 6411.014  SA  LIBRARY  CLUB  EXP"]
[null,null,null,null,null,null,null,null,null,null,null,null,null,null,null,null,null,null,null,null,null,null,null,null,null,null,null,null,null,"1 1411 6411.015  SA  MISC  EXP"]
[null,null,null,null,null,null,null,null,null,null,null,null,null,null,null,null,null,null,null,null,null,null,null,null,null,null,null,null,null,"1 1411 6411.016  SA  VOCAL MUSIC  EXP"]
[null,null,null,null,null,null,null,null,null,null,null,null,null,null,null,null,null,null,null,null,null,null,null,null,null,null,null,null,null,"1 1411 6411.017  SA  NHS  EXP"]
[null,null,null,null,null,null,null,null,null,null,null,null,null,null,null,null,null,null,null,null,null,null,null,null,null,null,null,null,null,"1 1411 6411.018  SA  GIRLS   BASKETBALL"]
[null,null,null,null,null,null,null,null,null,null,null,null,null,null,null,null,null,null,null,null,null,null,null,null,null,null,null,null,null,"1 1411 6411.019  SA  FBLA  EXP"]
[null,null,null,null,null,null,null,null,null,null,null,null,null,null,null,null,null,null,null,null,null,null,null,null,null,null,null,null,null,"1 1411 6411.02  SA  REFLECTOR EXP"]
[null,null,null,null,null,null,null,null,null,null,null,null,null,null,null,null,null,null,null,null,null,null,null,null,null,null,null,null,null,"1 1411 6411.022  SA  STU  COUNCIL  EXP"]
[null,null,null,null,null,null,null,null,null,null,null,null,null,null,null,null,null,null,null,null,null,null,null,null,null,null,null,null,null,"1 1411 6411.023  SA  VOLLEYBALL EXP"]
[null,null,null,null,null,null,null,null,null,null,null,null,null,null,null,null,null,null,null,null,null,null,null,null,null,null,null,null,null,"1 1411 6411.025  SA  INSTRUC  ACTIV  EXP"]
[null,null,null,null,null,null,null,null,null,null,null,null,null,null,null,null,null,null,null,null,null,null,null,null,null,null,null,null,null,"1 1411 6411.026  SA  SPECIAL   ED  EXP"]
[null,null,null,null,null,null,null,null,null,null,null,null,null,null,null,null,null,null,null,null,null,null,null,null,null,null,null,null,null,"1 1411 6411.029  SA  WCTSA EXP"]
[null,null,null,null,null,null,null,null,null,null,null,null,null,null,null,null,null,null,null,null,null,null,null,null,null,null,null,null,null,"1 1411 6411.031  SA  DISTR   TOURNEY EXP"]
[null,null,null,null,null,null,null,null,null,null,null,null,null,null,null,null,null,null,null,null,null,null,null,null,null,null,null,null,null,"1 1411 6411.032  SA   COMMUNITY SERVICE"]
[null,null,null,null,null,null,null,null,null,null,null,null,null,null,null,null,null,null,null,null,null,null,null,null,null,null,null,null,null,"1 1411 6411.033  SA  FCA"]
[null,null,null,null,null,null,null,null,null,null,null,null,null,null,null,null,null,null,null,null,null,null,null,null,null,null,null,null,null,"1 1411 6411.035  SA  SOFTBALL"]
[null,null,null,null,null,null,null,null,null,null,null,null,null,null,null,null,null,null,null,null,null,null,null,null,null,null,null,null,null,"1 1411 6411.037  SA  SPEC  OLYMPICS"]
[null,null,null,null,null,null,null,null,null,null,null,null,null,null,null,null,null,null,null,null,null,null,null,null,null,null,null,null,null,"1 1411 6411.038  SA  GOLF EXP"]
[null,null,null,null,null,null,null,null,null,null,null,null,null,null,null,null,null,null,null,null,null,null,null,null,null,null,null,null,null,"***  FUNCTION  1910  : TUITION  - OTHER  SCHOOLS    "]
[null,null,null,null,null,null,null,null,null,null,null,null,null,null,null,null,null,null,null,null,null,null,null,null,null,null,null,null,null,"***  FUNCTION  1911  :    "]
[null,null,null,null,null,null,null,null,null,null,null,null,null,null,null,null,null,null,null,null,null,null,null,null,null,null,null,null,null,"2 1911 6311 105 TU  DUAL CREDIT/MAC"]
[null,null,null,null,null,null,null,null,null,null,null,null,null,null,null,null,null,null,null,null,null,null,null,null,null,null,null,null,null,"***  FUNCTION  1921  :    "]
[null,null,null,null,null,null,null,null,null,null,null,null,null,null,null,null,null,null,null,null,null,null,null,null,null,null,null,null,null,"2 1921 6311 105 TU  AREA VOC/TUITION "]
[null,null,null,null,null,null,null,null,null,null,null,null,null,null,null,null,null,null,null,null,null,null,null,null,null,null,null,null,null,"***  FUNCTION  1931  :    "]
[null,null,null,null,null,null,null,null,null,null,null,null,null,null,null,null,null,null,null,null,null,null,null,null,null,null,null,null,null,"***  FUNCTION  1941  : CONTRACTED  EDUC  SERVICES    "]
[null,null,null,null,null,null,null,null,null,null,null,null,null,null,null,null,null,null,null,null,null,null,null,null,null,null,null,null,null,"2 1941 6311 800 CE  CONTR  EDUC  SERV "]
[null,null,null,null,null,null,null,null,null,null,null,null,null,null,null,null,null,null,null,null,null,null,null,null,null,null,null,null,null,"***  FUNCTION  1942  : SUPPLEMENTAL EDUC  SERV    "]
[null,null,null,null,null,null,null,null,null,null,null,null,null,null,null,null,null,null,null,null,null,null,null,null,null,null,null,null,null,"***  FUNCTION  2111  : TITLE  I TESTING    "]
[null,null,null,null,null,null,null,null,null,null,null,null,null,null,null,null,null,null,null,null,null,null,null,null,null,null,null,null,null,"***  FUNCTION  2112  : ATTENDANCE  SERVICES    "]
[null,null,null,null,null,null,null,null,null,null,null,null,null,null,null,null,null,null,null,null,null,null,null,null,null,null,null,null,null,"1 2120 6316 105 GU  TEST   SCORING"]
[null,null,null,null,null,null,null,null,null,null,null,null,null,null,null,null,null,null,null,null,null,null,null,null,null,null,null,null,null,"1 2120 6316 300 GU  TEST   SCORING"]
[null,null,null,null,null,null,null,null,null,null,null,null,null,null,null,null,null,null,null,null,null,null,null,null,null,null,null,null,null,"1 2120 6316 402 GU  TEST   SCORING"]
[null,null,null,null,null,null,null,null,null,null,null,null,null,null,null,null,null,null,null,null,null,null,null,null,null,null,null,null,null,"1 2120 6316.1 105 GU TEST  SCORING/ACT"]
[null,null,null,null,null,null,null,null,null,null,null,null,null,null,null,null,null,null,null,null,null,null,null,null,null,null,null,null,null,"1 2120 6410 105 GU  GEN   SUPPLIES"]
[null,null,null,null,null,null,null,null,null,null,null,null,null,null,null,null,null,null,null,null,null,null,null,null,null,null,null,null,null,"1 2120 6410 300 GU  GEN   SUPPLIES"]
[null,null,null,null,null,null,null,null,null,null,null,null,null,null,null,null,null,null,null,null,null,null,null,null,null,null,null,null,null,"1 2120 6410 402 GU  GEN   SUPPLIES"]
[null,null,null,null,null,null,null,null,null,null,null,null,null,null,null,null,null,null,null,null,null,null,null,null,null,null,null,null,null,"***  FUNCTION  2130  : NURSING SERVICES    "]
[null,null,null,null,null,null,null,null,null,null,null,null,null,null,null,null,null,null,null,null,null,null,null,null,null,null,null,null,null,"1 2130 6410 105 NU  GEN  SUPPLIES"]
[null,null,null,null,null,null,null,null,null,null,null,null,null,null,null,null,null,null,null,null,null,null,null,null,null,null,null,null,null,"1 2130 6410 300 NU  GEN  SUPPLIES"]
[null,null,null,null,null,null,null,null,null,null,null,null,null,null,null,null,null,null,null,null,null,null,null,null,null,null,null,null,null,"1 2130 6410 402 NU  GEN  SUPPLIES"]
[null,null,null,null,null,null,null,null,null,null,null,null,null,null,null,null,null,null,null,null,null,null,null,null,null,null,null,null,null,"***  FUNCTION  2132  : HEALTH  SERVICES    "]
[null,null,null,null,null,null,null,null,null,null,null,null,null,null,null,null,null,null,null,null,null,null,null,null,null,null,null,null,null,"1 2132 6319 402 HE  CONTR HEALTH SERV"]
[null,null,null,null,null,null,null,null,null,null,null,null,null,null,null,null,null,null,null,null,null,null,null,null,null,null,null,null,null,"1 2132 6319 800 HE  CONTR HEALTH SERV"]
[null,null,null,null,null,null,null,null,null,null,null,null,null,null,null,null,null,null,null,null,null,null,null,null,null,null,null,null,null,"***  FUNCTION  2142  : PSYCHOL/EVAL SERVICES    "]
[null,null,null,null,null,null,null,null,null,null,null,null,null,null,null,null,null,null,null,null,null,null,null,null,null,null,null,null,null,"***  FUNCTION  2210  : FEDERAL   PROGRAMS    "]
[null,null,null,null,null,null,null,null,null,null,null,null,null,null,null,null,null,null,null,null,null,null,null,null,null,null,null,null,null,"1 2210 6319.6 105 T5 PURCH/TECH  SERV"]
[null,null,null,null,null,null,null,null,null,null,null,null,null,null,null,null,null,null,null,null,null,null,null,null,null,null,null,null,null,"1 2210 6319.6 300 T5 PURCH/TECH  SERV"]
[null,null,null,null,null,null,null,null,null,null,null,null,null,null,null,null,null,null,null,null,null,null,null,null,null,null,null,null,null,"1 2210 6319.6 402 T5 PURCH/TECH  SERV"]
[null,null,null,null,null,null,null,null,null,null,null,null,null,null,null,null,null,null,null,null,null,null,null,null,null,null,null,null,null,"1 2210 6319.8 105 21CENT/PURCH  SERVICE"]
[null,null,null,null,null,null,null,null,null,null,null,null,null,null,null,null,null,null,null,null,null,null,null,null,null,null,null,null,null,"1 2210 6319.8 300 21CENT/PURCH  SERVICE"]
[null,null,null,null,null,null,null,null,null,null,null,null,null,null,null,null,null,null,null,null,null,null,null,null,null,null,null,null,null,"1 2210 6319.8 402 21CENT/PURCH  SERVICE"]
[null,null,null,null,null,null,null,null,null,null,null,null,null,null,null,null,null,null,null,null,null,null,null,null,null,null,null,null,null,"1 2210 6343.8 105 21CENT/MILEAGE/EXPENS"]
[null,null,null,null,null,null,null,null,null,null,null,null,null,null,null,null,null,null,null,null,null,null,null,null,null,null,null,null,null,"1 2210 6343.8 402 21CENT/MILEAGE/EXPENS"]
[null,null,null,null,null,null,null,null,null,null,null,null,null,null,null,null,null,null,null,null,null,null,null,null,null,null,null,null,null,"1 2210 6410.8 105 21CENT/GEN SUPPLIES"]
[null,null,null,null,null,null,null,null,null,null,null,null,null,null,null,null,null,null,null,null,null,null,null,null,null,null,null,null,null,"1 2210 6410.8 300 21CENT/GEN SUPPLIES"]
[null,null,null,null,null,null,null,null,null,null,null,null,null,null,null,null,null,null,null,null,null,null,null,null,null,null,null,null,null,"1 2210 6410.8 402 21CENT/GEN SUPPLIES"]
[null,null,null,null,null,null,null,null,null,null,null,null,null,null,null,null,null,null,null,null,null,null,null,null,null,null,null,null,null,"***  FUNCTION  2211  : CAREER  LADDER    "]
[null,null,null,null,null,null,null,null,null,null,null,null,null,null,null,null,null,null,null,null,null,null,null,null,null,null,null,null,null,"***  FUNCTION  2213  : IMPROVEMT  OF  INSTRUCTION    "]
[null,null,null,null,null,null,null,null,null,null,null,null,null,null,null,null,null,null,null,null,null,null,null,null,null,null,null,null,null,"1 2213 6319 402  50 T1 PURCH/TECH  SERVICE "]
[null,null,null,null,null,null,null,null,null,null,null,null,null,null,null,null,null,null,null,null,null,null,null,null,null,null,null,null,null,"***  FUNCTION  2214  : PROFESSIONAL  DEVELOPMENT    "]
[null,null,null,null,null,null,null,null,null,null,null,null,null,null,null,null,null,null,null,null,null,null,null,null,null,null,null,null,null,"2 2214 6312 800 PD  TUITION   REIMBURSMT"]
[null,null,null,null,null,null,null,null,null,null,null,null,null,null,null,null,null,null,null,null,null,null,null,null,null,null,null,null,null,"1 2214 6319 800 PD  PURC/TECH   SERV"]
[null,null,null,null,null,null,null,null,null,null,null,null,null,null,null,null,null,null,null,null,null,null,null,null,null,null,null,null,null,"1 2214 6343 800 PD  MILEAGE/EXPENSE "]
[null,null,null,null,null,null,null,null,null,null,null,null,null,null,null,null,null,null,null,null,null,null,null,null,null,null,null,null,null,"1 2214 6410 800 PD  GEN SUPPLIES "]
[null,null,null,null,null,null,null,null,null,null,null,null,null,null,null,null,null,null,null,null,null,null,null,null,null,null,null,null,null,"***  FUNCTION  2219  : GOALS  2000  - LOCAL   REFORM    "]
[null,null,null,null,null,null,null,null,null,null,null,null,null,null,null,null,null,null,null,null,null,null,null,null,null,null,null,null,null,"***  FUNCTION  2220  : MEDIA SERVICES    "]
[null,null,null,null,null,null,null,null,null,null,null,null,null,null,null,null,null,null,null,null,null,null,null,null,null,null,null,null,null,"1 2220 6319.7 105 T6.B PURCH/TECH  SERV"]
[null,null,null,null,null,null,null,null,null,null,null,null,null,null,null,null,null,null,null,null,null,null,null,null,null,null,null,null,null,"1 2220 6319.7 300 T6.B PURCH/TECH  SERV"]
[null,null,null,null,null,null,null,null,null,null,null,null,null,null,null,null,null,null,null,null,null,null,null,null,null,null,null,null,null,"1 2220 6319.7 402 T6.B PURCH/TECH  SERV"]
[null,null,null,null,null,null,null,null,null,null,null,null,null,null,null,null,null,null,null,null,null,null,null,null,null,null,null,null,null,"1 2220 6410 105 LB   GEN  SUPPLIES"]
[null,null,null,null,null,null,null,null,null,null,null,null,null,null,null,null,null,null,null,null,null,null,null,null,null,null,null,null,null,"1 2220 6410 300 LB   GEN  SUPPLIES"]
[null,null,null,null,null,null,null,null,null,null,null,null,null,null,null,null,null,null,null,null,null,null,null,null,null,null,null,null,null,"1 2220 6410 402 LB   GEN  SUPPLIES"]
[null,null,null,null,null,null,null,null,null,null,null,null,null,null,null,null,null,null,null,null,null,null,null,null,null,null,null,null,null,"1 2220 6441 105 LB  LIBRARY   BOOKS"]
[null,null,null,null,null,null,null,null,null,null,null,null,null,null,null,null,null,null,null,null,null,null,null,null,null,null,null,null,null,"1 2220 6441 300 LB  LIBRARY   BOOKS"]
[null,null,null,null,null,null,null,null,null,null,null,null,null,null,null,null,null,null,null,null,null,null,null,null,null,null,null,null,null,"1 2220 6441 402 LB  LIBRARY   BOOKS"]
[null,null,null,null,null,null,null,null,null,null,null,null,null,null,null,null,null,null,null,null,null,null,null,null,null,null,null,null,null,"***  FUNCTION  2223  : AUDIO VISUAL  SERVICES    "]
[null,null,null,null,null,null,null,null,null,null,null,null,null,null,null,null,null,null,null,null,null,null,null,null,null,null,null,null,null,"1 2223 6319 800 E"]
[null,null,null,null,null,null,null,null,null,null,null,null,null,null,null,null,null,null,null,null,null,null,null,null,null,null,null,null,null,"1 2223 6361 800 E"]
[null,null,null,null,null,null,null,null,null,null,null,null,null,null,null,null,null,null,null,null,null,null,null,null,null,null,null,null,null,"***  FUNCTION  2310  : BD OF EDUC SERVICES    "]
[null,null,null,null,null,null,null,null,null,null,null,null,null,null,null,null,null,null,null,null,null,null,null,null,null,null,null,null,null,"1 2310 6319 800 BE  PURC/TECH   SERV"]
[null,null,null,null,null,null,null,null,null,null,null,null,null,null,null,null,null,null,null,null,null,null,null,null,null,null,null,null,null,"1 2310 6343 800 BE  MILEAGE/EXPENSE"]
[null,null,null,null,null,null,null,null,null,null,null,null,null,null,null,null,null,null,null,null,null,null,null,null,null,null,null,null,null,"1 2310 6352 800 BE  LIABILITY   INS"]
[null,null,null,null,null,null,null,null,null,null,null,null,null,null,null,null,null,null,null,null,null,null,null,null,null,null,null,null,null,"1 2310 6353 800 BE  TREAS  BONDS"]
[null,null,null,null,null,null,null,null,null,null,null,null,null,null,null,null,null,null,null,null,null,null,null,null,null,null,null,null,null,"1 2310 6362 800 BE  ADVERTISING"]
[null,null,null,null,null,null,null,null,null,null,null,null,null,null,null,null,null,null,null,null,null,null,null,null,null,null,null,null,null,"1 2310 6371 800 BE DUES/FEES"]
[null,null,null,null,null,null,null,null,null,null,null,null,null,null,null,null,null,null,null,null,null,null,null,null,null,null,null,null,null,"1 2310 6410 800 BE   GEN  SUPPLIES"]
[null,null,null,null,null,null,null,null,null,null,null,null,null,null,null,null,null,null,null,null,null,null,null,null,null,null,null,null,null,"***  FUNCTION  2320  : EXECUTIVE  ADMINISTRATION    "]
[null,null,null,null,null,null,null,null,null,null,null,null,null,null,null,null,null,null,null,null,null,null,null,null,null,null,null,null,null,"1 2320 6319 800 EA  PURC/TECH   SERV"]
[null,null,null,null,null,null,null,null,null,null,null,null,null,null,null,null,null,null,null,null,null,null,null,null,null,null,null,null,null,"1 2320 6334 800 EA  LEASE/RENTAL"]
[null,null,null,null,null,null,null,null,null,null,null,null,null,null,null,null,null,null,null,null,null,null,null,null,null,null,null,null,null,"1 2320 6343 800 EA  MILEAGE/EXPENSE"]
[null,null,null,null,null,null,null,null,null,null,null,null,null,null,null,null,null,null,null,null,null,null,null,null,null,null,null,null,null,"1 2320 6361 800 EA  POSTAGE"]
[null,null,null,null,null,null,null,null,null,null,null,null,null,null,null,null,null,null,null,null,null,null,null,null,null,null,null,null,null,"1 2320 6371 800 EA DUES/FEES"]
[null,null,null,null,null,null,null,null,null,null,null,null,null,null,null,null,null,null,null,null,null,null,null,null,null,null,null,null,null,"1 2320 6398 800 EA  OTH EXPENSE/REFUND"]
[null,null,null,null,null,null,null,null,null,null,null,null,null,null,null,null,null,null,null,null,null,null,null,null,null,null,null,null,null,"1 2320 6410 800 EA  GEN  SUPPLIES"]
[null,null,null,null,null,null,null,null,null,null,null,null,null,null,null,null,null,null,null,null,null,null,null,null,null,null,null,null,null,"***  FUNCTION  2400  : BLD  LEVEL  ADMINISTRATION    "]
[null,null,null,null,null,null,null,null,null,null,null,null,null,null,null,null,null,null,null,null,null,null,null,null,null,null,null,null,null,"1 2400 6343 105 BL  MILEAGE/EXPENSE"]
[null,null,null,null,null,null,null,null,null,null,null,null,null,null,null,null,null,null,null,null,null,null,null,null,null,null,null,null,null,"1 2400 6343 300 BL  MILEAGE/EXPENSE"]
[null,null,null,null,null,null,null,null,null,null,null,null,null,null,null,null,null,null,null,null,null,null,null,null,null,null,null,null,null,"1 2400 6343 402 BL  MILEAGE/EXPENSE"]
[null,null,null,null,null,null,null,null,null,null,null,null,null,null,null,null,null,null,null,null,null,null,null,null,null,null,null,null,null,"1 2400 6343 402  42 EC  MILEAGE/EXPENSE"]
[null,null,null,null,null,null,null,null,null,null,null,null,null,null,null,null,null,null,null,null,null,null,null,null,null,null,null,null,null,"1 2400 6361 105 BL  POSTAGE"]
[null,null,null,null,null,null,null,null,null,null,null,null,null,null,null,null,null,null,null,null,null,null,null,null,null,null,null,null,null,"1 2400 6361 300 BL  POSTAGE"]
[null,null,null,null,null,null,null,null,null,null,null,null,null,null,null,null,null,null,null,null,null,null,null,null,null,null,null,null,null,"1 2400 6361 402 BL  POSTAGE"]
[null,null,null,null,null,null,null,null,null,null,null,null,null,null,null,null,null,null,null,null,null,null,null,null,null,null,null,null,null,"1 2400 6371 105 BL DUES/FEES"]
[null,null,null,null,null,null,null,null,null,null,null,null,null,null,null,null,null,null,null,null,null,null,null,null,null,null,null,null,null,"1 2400 6371 300 BL DUES/FEES"]
[null,null,null,null,null,null,null,null,null,null,null,null,null,null,null,null,null,null,null,null,null,null,null,null,null,null,null,null,null,"1 2400 6371 402 E"]
[null,null,null,null,null,null,null,null,null,null,null,null,null,null,null,null,null,null,null,null,null,null,null,null,null,null,null,null,null,"***  FUNCTION  2540  : OPER  OF  PLANT   - CUSTODIAL    "]
[null,null,null,null,null,null,null,null,null,null,null,null,null,null,null,null,null,null,null,null,null,null,null,null,null,null,null,null,null,"1 2540 6319 105 OM   PURC/TECH  SERV"]
[null,null,null,null,null,null,null,null,null,null,null,null,null,null,null,null,null,null,null,null,null,null,null,null,null,null,null,null,null,"1 2540 6319 402 OM   PURC/TECH  SERV"]
[null,null,null,null,null,null,null,null,null,null,null,null,null,null,null,null,null,null,null,null,null,null,null,null,null,null,null,null,null,"1 2540 6319 800 OM   PURC/TECH  SERV"]
[null,null,null,null,null,null,null,null,null,null,null,null,null,null,null,null,null,null,null,null,null,null,null,null,null,null,null,null,null,"1 2552 6319 800 PT  PURC/TECH  SERV"]
[null,null,null,null,null,null,null,null,null,null,null,null,null,null,null,null,null,null,null,null,null,null,null,null,null,null,null,null,null,"1 2552 6332 800 PT  CONTR REPAIR"]
[null,null,null,null,null,null,null,null,null,null,null,null,null,null,null,null,null,null,null,null,null,null,null,null,null,null,null,null,null,"***  FUNCTION  2554  : HANDIC  TRANS  - DISTRICT    "]
[null,null,null,null,null,null,null,null,null,null,null,null,null,null,null,null,null,null,null,null,null,null,null,null,null,null,null,null,null,"1 2554 6410 800 HD GEN SUPPLIES "]
[null,null,null,null,null,null,null,null,null,null,null,null,null,null,null,null,null,null,null,null,null,null,null,null,null,null,null,null,null,"***  FUNCTION  2558  : NONALLOWABLE  TRANS  EXPENS    "]
[null,null,null,null,null,null,null,null,null,null,null,null,null,null,null,null,null,null,null,null,null,null,null,null,null,null,null,null,null,"***  FUNCTION  2559  : ECSE  TRANSPORT    "]
[null,null,null,null,null,null,null,null,null,null,null,null,null,null,null,null,null,null,null,null,null,null,null,null,null,null,null,null,null,"1 2559 6341 402 42 EC  CONTR  TRANSP "]
[null,null,null,null,null,null,null,null,null,null,null,null,null,null,null,null,null,null,null,null,null,null,null,null,null,null,null,null,null,"***  FUNCTION  2561  : FOOD SERVICES    "]
[null,null,null,null,null,null,null,null,null,null,null,null,null,null,null,null,null,null,null,null,null,null,null,null,null,null,null,null,null,"1 2561 6410 105 FD  GEN  SUPPLIES"]
[null,null,null,null,null,null,null,null,null,null,null,null,null,null,null,null,null,null,null,null,null,null,null,null,null,null,null,null,null,"1 2561 6410 300 FD  GEN  SUPPLIES"]
[null,null,null,null,null,null,null,null,null,null,null,null,null,null,null,null,null,null,null,null,null,null,null,null,null,null,null,null,null,"1 2561 6410 402 FD  GEN  SUPPLIES"]
[null,null,null,null,null,null,null,null,null,null,null,null,null,null,null,null,null,null,null,null,null,null,null,null,null,null,null,null,null,"1 2561 6471 105 FD  FOOD  SUPPLIES"]
[null,null,null,null,null,null,null,null,null,null,null,null,null,null,null,null,null,null,null,null,null,null,null,null,null,null,null,null,null,"1 2561 6471 300 FD  FOOD  SUPPLIES"]
[null,null,null,null,null,null,null,null,null,null,null,null,null,null,null,null,null,null,null,null,null,null,null,null,null,null,null,null,null,"1 2561 6471 402 FD  FOOD  SUPPLIES"]
[null,null,null,null,null,null,null,null,null,null,null,null,null,null,null,null,null,null,null,null,null,null,null,null,null,null,null,null,null,"4 2561 6541 105 FD  GEN  EQUIPMENT"]
[null,null,null,null,null,null,null,null,null,null,null,null,null,null,null,null,null,null,null,null,null,null,null,null,null,null,null,null,null,"4 2561 6541 402 FD  GEN  EQUIPMENT"]
[null,null,null,null,null,null,null,null,null,null,null,null,null,null,null,null,null,null,null,null,null,null,null,null,null,null,null,null,null,"***  FUNCTION  2660  : DATA PROCESSING    "]
[null,null,null,null,null,null,null,null,null,null,null,null,null,null,null,null,null,null,null,null,null,null,null,null,null,null,null,null,null,"1 2660 6151 800 DP  TECH  SALARY"]
[null,null,null,null,null,null,null,null,null,null,null,null,null,null,null,null,null,null,null,null,null,null,null,null,null,null,null,null,null,"1 2660 6221 800 DP  NON  TEACHER  RET"]
[null,null,null,null,null,null,null,null,null,null,null,null,null,null,null,null,null,null,null,null,null,null,null,null,null,null,null,null,null,"1 2660 6231 800 DP  SOC  SEC"]
[null,null,null,null,null,null,null,null,null,null,null,null,null,null,null,null,null,null,null,null,null,null,null,null,null,null,null,null,null,"1 2660 6232 800 DP  MEDICARE"]
[null,null,null,null,null,null,null,null,null,null,null,null,null,null,null,null,null,null,null,null,null,null,null,null,null,null,null,null,null,"1 2660 6241 800 DP  MEDICAL  INS"]
[null,null,null,null,null,null,null,null,null,null,null,null,null,null,null,null,null,null,null,null,null,null,null,null,null,null,null,null,null,"1 2660 6319 105 DP  PURCH/TECH  SERV"]
[null,null,null,null,null,null,null,null,null,null,null,null,null,null,null,null,null,null,null,null,null,null,null,null,null,null,null,null,null,"1 2660 6319 300 DP  PURCH/TECH  SERV"]
[null,null,null,null,null,null,null,null,null,null,null,null,null,null,null,null,null,null,null,null,null,null,null,null,null,null,null,null,null,"1 2660 6319 402 DP  PURCH/TECH  SERV"]
[null,null,null,null,null,null,null,null,null,null,null,null,null,null,null,null,null,null,null,null,null,null,null,null,null,null,null,null,null,"1 2660 6319 800 DP  PURCH/TECH  SERV"]
[null,null,null,null,null,null,null,null,null,null,null,null,null,null,null,null,null,null,null,null,null,null,null,null,null,null,null,null,null,"1 2660 6332 105 DP  CONTR REPAIR"]
[null,null,null,null,null,null,null,null,null,null,null,null,null,null,null,null,null,null,null,null,null,null,null,null,null,null,null,null,null,"1 2660 6332 300 DP  CONTR REPAIR"]
[null,null,null,null,null,null,null,null,null,null,null,null,null,null,null,null,null,null,null,null,null,null,null,null,null,null,null,null,null,"1 2660 6332 402 DP  CONTR REPAIR"]
[null,null,null,null,null,null,null,null,null,null,null,null,null,null,null,null,null,null,null,null,null,null,null,null,null,null,null,null,null,"1 2660 6332 800 DP  CONTR REPAIR"]
[null,null,null,null,null,null,null,null,null,null,null,null,null,null,null,null,null,null,null,null,null,null,null,null,null,null,null,null,null,"1 2660 6343 800 DP  MILEAGE/EXPENSE"]
[null,null,null,null,null,null,null,null,null,null,null,null,null,null,null,null,null,null,null,null,null,null,null,null,null,null,null,null,null,"1 2660 6410 105 DP  GEN  SUPPLIES"]
[null,null,null,null,null,null,null,null,null,null,null,null,null,null,null,null,null,null,null,null,null,null,null,null,null,null,null,null,null,"1 2660 6410 300 DP  GEN  SUPPLIES"]
[null,null,null,null,null,null,null,null,null,null,null,null,null,null,null,null,null,null,null,null,null,null,null,null,null,null,null,null,null,"1 2660 6410 402 DP  GEN  SUPPLIES"]
[null,null,null,null,null,null,null,null,null,null,null,null,null,null,null,null,null,null,null,null,null,null,null,null,null,null,null,null,null,"1 2660 6410 800 DP  GEN  SUPPLIES"]
[null,null,null,null,null,null,null,null,null,null,null,null,null,null,null,null,null,null,null,null,null,null,null,null,null,null,null,null,null,"4 2660 6541 800 E EQUIPMENT"]
[null,null,null,null,null,null,null,null,null,null,null,null,null,null,null,null,null,null,null,null,null,null,null,null,null,null,null,null,null,"***  FUNCTION  3000  : COMMUNITY  SERVICES    "]
[null,null,null,null,null,null,null,null,null,null,null,null,null,null,null,null,null,null,null,null,null,null,null,null,null,null,null,null,null,"***  FUNCTION  3511  : PARENTS  AS  TEACHERS    "]
[null,null,null,null,null,null,null,null,null,null,null,null,null,null,null,null,null,null,null,null,null,null,null,null,null,null,null,null,null,"2 3511 6151 800 PA  PARENT  EDUC  SALARY"]
[null,null,null,null,null,null,null,null,null,null,null,null,null,null,null,null,null,null,null,null,null,null,null,null,null,null,null,null,null,"2 3511 6161 800 PA  PT  PARENT  EDUC  SAL "]
[null,null,null,null,null,null,null,null,null,null,null,null,null,null,null,null,null,null,null,null,null,null,null,null,null,null,null,null,null,"2 3511 6211 800 PA  RETIREMENT  TEA"]
[null,null,null,null,null,null,null,null,null,null,null,null,null,null,null,null,null,null,null,null,null,null,null,null,null,null,null,null,null,"2 3511 6221 800 PA  NON-TEACHER  RET"]
[null,null,null,null,null,null,null,null,null,null,null,null,null,null,null,null,null,null,null,null,null,null,null,null,null,null,null,null,null,"2 3511 6231 800 PA  SOC  SEC "]
[null,null,null,null,null,null,null,null,null,null,null,null,null,null,null,null,null,null,null,null,null,null,null,null,null,null,null,null,null,"2 3511 6232 800 PA  MEDICARE"]
[null,null,null,null,null,null,null,null,null,null,null,null,null,null,null,null,null,null,null,null,null,null,null,null,null,null,null,null,null,"2 3511 6241 800 PA  MEDICAL  INS"]
[null,null,null,null,null,null,null,null,null,null,null,null,null,null,null,null,null,null,null,null,null,null,null,null,null,null,null,null,null,"1 3511 6319 800 PA  PURC/TECH   SERV"]
[null,null,null,null,null,null,null,null,null,null,null,null,null,null,null,null,null,null,null,null,null,null,null,null,null,null,null,null,null,"1 3511 6343 800 PA  MILEAGE/EXPENSE "]
[null,null,null,null,null,null,null,null,null,null,null,null,null,null,null,null,null,null,null,null,null,null,null,null,null,null,null,null,null,"1 3511 6410 800 PA  GEN SUPPLIES "]
[null,null,null,null,null,null,null,null,null,null,null,null,null,null,null,null,null,null,null,null,null,null,null,null,null,null,null,null,null,"***  FUNCTION  3512  : TITLE  I PRE-SCHOOL    "]
[null,null,null,null,null,null,null,null,null,null,null,null,null,null,null,null,null,null,null,null,null,null,null,null,null,null,null,null,null,"2 3512 6112 402  52 PS TEACHER  SALARY"]
[null,null,null,null,null,null,null,null,null,null,null,null,null,null,null,null,null,null,null,null,null,null,null,null,null,null,null,null,null,"2 3512 6151 402  52 PS AIDE   SALARY"]
[null,null,null,null,null,null,null,null,null,null,null,null,null,null,null,null,null,null,null,null,null,null,null,null,null,null,null,null,null,"2 3512 6211 402  52 PS RETIREMENT  TEA"]
[null,null,null,null,null,null,null,null,null,null,null,null,null,null,null,null,null,null,null,null,null,null,null,null,null,null,null,null,null,"2 3512 6221 402  52 PS NON-TEACHER  RET"]
[null,null,null,null,null,null,null,null,null,null,null,null,null,null,null,null,null,null,null,null,null,null,null,null,null,null,null,null,null,"2 3512 6231 402  52 PS SOC  SEC "]
[null,null,null,null,null,null,null,null,null,null,null,null,null,null,null,null,null,null,null,null,null,null,null,null,null,null,null,null,null,"2 3512 6232 402  52 PS MEDICARE"]
[null,null,null,null,null,null,null,null,null,null,null,null,null,null,null,null,null,null,null,null,null,null,null,null,null,null,null,null,null,"2 3512 6241 402  52 PS MEDICAL  INS"]
[null,null,null,null,null,null,null,null,null,null,null,null,null,null,null,null,null,null,null,null,null,null,null,null,null,null,null,null,null,"1 3512 6410 402  52 PS GEN SUPPLIES "]
[null,null,null,null,null,null,null,null,null,null,null,null,null,null,null,null,null,null,null,null,null,null,null,null,null,null,null,null,null,"***  FUNCTION  3800  : SCHOOL-AGE  CHILD   CARE    "]
[null,null,null,null,null,null,null,null,null,null,null,null,null,null,null,null,null,null,null,null,null,null,null,null,null,null,null,null,null,"***  FUNCTION  3812  :    "]
[null,null,null,null,null,null,null,null,null,null,null,null,null,null,null,null,null,null,null,null,null,null,null,null,null,null,null,null,null,"1 3812 6161.8 402 AS   PT   COOK SALARY"]
[null,null,null,null,null,null,null,null,null,null,null,null,null,null,null,null,null,null,null,null,null,null,null,null,null,null,null,null,null,"1 3812 6221.8 402 AS   NON  TEACHER  RET"]
[null,null,null,null,null,null,null,null,null,null,null,null,null,null,null,null,null,null,null,null,null,null,null,null,null,null,null,null,null,"1 3812 6231.8 402 AS  SOC  SEC "]
[null,null,null,null,null,null,null,null,null,null,null,null,null,null,null,null,null,null,null,null,null,null,null,null,null,null,null,null,null,"1 3812 6232.8 402 AS  MEDICARE"]
[null,null,null,null,null,null,null,null,null,null,null,null,null,null,null,null,null,null,null,null,null,null,null,null,null,null,null,null,null,"1 3812 6491 105 AS  FOOD SUPPLIES "]
[null,null,null,null,null,null,null,null,null,null,null,null,null,null,null,null,null,null,null,null,null,null,null,null,null,null,null,null,null,"1 3812 6491 300 AS  FOOD SUPPLIES "]
[null,null,null,null,null,null,null,null,null,null,null,null,null,null,null,null,null,null,null,null,null,null,null,null,null,null,null,null,null,"1 3812 6491 402 AS  FOOD SUPPLIES "]
[null,null,null,null,null,null,null,null,null,null,null,null,null,null,null,null,null,null,null,null,null,null,null,null,null,null,null,null,null,"*** FUNC TION  3900  : SCHOLARSHIP  "]
[null,null,null,null,null,null,null,null,null,null,null,null,null,null,null,null,null,null,null,null,null,null,null,null,null,null,null,null,null,"1 3900 6390 800 CS  SCHOLARSHIPS  PAID "]
[null,null,null,null,null,null,null,null,null,null,null,null,null,null,null,null,null,null,null,null,null,null,null,null,null,null,null,null,null,"*** FUNC TION  3911  : SUMMER  FOOD   SERVICE  "]
[null,null,null,null,null,null,null,null,null,null,null,null,null,null,null,null,null,null,null,null,null,null,null,null,null,null,null,null,null,"1 3911 6161 105 SS COOK SALARY "]
[null,null,null,null,null,null,null,null,null,null,null,null,null,null,null,null,null,null,null,null,null,null,null,null,null,null,null,null,null,"1 3911 6161 402 SS COOK SALARY "]
[null,null,null,null,null,null,null,null,null,null,null,null,null,null,null,null,null,null,null,null,null,null,null,null,null,null,null,null,null,"1 3911 6221 105 SS NON  TEACHER  RET "]
[null,null,null,null,null,null,null,null,null,null,null,null,null,null,null,null,null,null,null,null,null,null,null,null,null,null,null,null,null,"1 3911 6221 402 SS NON  TEACHER  RET "]
[null,null,null,null,null,null,null,null,null,null,null,null,null,null,null,null,null,null,null,null,null,null,null,null,null,null,null,null,null,"1 3911 6231 105 SS SOC  SEC "]
[null,null,null,null,null,null,null,null,null,null,null,null,null,null,null,null,null,null,null,null,null,null,null,null,null,null,null,null,null,"1 3911 6231 402 SS SOC  SEC "]
[null,null,null,null,null,null,null,null,null,null,null,null,null,null,null,null,null,null,null,null,null,null,null,null,null,null,null,null,null,"1 3911 6232 105 SS MEDICARE"]
[null,null,null,null,null,null,null,null,null,null,null,null,null,null,null,null,null,null,null,null,null,null,null,null,null,null,null,null,null,"1 3911 6232 402 SS MEDICARE"]
[null,null,null,null,null,null,null,null,null,null,null,null,null,null,null,null,null,null,null,null,null,null,null,null,null,null,null,null,null,"1 3911 6410 300 SS GEN SUPPLIES "]
[null,null,null,null,null,null,null,null,null,null,null,null,null,null,null,null,null,null,null,null,null,null,null,null,null,null,null,null,null,"1 3911 6410 402 SS GEN SUPPLIES "]
[null,null,null,null,null,null,null,null,null,null,null,null,null,null,null,null,null,null,null,null,null,null,null,null,null,null,null,null,null,"1 3911 6491 105 SS FOOD SUPPLIES "]
[null,null,null,null,null,null,null,null,null,null,null,null,null,null,null,null,null,null,null,null,null,null,null,null,null,null,null,null,null,"1 3911 6491 300 SS FOOD SUPPLIES "]
[null,null,null,null,null,null,null,null,null,null,null,null,null,null,null,null,null,null,null,null,null,null,null,null,null,null,null,null,null,"1 3911 6491 402 SS FOOD SUPPLIES "]
[null,null,null,null,null,null,null,null,null,null,null,null,null,null,null,null,null,null,null,null,null,null,null,null,null,null,null,null,null,"***  FUNCTION  3912  : PARENTAL   INVOLVEMENT    "]
[null,null,null,null,null,null,null,null,null,null,null,null,null,null,null,null,null,null,null,null,null,null,null,null,null,null,null,null,null,"***  FUNCTION  4000  : FACILITY   ACQUIS/CONSTRUC    "]
[null,null,null,null,null,null,null,null,null,null,null,null,null,null,null,null,null,null,null,null,null,null,null,null,null,null,null,null,null,"4 4000 6521 300 E"]
[null,null,null,null,null,null,null,null,null,null,null,null,null,null,null,null,null,null,null,null,null,null,null,null,null,null,null,null,null,"***  FUNCTION  4050  : BUILDING    IMPROVEMENT    "]
[null,null,null,null,null,null,null,null,null,null,null,null,null,null,null,null,null,null,null,null,null,null,null,null,null,null,null,null,null,"4 4050 6521 105 BI BLDG IMPROV/MAINT"]
[null,null,null,null,null,null,null,null,null,null,null,null,null,null,null,null,null,null,null,null,null,null,null,null,null,null,null,null,null,"4 4050 6521 300 BI BLDG IMPROV/MAINT"]
[null,null,null,null,null,null,null,null,null,null,null,null,null,null,null,null,null,null,null,null,null,null,null,null,null,null,null,null,null,"4 4050 6521 402 BI BLDG IMPROV/MAINT"]
[null,null,null,null,null,null,null,null,null,null,null,null,null,null,null,null,null,null,null,null,null,null,null,null,null,null,null,null,null,"***  FUNCTION  5110  :    "]
[null,null,null,null,null,null,null,null,null,null,null,null,null,null,null,null,null,null,null,null,null,null,null,null,null,null,null,null,null,"3 5110 6611 800 DS   RET  OF  BONDS"]
[null,null,null,null,null,null,null,null,null,null,null,null,null,null,null,null,null,null,null,null,null,null,null,null,null,null,null,null,null,"*** FUNCTION 5210  "]
[null,null,null,null,null,null,null,null,null,null,null,null,null,null,null,null,null,null,null,null,null,null,null,null,null,null,null,null,null,"3 5210 6621 800 DS  INTEREST    ON  BONDS"]
[null,null,null,null,null,null,null,null,null,null,null,null,null,null,null,null,null,null,null,null,null,null,null,null,null,null,null,null,null,"*** FUNCTION 5230  "]
[null,null,null,null,null,null,null,null,null,null,null,null,null,null,null,null,null,null,null,null,null,null,null,null,null,null,null,null,null,"4 5230 6623 300 LP  LEAS/PURC  INTEREST"]
[null,null,null,null,null,null,null,null,null,null,null,null,null,null,null,null,null,null,null,null,null,null,null,null,null,null,null,null,null,"*** FUNCTION 5310  "]
[null,null,null,null,null,null,null,null,null,null,null,null,null,null,null,null,null,null,null,null,null,null,null,null,null,null,null,null,null,"3 5310 6631 800 DS   OTHER FEES"]
[null,null,null,null,null,null,null,null,null,null,null,null,null,null,null,null,null,null,null,null,null,null,null,null,null,null,null,null,null,"*** FUNCTION 5330  "]
[null,null,null,null,null,null,null,null,null,null,null,null,null,null,null,null,null,null,null,null,null,null,null,null,null,null,null,null,null,"4 5330 6631 300 LP   OTHER FEES"]
[]
[]
[]
[]
[]
[]
[]
[]
[]
[]
[]
[]
[]
[]
[]
[]
[]
[]
[]
[]
[]
[]
[]
[]
[]
[]
[]
[]
[]
[]
[]
[]
[]
[]
[]
[]
[]
[]
[]
[]
[]
[]
[]
[]
[]
[]
[]
[]
[]
[]
[]
[]
[]
[]
[null,null,null,null,null,null,null,null,null,null,null,null,null,null,null,null,null,null,null,null,null,null,null,null,null,null,null,null,null,"   "]
[null,null,null,null,null,null,null,null,null,null,null,null,null,null,null,null,null,null,null,null,null,null,null,null,null,null,null,null,null,"   "]
[null,null,null,null,null,null,null,null,null,null,null,null,null,null,null,null,null,null,null,null,null,null,null,null,null,null,null,null,null,"   "]
[null,null,null,null,null,null,null,null,null,null,null,null,null,null,null,null,null,null,null,null,null,null,null,null,null,null,null,null,null,"   "]
[null,null,null,null,null,null,null,null,null,null,null,null,null,null,null,null,null,null,null,null,null,null,null,null,null,null,null,null,null,"   "]
[null,null,null,null,null,null,null,null,null,null,null,null,null,null,null,null,null,null,null,null,null,null,null,null,null,null,null,null,null,"   "]

{"sheet":"Req (3)","index":2,"n_rows":358,"n_cols":30,"rows_kept":358,"cut":false,"hidden":false,"merged":[[0,0,0,10],[1,0,1,10],[1,12,3,13],[1,18,1,20],[2,0,2,6],[2,7,2,10],[3,0,3,6],[3,7,4,10],[4,0,4,6],[5,0,5,6],[5,7,6,10],[6,0,6,6],[7,7,8,10],[10,1,10,4],[10,6,10,10],[11,1,11,4],[11,6,11,10],[12,1,12,4],[12,6,12,10],[13,6,13,7],[13,8,13,10],[16,2,16,3],[16,4,16,5],[16,6,16,7],[17,0,17,1],[17,2,17,3],[17,4,17,5],[17,6,17,7],[25,3,25,8],[17,8,17,10],[18,4,18,7],[18,8,18,10],[19,0,19,3],[19,4,19,7],[19,8,19,10],[20,3,20,8],[21,3,21,8],[22,3,22,8],[23,3,23,8],[24,3,24,8],[37,1,37,9],[26,3,26,8],[27,3,27,8],[28,3,28,8],[29,3,29,8],[30,3,30,8],[31,3,31,8],[32,3,32,8],[33,3,33,8],[34,3,34,8],[35,3,35,8],[36,3,36,8],[50,4,52,5],[38,9,38,10],[39,9,39,10],[41,3,41,6],[41,9,44,10],[42,3,42,6],[44,3,46,6]]}
[]
["Requisition",null,null,null,null,null,null,null,null,null,null,null,null,null,null,null,"Building","Form Type","Sites",null,null,null,"Elementary Codes","Middle School Codes","High School Codes","Bus/Maintenance Codes","SPED Codes","PDC Codes","Food Service","All Codes"]
[null,null,null,null,null,null,null,"fv. 06122018"]
["BILL TO:  BOARD OF EDUCATION",null,null,null,null,null,null,{"$f":"IF(A2=\"PURCHASE ORDER\",\"PURCHASE ORDER\",\"\")","v":""},null,null,null,null,null,null,null,null,"WC_District","Requisition","West St. Francois County R-IV Bus/Maintenance","1124 Main Street","Leadwood, MO. 63653",null,"***  FUNCTION  1110  : ELEMENTARY  INSTRUCTION    ","***  FUNCTION  1130  : MIDDLE SCHOOL INSTRUCTION    ","***  FUNCTION  1150  : HIGH  SCHOOL INSTRUCTION    ",null,"***  FUNCTION  1221  : SPECIAL    PROGRAMS - EMH    ","***  FUNCTION  2214  : PROFESSIONAL  DEVELOPMENT    ","***  FUNCTION  2561  : FOOD SERVICES    ","***  FUNCTION  1110  : ELEMENTARY  INSTRUCTION    "]
["  WEST ST. FRANCOIS COUNTY R-IV SCHOOL DISTRICT",null,null,null,null,null,null,null,null,null,null,null,null,null,null,null,"WC_SPED","Purchase Order","West St. Francois County R-IV School District SPED","1124 Main Street","Leadwood, MO. 63653",null,"1 1110 6319 402 EL  PURCH/TECH  SERV","1 1130 6319 300 MS  PURCH/TECH  SERV","1 1150 6319 105 HS  PURCH/TECH SERVICE",null,"1 1221 6319 402  03 SE  PURCH/TECH SERV","2 2214 6121 800 PD  SUBST   TEACHER","1 2561 6151 105 FD  COOKS  SALARY","1 1110 6319 402 EL  PURCH/TECH  SERV"]
["                   1124 MAIN STREET, LEADWOOD, MO  63653-1214",null,null,null,null,null,null,null,null,null,null,null,null,null,null,null,"WCES",null,"West St. Francois County R-IV Food Service","624 Chariton Ave","Parkhills, MO.  63601",null,"1 1110 6343 402 EL  MILEAGE/EXPENSE","1 1130 6332 300 MS CONTR REPAIR","1 1150 6332 105 HS  CONTR REPAIR",null,"1 1221 6343 105  03 SE  MILEAGE/EXPENSE","2 2214 6131 800 PD  STIPENDS ","1 2561 6151 300 FD  COOKS  SALARY","1 1110 6343 402 EL  MILEAGE/EXPENSE"]
["                   (573)562-7535 fax (573)562-2710",null,null,null,null,null,null,null,null,null,null,null,null,null,null,null,"WCMS",null,"West St. Francois County R-IV Middle School","728 Hwy. M","Park Hills, MO.  63601",null,"1 1110 6410 402 EL   GEN  SUPPLIES","1 1130 6343 300 MS MILEAGE/EXPENSE","1 1150 6343 105 HS  MILEAGE/EXPENSE",null,"1 1221 6343 300  03 SE  MILEAGE/EXPENSE","2 2214 6211 800 PD  RETIREMENT  TEA","1 2561 6151 402 FD  COOKS  SALARY","1 1110 6410 402 EL   GEN  SUPPLIES"]
[" ",null,null,null,null,null,null,{"$f":"IF(A2=\"PURCHASE ORDER\",\"THIS NUMBER MUST APPEAR ON ALL PACKAGES, LABELS, CARTONS, PACKING SLIPS, BILLS OF LADING, INVOICES, AND ALL CORRESPONDANCE REFERRING TO THIS ORDER\",\"\")","v":""},null,null,null,null,null,null,null,null,"WCHS",null,"West St. Francois County R-IV High School","768 Highway M","Park Hills, MO.  63601",null,"1 1110 6410.1 402 EL  TECH  SUPPLIES","1 1130 6410 300 MS  GEN   SUPPLIES","1 1150 6410 105 HS   GEN  SUPPLIES",null,"1 1221 6343 402  03 SE  MILEAGE/EXPENSE","1 2214 6221 800 PD  NON-TEACHER  RET","1 2561 6151 800 FD  COOKS  SALARY","1 1110 6410.1 402 EL  TECH  SUPPLIES"]
[null,null,null,null,null,null,null,null,null,null,null,null,null,null,null,null,"WC_Bus_Maint",null,"West St. Francois County R-IV Bus/Maintenance","1124 Main Street","Leadwood, MO. 63653",null,null,"1 1130 6410.1 300 MS  TECH   SUPPLIES","1 1150 6410.1 105 HS  TECH  SUPPLIES",null,"1 1221 6343 800  03 SE  MILEAGE/EXPENSE","1 2214 6231 800 PD  SOC  SEC ","1 2561 6161 105 FD  PT   COOK SALARY/SUB","***  FUNCTION  1119  : READING  1ST GRANT    "]
["VENDOR NO.",null,null,null,null,"SHIP FREIGHT PREPAID TO:",null,null,null,null,null,null,null,null,null,null,"WC_FS",null,"West St. Francois County R-IV High School","768 Highway M","Park Hills, MO.  63601",null,null,"4 1130 6541 300 MS  GEN  EQUIPMENT","4 1150 6541 105 HS  GEN  EQUIPMENT",null,"1 1221 6410 105  03 SE   GEN SUPPLIES","2 2214 6231 800 PD  SOC  SEC ","1 2561 6161 300 FD  PT   COOK SALARY/SUB","***  FUNCTION  1130  : MIDDLE SCHOOL INSTRUCTION    "]
[null,null,null,null,null,null,{"$f":"IF(I20=\"\",\"\",VLOOKUP(I20,Q4:U12,3))","v":""},null,null,null,null,null,null,null,null,null,"WC_PDC",null,"West St. Francois County R-IV Middle School","728 Hwy. M","Park Hills, MO.  63601",null,null,"***  FUNCTION  1341  : HOME ECONOMICS    ","***  FUNCTION  1341  : HOME ECONOMICS    ",null,"1 1221 6410 300  03 SE   GEN SUPPLIES","1 2214 6232 800 PD  MEDICARE","1 2561 6161 402 FD  PT   COOK SALARY/SUB","1 1130 6319 300 MS  PURCH/TECH  SERV"]
[null,null,null,null,null,null,{"$f":"IF(G11=\"\",\"\",VLOOKUP(I20,Q4:U12,4))","v":""},null,null,null,null,null,null,null,null,null,null,null,null,null,null,null,null,"1 1341 6410 300 HE  GEN  SUPPLIES","2 1341 6112 105 HE  TEACHER  SALARY",null,"1 1221 6410 402  03 SE   GEN SUPPLIES","2 2214 6232 800 PD  MEDICARE","1 2561 6171 300 FD  SICKLEAVE   PAY","1 1130 6332 300 MS CONTR REPAIR"]
[null,null,null,null,null,null,{"$f":"IF(G11=\"\",\"\",VLOOKUP(I20,Q4:U12,5))","v":""},null,null,null,null,null,null,null,null,null,null,null,null,null,null,null,null,"***  FUNCTION  1351  : VOC INDUSTRIAL    TECH    ","2 1341 6211 105 HE  RETIREMENT   TEA",null,"1 1221 6410 800  03 SE   GEN SUPPLIES","2 2214 6312 800 PD  TUITION   REIMBURSMT","1 2561 6221 105 FD  NON  TEACHER  RET","1 1130 6343 300 MS MILEAGE/EXPENSE"]
[null,"Phone",null,"Fax",null,null,"Attention:",null,{"$f":"IF(E20=\"\",\"\",E20)","v":""},null,null,null,null,null,null,null,null,null,null,null,null,null,null,"1 1351 6410 300 IT GEN  SUPPLIES","2 1341 6232 105 HE  MEDICARE",null,null,"1 2214 6319 800 PD  PURC/TECH   SERV","1 2561 6221 300 FD  NON  TEACHER  RET","1 1130 6410 300 MS  GEN   SUPPLIES"]
[null,null,null,null,null,null,null,null,null,null,null,null,null,null,null,null,null,null,null,null,null,null,null,"***  FUNCTION  1411  : STUDENT  ACTIVITIES    ","2 1341 6241 105 HE  MEDICAL   INS",null,null,"1 2214 6343 800 PD  MILEAGE/EXPENSE ","1 2561 6221 402 FD  NON  TEACHER  RET","1 1130 6410.1 300 MS  TECH   SUPPLIES"]
["THIS IS A TAX EXEMPT PURCHASE.  DO NOT INCLUDE STATE SALES TAX OR FEDERAL EXCISE TAX",null,null,null,null,null,null,null,null,null,null,null,null,null,null,null,null,null,null,null,null,null,null,"1 1411 6411.002  SA  MIDDLE  SCHOOL EXP","1 1341 6343 105 HE MILEAGE/EXPENSE",null,null,"1 2214 6410 800 PD  GEN SUPPLIES ","1 2561 6221 800 FD  NON  TEACHER  RET","4 1130 6541 300 MS  GEN  EQUIPMENT"]
["ORDER DATE",null,"DATE WANTED",null,"SHIP VIA",null,"TERMS",null,"IN ACCORDANCE WITH BID OR CONTRACT DATED",null,null,null,null,null,null,null,null,null,null,null,null,null,null,"***  FUNCTION  2120  : GUIDANCE SERVICES    ","1 1341 6410 105 HE  GEN  SUPPLIES",null,null,null,"1 2561 6231 105 FD  SOC  SEC","***  FUNCTION  1150  : HIGH  SCHOOL INSTRUCTION    "]
[null,null,null,null,null,null,null,null,null,null,null,null,null,null,null,null,null,null,null,null,null,null,null,"1 2120 6410 300 GU  GEN   SUPPLIES","***  FUNCTION  1351  : VOC INDUSTRIAL    TECH    ",null,null,null,"1 2561 6231 300 FD  SOC  SEC","1 1150 6319 105 HS  PURCH/TECH SERVICE"]
["FUND APPROPRIATION EXPENDITURE ACCOUNT",null,null,null,"REQUISITIONED BY ",null,null,null,"BUILDING",null,null,null,null,null,null,null,null,null,null,null,null,null,null,"***  FUNCTION  2130  : NURSING SERVICES    ","1 1351 6343 105 IT MILEAGE/EXPENSE",null,null,null,"1 2561 6231 402 FD  SOC  SEC","1 1150 6332 105 HS  CONTR REPAIR"]
[null,null,null,null,null,null,null,null,null,null,null,null,null,null,null,null,null,null,null,null,null,null,null,"1 2130 6410 300 NU  GEN  SUPPLIES","1 1351 6410 105 IT GEN  SUPPLIES",null,null,null,"1 2561 6231 800 FD  SOC  SEC","1 1150 6343 105 HS  MILEAGE/EXPENSE"]
[null,"Quantity","Catalog Number","Description",null,null,null,null,null,"Unit Price","Amount",null,null,null,null,null,null,null,null,null,null,null,null,"***  FUNCTION  2220  : MEDIA SERVICES    ","***  FUNCTION  1341  : HOME ECONOMICS    ",null,null,null,"1 2561 6232 105 FD  MEDICARE","1 1150 6410 105 HS   GEN  SUPPLIES"]
[null,null,null,null,null,null,null,null,null,null,{"$f":"IF(B22=\"\",\"\",B22*J22)","v":""},null,null,null,null,null,null,null,null,null,null,null,null,"1 2220 6319.7 300 T6.B PURCH/TECH  SERV","1 1341 6343 105 HE MILEAGE/EXPENSE",null,null,null,"1 2561 6232 300 FD  MEDICARE","1 1150 6410.1 105 HS  TECH  SUPPLIES"]
[null,null,null,null,null,null,null,null,null,null,"",null,null,null,null,null,null,null,null,null,null,null,null,"1 2220 6410 300 LB   GEN  SUPPLIES","1 1341 6410 105 HE  GEN  SUPPLIES",null,null,null,"1 2561 6232 402 FD  MEDICARE","4 1150 6541 105 HS  GEN  EQUIPMENT"]
[null,null,null,null,null,null,null,null,null,null,"",null,null,null,null,null,null,null,null,null,null,null,null,"1 2220 6441 300 LB  LIBRARY   BOOKS","1 1341 6410 300 HE  GEN  SUPPLIES",null,null,null,"1 2561 6232 800 FD  MEDICARE","***  FUNCTION  1170  : ALTERNATIVE INSTRUCTION    "]
[null,null,null,null,null,null,null,null,null,null,"",null,null,null,null,null,null,null,null,null,null,null,null,"***  FUNCTION  2540  : OPER  OF  PLANT   - CUSTODIAL    ","***  FUNCTION  1411  : STUDENT  ACTIVITIES    ",null,null,null,"1 2561 6241 105 FD  MEDICAL  INS","1 1170 6319 105 AL  PURCH/TECH  SERV"]
[null,null,null,null,null,null,null,null,null,null,"",null,null,null,null,null,null,null,null,null,null,null,null,"1 2540 6410 300 GEN SUPPLIES","1 1411 6121 800 SA  ACTIVITY PAY/PT",null,null,null,"1 2561 6241 300 FD  MEDICAL  INS","1 1170 6410 105 AL  GEN  SUPPLIES"]
[null,null,null,null,null,null,null,null,null,null,"",null,null,null,null,null,null,null,null,null,null,null,null,"***  FUNCTION  2210  : FEDERAL   PROGRAMS    ","1 1411 6131 800 SA  ACTIVITY  PAY/TRS",null,null,null,"1 2561 6241 402 FD  MEDICAL  INS","***  FUNCTION  1191  : SUMMER SCHOOL    "]
[null,null,null,null,null,null,null,null,null,null,"",null,null,null,null,null,null,null,null,null,null,null,null,"1 2210 6319.8 300 21CENT/PURCH  SERVICE","1 1411 6161 800 SA  ACTIVITY  PAY/NT",null,null,null,"1 2561 6261 105 FD   WORKMANS COMP","1 1191 6410 800 SS GEN  SUPPLIES"]
[null,null,null,null,null,null,null,null,null,null,"",null,null,null,null,null,null,null,null,null,null,null,null,"1 2210 6410.8 300 21CENT/GEN SUPPLIES","1 1411 6411 39 SA  CROSS  COUNTRY EXP",null,null,null,"1 2561 6261 300 FD   WORKMANS COMP","***  FUNCTION  1192  : JUVENILE    PROGRAM    "]
[null,null,null,null,null,null,null,null,null,null,"",null,null,null,null,null,null,null,null,null,null,null,null,"***  FUNCTION  2214  : PROFESSIONAL  DEVELOPMENT    ","1 1411 6411.001  SA  ATHLETICS  EXP",null,null,null,"1 2561 6261 402 FD   WORKMANS COMP","1 1192 6319 105 JP PURCH/TECH  SERV"]
[null,null,null,null,null,null,null,null,null,null,"",null,null,null,null,null,null,null,null,null,null,null,null,"2 2214 6312 800 PD  TUITION   REIMBURSMT","1 1411 6411.002  SA  MIDDLE  SCHOOL EXP",null,null,null,"1 2561 6343 402 FD  MILEAGE/EXPENSE","1 1192 6410 105 JP GEN  SUPPLIES"]
[null,null,null,null,null,null,null,null,null,null,"",null,null,null,null,null,null,null,null,null,null,null,null,"1 2214 6319 800 PD  PURC/TECH   SERV","1 1411 6411.003  SA  BAND EXP",null,null,null,"1 2561 6343 800 FD  MILEAGE/EXPENSE","***  FUNCTION  1211  : SPECIAL    PROGRAMS - GIFTED    "]
[null,null,null,null,null,null,null,null,null,null,"",null,null,null,null,null,null,null,null,null,null,null,null,"1 2214 6343 800 PD  MILEAGE/EXPENSE ","1 1411 6411.005  SA  JUNIOR  EXP",null,null,null,"1 2561 6391 105 FD  OTHER PURCH SERV","***  FUNCTION  1221  : SPECIAL    PROGRAMS - EMH    "]
[null,null,null,null,null,null,null,null,null,null,"",null,null,null,null,null,null,null,null,null,null,null,null,"1 2214 6410 800 PD  GEN SUPPLIES ","1 1411 6411.006  SA  BASEBALL  EXP",null,null,null,"1 2561 6410 105 FD  GEN  SUPPLIES","1 1221 6319 402  03 SE  PURCH/TECH SERV"]
[null,null,null,null,null,null,null,null,null,null,"",null,null,null,null,null,null,null,null,null,null,null,null,null,"1 1411 6411.007  SA   ENVIRONMENTAL CLUB",null,null,null,"1 2561 6410 300 FD  GEN  SUPPLIES","1 1221 6343 105  03 SE  MILEAGE/EXPENSE"]
[null,null,null,null,null,null,null,null,null,null,"",null,null,null,null,null,null,null,null,null,null,null,null,null,"1 1411 6411.009  SA  SPIRIT    SQUAD EXP",null,null,null,"1 2561 6410 402 FD  GEN  SUPPLIES","1 1221 6343 300  03 SE  MILEAGE/EXPENSE"]
[null,null,null,null,null,null,null,null,null,null,"",null,null,null,null,null,null,null,null,null,null,null,null,null,"1 1411 6411.011  SA  FCCLA  EXP",null,null,null,"1 2561 6471 105 FD  FOOD  SUPPLIES","1 1221 6343 402  03 SE  MILEAGE/EXPENSE"]
[null,"SHIPPING",null,null,null,null,null,null,null,null,null,null,null,null,null,null,null,null,null,null,null,null,null,null,"1 1411 6411.012  SA  MATH/PHYSICS   EXP",null,null,null,"1 2561 6471 300 FD  FOOD  SUPPLIES","1 1221 6343 800  03 SE  MILEAGE/EXPENSE"]
["*** Bill to Board of Education, West St. Francois County R-IV, at above address",null,null,null,null,null,null,null,null,"Total Amount",null,null,null,null,null,null,null,null,null,null,null,null,null,null,"1 1411 6411.013  SA  BOYS  BASKETBALL",null,null,null,"1 2561 6471 402 FD  FOOD  SUPPLIES","1 1221 6410 105  03 SE   GEN SUPPLIES"]
[null,null,null,null,null,null,null,null,null,{"$f":"IF(K22=\"\",\"\",SUM(K22:K38))","v":""},null,null,null,null,null,null,null,null,null,null,null,null,null,null,"1 1411 6411.014  SA  LIBRARY  CLUB  EXP",null,null,null,"4 2561 6541 105 FD  GEN  EQUIPMENT","1 1221 6410 300  03 SE   GEN SUPPLIES"]
[null,null,null,null,null,null,null,null,null,null,null,null,null,null,null,null,null,null,null,null,null,null,null,null,"1 1411 6411.015  SA  MISC  EXP",null,null,null,"4 2561 6541 402 FD  GEN  EQUIPMENT","1 1221 6410 402  03 SE   GEN SUPPLIES"]
[null,null,null,null,null,null,null,null,null,{"$f":"IF($K$38=\"\",\"IF YOU SEE THIS YOU HAVE NOT ENTERED SHIPPING CHARGES\",\"\")","v":"IF YOU SEE THIS YOU HAVE NOT ENTERED SHIPPING CHARGES"},null,null,null,null,null,null,null,null,null,null,null,null,null,null,"1 1411 6411.016  SA  VOCAL MUSIC  EXP",null,null,null,"*** FUNC TION  3911  : SUMMER  FOOD   SERVICE  ","1 1221 6410 800  03 SE   GEN SUPPLIES"]
[null,null,null,{"$f":"IF(A2=\"PURCHASE ORDER\",\"Superintendent\",\"Building Principal\")","v":"Building Principal"},null,null,null,null,null,null,null,null,null,null,null,null,null,null,null,null,null,null,null,null,"1 1411 6411.017  SA  NHS  EXP",null,null,null,"1 3911 6161 105 SS COOK SALARY ","***  FUNCTION  1231  : SPECIAL    PROGRAMS - SPEECH    "]
[null,null,null,null,null,null,null,null,null,null,null,null,null,null,null,null,null,null,null,null,null,null,null,null,"1 1411 6411.018  SA  GIRLS   BASKETBALL",null,null,null,"1 3911 6161 402 SS COOK SALARY ","***  FUNCTION  1234  : HOMEBOUND   INSTRUCTION    "]
[null,null,null,null,null,null,null,null,null,null,null,null,null,null,null,null,null,null,null,null,null,null,null,null,"1 1411 6411.019  SA  FBLA  EXP",null,null,null,"1 3911 6221 105 SS NON  TEACHER  RET ","***  FUNCTION  1241  : EMOT/BEHAV DISTURBED    "]
[null,null,null,null,null,null,null,null,null,null,null,null,null,null,null,null,null,null,null,null,null,null,null,null,"1 1411 6411.02  SA  REFLECTOR EXP",null,null,null,"1 3911 6221 402 SS NON  TEACHER  RET ","***  FUNCTION  1251  : COMPENS  EDUC  - TITLE  1    "]
[null,null,null,null,null,null,null,null,null,null,null,null,null,null,null,null,null,null,null,null,null,null,null,null,"1 1411 6411.022  SA  STU  COUNCIL  EXP",null,null,null,"1 3911 6231 105 SS SOC  SEC ","1 1251 6319 402  50 T1 PURCH/TECH  SERVICE "]
[null,null,null,null,null,null,null,null,null,null,null,null,null,null,null,null,null,null,null,null,null,null,null,null,"1 1411 6411.023  SA  VOLLEYBALL EXP",null,null,null,"1 3911 6231 402 SS SOC  SEC ","***  FUNCTION  1261  : SPECIAL    PROGRAMS - LD    "]
[null,null,null,null,null,null,null,null,null,null,null,null,null,null,null,null,null,null,null,null,null,null,null,null,"1 1411 6411.025  SA  INSTRUC  ACTIV  EXP",null,null,null,"1 3911 6232 105 SS MEDICARE","***  FUNCTION  1281  : EARLY  CHILDHOOD/SPEC    EDUC    "]
[null,null,null,null,null,null,null,null,null,null,null,null,null,null,null,null,null,null,null,null,null,null,null,null,"1 1411 6411.026  SA  SPECIAL   ED  EXP",null,null,null,"1 3911 6232 402 SS MEDICARE","1 1281 6319 402 42 EC  PURCH/TECH  SERVICE "]
[null,null,null,null,null,null,null,null,null,null,null,null,null,null,null,null,null,null,null,null,null,null,null,null,"1 1411 6411.029  SA  WCTSA EXP"]
[null,null,null,null,null,null,null,null,null,null,null,null,null,null,null,null,null,null,null,null,null,null,null,null,"1 1411 6411.031  SA  DISTR   TOURNEY EXP"]
[null,null,null,null,null,null,null,null,null,null,null,null,null,null,null,null,null,null,null,null,null,null,null,null,"1 1411 6411.032  SA   COMMUNITY SERVICE"]
[null,null,null,null,null,null,null,null,null,null,null,null,null,null,null,null,null,null,null,null,null,null,null,null,"1 1411 6411.033  SA  FCA",null,null,null,"1 3911 6491 300 SS FOOD SUPPLIES ","1 1331 6410 105 BU  GEN SUPPLIES "]
[null,null,null,null,null,null,null,null,null,null,null,null,null,null,null,null,null,null,null,null,null,null,null,null,"1 1411 6411.035  SA  SOFTBALL",null,null,null,"1 3911 6491 402 SS FOOD SUPPLIES ","***  FUNCTION  1332  : VOCATIONAL BUSINESS    GRANT    "]
[null,null,null,null,null,null,null,null,null,null,null,null,null,null,null,null,null,null,null,null,null,null,null,null,"1 1411 6411.037  SA  SPEC  OLYMPICS",null,null,null,null,"***  FUNCTION  1341  : HOME ECONOMICS    "]
[null,null,null,null,null,null,null,null,null,null,null,null,null,null,null,null,null,null,null,null,null,null,null,null,"1 1411 6411.038  SA  GOLF EXP",null,null,null,null,"1 1341 6343 105 HE MILEAGE/EXPENSE"]
[null,null,null,null,null,null,null,null,null,null,null,null,null,null,null,null,null,null,null,null,null,null,null,null,"***  FUNCTION  2120  : GUIDANCE SERVICES    ",null,null,null,null,"1 1341 6410 105 HE  GEN  SUPPLIES"]
[null,null,null,null,null,null,null,null,null,null,null,null,null,null,null,null,null,null,null,null,null,null,null,null,"1 2120 6316 105 GU  TEST   SCORING",null,null,null,null,"1 1341 6410 300 HE  GEN  SUPPLIES"]
[null,null,null,null,null,null,null,null,null,null,null,null,null,null,null,null,null,null,null,null,null,null,null,null,"1 2120 6316.1 105 GU TEST  SCORING/ACT",null,null,null,null,"***  FUNCTION  1351  : VOC INDUSTRIAL    TECH    "]
[null,null,null,null,null,null,null,null,null,null,null,null,null,null,null,null,null,null,null,null,null,null,null,null,"1 2120 6410 105 GU  GEN   SUPPLIES",null,null,null,null,"1 1351 6343 105 IT MILEAGE/EXPENSE"]
[null,null,null,null,null,null,null,null,null,null,null,null,null,null,null,null,null,null,null,null,null,null,null,null,"***  FUNCTION  2130  : NURSING SERVICES    ",null,null,null,null,"1 1351 6410 105 IT GEN  SUPPLIES"]
[null,null,null,null,null,null,null,null,null,null,null,null,null,null,null,null,null,null,null,null,null,null,null,null,"1 2130 6410 105 NU  GEN  SUPPLIES",null,null,null,null,"1 1351 6410 300 IT GEN  SUPPLIES"]
[null,null,null,null,null,null,null,null,null,null,null,null,null,null,null,null,null,null,null,null,null,null,null,null,"***  FUNCTION  2220  : MEDIA SERVICES    ",null,null,null,null,"***  FUNCTION  1361  : VOC-TECH    ENHANCEMENT GRNT    "]
[null,null,null,null,null,null,null,null,null,null,null,null,null,null,null,null,null,null,null,null,null,null,null,null,"1 2220 6319.7 105 T6.B PURCH/TECH  SERV",null,null,null,null,"1 1361 6343 105 VE MILEAGE/EXPENSE"]
[null,null,null,null,null,null,null,null,null,null,null,null,null,null,null,null,null,null,null,null,null,null,null,null,"1 2220 6410 105 LB   GEN  SUPPLIES",null,null,null,null,"1 1361 6410 105 VE GEN SUPPLIES"]
[null,null,null,null,null,null,null,null,null,null,null,null,null,null,null,null,null,null,null,null,null,null,null,null,"1 2220 6441 105 LB  LIBRARY   BOOKS",null,null,null,null,"***  FUNCTION  1391  : OTHER CAREER  EDUCATION    "]
[null,null,null,null,null,null,null,null,null,null,null,null,null,null,null,null,null,null,null,null,null,null,null,null,"***  FUNCTION  2540  : OPER  OF  PLANT   - CUSTODIAL    ",null,null,null,null,"1 1391 6319 105 JG  PURCH/TECH SERVICE"]
[null,null,null,null,null,null,null,null,null,null,null,null,null,null,null,null,null,null,null,null,null,null,null,null,"1 2540 6319 105 OM   PURC/TECH  SERV",null,null,null,null,"1 1391 6343 105 JG  MILEAGE/EXPENSE"]
[null,null,null,null,null,null,null,null,null,null,null,null,null,null,null,null,null,null,null,null,null,null,null,null,"1 2540 6335 105 OM   WATER/SEWER",null,null,null,null,"1 1391 6410 105 JG   GEN  SUPPLIES"]
[null,null,null,null,null,null,null,null,null,null,null,null,null,null,null,null,null,null,null,null,null,null,null,null,"1 2540 6336 105 OM  TRASH    REMOVAL",null,null,null,null,"***  FUNCTION  1411  : STUDENT  ACTIVITIES    "]
[null,null,null,null,null,null,null,null,null,null,null,null,null,null,null,null,null,null,null,null,null,null,null,null,"1 2540 6339 105 OM   OTH/PEST    CONTROL",null,null,null,null,"1 1411 6121 800 SA  ACTIVITY PAY/PT"]
[null,null,null,null,null,null,null,null,null,null,null,null,null,null,null,null,null,null,null,null,null,null,null,null,"1 2540 6351 105 OM   PROPERTY INSURANCE",null,null,null,null,"1 1411 6131 800 SA  ACTIVITY  PAY/TRS"]
[null,null,null,null,null,null,null,null,null,null,null,null,null,null,null,null,null,null,null,null,null,null,null,null,null,null,null,null,null,"1 1411 6161 800 SA  ACTIVITY  PAY/NT"]
[null,null,null,null,null,null,null,null,null,null,null,null,null,null,null,null,null,null,null,null,null,null,null,null,null,null,null,null,null,"1 1411 6211 800 SA  RETIREMENT  TEA"]
[null,null,null,null,null,null,null,null,null,null,null,null,null,null,null,null,null,null,null,null,null,null,null,null,null,null,null,null,null,"1 1411 6221 800 SA  NON-TEACHER  RET"]
[null,null,null,null,null,null,null,null,null,null,null,null,null,null,null,null,null,null,null,null,null,null,null,null,null,null,null,null,null,"1 1411 6231 800 SA  SOC  SEC"]
[null,null,null,null,null,null,null,null,null,null,null,null,null,null,null,null,null,null,null,null,null,null,null,null,null,null,null,null,null,"1 1411 6232 800 SA  MEDICARE"]
[null,null,null,null,null,null,null,null,null,null,null,null,null,null,null,null,null,null,null,null,null,null,null,null,null,null,null,null,null,"1 1411 6411 39 SA  CROSS  COUNTRY EXP"]
[null,null,null,null,null,null,null,null,null,null,null,null,null,null,null,null,null,null,null,null,null,null,null,null,null,null,null,null,null,"1 1411 6411.001  SA  ATHLETICS  EXP"]
[null,null,null,null,null,null,null,null,null,null,null,null,null,null,null,null,null,null,null,null,null,null,null,null,null,null,null,null,null,"1 1411 6411.002  SA  MIDDLE  SCHOOL EXP"]
[null,null,null,null,null,null,null,null,null,null,null,null,null,null,null,null,null,null,null,null,null,null,null,null,null,null,null,null,null,"1 1411 6411.003  SA  BAND EXP"]
[null,null,null,null,null,null,null,null,null,null,null,null,null,null,null,null,null,null,null,null,null,null,null,null,null,null,null,null,null,"1 1411 6411.005  SA  JUNIOR  EXP"]
[null,null,null,null,null,null,null,null,null,null,null,null,null,null,null,null,null,null,null,null,null,null,null,null,null,null,null,null,null,"1 1411 6411.006  SA  BASEBALL  EXP"]
[null,null,null,null,null,null,null,null,null,null,null,null,null,null,null,null,null,null,null,null,null,null,null,null,null,null,null,null,null,"1 1411 6411.007  SA   ENVIRONMENTAL CLUB"]
[null,null,null,null,null,null,null,null,null,null,null,null,null,null,null,null,null,null,null,null,null,null,null,null,null,null,null,null,null,"1 1411 6411.009  SA  SPIRIT    SQUAD EXP"]
[null,null,null,null,null,null,null,null,null,null,null,null,null,null,null,null,null,null,null,null,null,null,null,null,null,null,null,null,null,"1 1411 6411.01  SA  ELEM GEN EXP"]
[null,null,null,null,null,null,null,null,null,null,null,null,null,null,null,null,null,null,null,null,null,null,null,null,null,null,null,null,null,"1 1411 6411.011  SA  FCCLA  EXP"]
[null,null,null,null,null,null,null,null,null,null,null,null,null,null,null,null,null,null,null,null,null,null,null,null,null,null,null,null,null,"1 1411 6411.012  SA  MATH/PHYSICS   EXP"]
[null,null,null,null,null,null,null,null,null,null,null,null,null,null,null,null,null,null,null,null,null,null,null,null,null,null,null,null,null,"1 1411 6411.013  SA  BOYS  BASKETBALL"]
[null,null,null,null,null,null,null,null,null,null,null,null,null,null,null,null,null,null,null,null,null,null,null,null,null,null,null,null,null,"1 1411 6411.014  SA  LIBRARY  CLUB  EXP"]
[null,null,null,null,null,null,null,null,null,null,null,null,null,null,null,null,null,null,null,null,null,null,null,null,null,null,null,null,null,"1 1411 6411.015  SA  MISC  EXP"]
[null,null,null,null,null,null,null,null,null,null,null,null,null,null,null,null,null,null,null,null,null,null,null,null,null,null,null,null,null,"1 1411 6411.016  SA  VOCAL MUSIC  EXP"]
[null,null,null,null,null,null,null,null,null,null,null,null,null,null,null,null,null,null,null,null,null,null,null,null,null,null,null,null,null,"1 1411 6411.017  SA  NHS  EXP"]
[null,null,null,null,null,null,null,null,null,null,null,null,null,null,null,null,null,null,null,null,null,null,null,null,null,null,null,null,null,"1 1411 6411.018  SA  GIRLS   BASKETBALL"]
[null,null,null,null,null,null,null,null,null,null,null,null,null,null,null,null,null,null,null,null,null,null,null,null,null,null,null,null,null,"1 1411 6411.019  SA  FBLA  EXP"]
[null,null,null,null,null,null,null,null,null,null,null,null,null,null,null,null,null,null,null,null,null,null,null,null,null,null,null,null,null,"1 1411 6411.02  SA  REFLECTOR EXP"]
[null,null,null,null,null,null,null,null,null,null,null,null,null,null,null,null,null,null,null,null,null,null,null,null,null,null,null,null,null,"1 1411 6411.022  SA  STU  COUNCIL  EXP"]
[null,null,null,null,null,null,null,null,null,null,null,null,null,null,null,null,null,null,null,null,null,null,null,null,null,null,null,null,null,"1 1411 6411.023  SA  VOLLEYBALL EXP"]
[null,null,null,null,null,null,null,null,null,null,null,null,null,null,null,null,null,null,null,null,null,null,null,null,null,null,null,null,null,"1 1411 6411.025  SA  INSTRUC  ACTIV  EXP"]
[null,null,null,null,null,null,null,null,null,null,null,null,null,null,null,null,null,null,null,null,null,null,null,null,null,null,null,null,null,"1 1411 6411.026  SA  SPECIAL   ED  EXP"]
[null,null,null,null,null,null,null,null,null,null,null,null,null,null,null,null,null,null,null,null,null,null,null,null,null,null,null,null,null,"1 1411 6411.029  SA  WCTSA EXP"]
[null,null,null,null,null,null,null,null,null,null,null,null,null,null,null,null,null,null,null,null,null,null,null,null,null,null,null,null,null,"1 1411 6411.031  SA  DISTR   TOURNEY EXP"]
[null,null,null,null,null,null,null,null,null,null,null,null,null,null,null,null,null,null,null,null,null,null,null,null,null,null,null,null,null,"1 1411 6411.032  SA   COMMUNITY SERVICE"]
[null,null,null,null,null,null,null,null,null,null,null,null,null,null,null,null,null,null,null,null,null,null,null,null,null,null,null,null,null,"1 1411 6411.033  SA  FCA"]
[null,null,null,null,null,null,null,null,null,null,null,null,null,null,null,null,null,null,null,null,null,null,null,null,null,null,null,null,null,"1 1411 6411.035  SA  SOFTBALL"]
[null,null,null,null,null,null,null,null,null,null,null,null,null,null,null,null,null,null,null,null,null,null,null,null,null,null,null,null,null,"1 1411 6411.037  SA  SPEC  OLYMPICS"]
[null,null,null,null,null,null,null,null,null,null,null,null,null,null,null,null,null,null,null,null,null,null,null,null,null,null,null,null,null,"1 1411 6411.038  SA  GOLF EXP"]
[null,null,null,null,null,null,null,null,null,null,null,null,null,null,null,null,null,null,null,null,null,null,null,null,null,null,null,null,null,"***  FUNCTION  1910  : TUITION  - OTHER  SCHOOLS    "]
[null,null,null,null,null,null,null,null,null,null,null,null,null,null,null,null,null,null,null,null,null,null,null,null,null,null,null,null,null,"***  FUNCTION  1911  :    "]
[null,null,null,null,null,null,null,null,null,null,null,null,null,null,null,null,null,null,null,null,null,null,null,null,null,null,null,null,null,"2 1911 6311 105 TU  DUAL CREDIT/MAC"]
[null,null,null,null,null,null,null,null,null,null,null,null,null,null,null,null,null,null,null,null,null,null,null,null,null,null,null,null,null,"***  FUNCTION  1921  :    "]
[null,null,null,null,null,null,null,null,null,null,null,null,null,null,null,null,null,null,null,null,null,null,null,null,null,null,null,null,null,"2 1921 6311 105 TU  AREA VOC/TUITION "]
[null,null,null,null,null,null,null,null,null,null,null,null,null,null,null,null,null,null,null,null,null,null,null,null,null,null,null,null,null,"***  FUNCTION  1931  :    "]
[null,null,null,null,null,null,null,null,null,null,null,null,null,null,null,null,null,null,null,null,null,null,null,null,null,null,null,null,null,"***  FUNCTION  1941  : CONTRACTED  EDUC  SERVICES    "]
[null,null,null,null,null,null,null,null,null,null,null,null,null,null,null,null,null,null,null,null,null,null,null,null,null,null,null,null,null,"2 1941 6311 800 CE  CONTR  EDUC  SERV "]
[null,null,null,null,null,null,null,null,null,null,null,null,null,null,null,null,null,null,null,null,null,null,null,null,null,null,null,null,null,"***  FUNCTION  1942  : SUPPLEMENTAL EDUC  SERV    "]
[null,null,null,null,null,null,null,null,null,null,null,null,null,null,null,null,null,null,null,null,null,null,null,null,null,null,null,null,null,"***  FUNCTION  2111  : TITLE  I TESTING    "]
[null,null,null,null,null,null,null,null,null,null,null,null,null,null,null,null,null,null,null,null,null,null,null,null,null,null,null,null,null,"***  FUNCTION  2112  : ATTENDANCE  SERVICES    "]
[null,null,null,null,null,null,null,null,null,null,null,null,null,null,null,null,null,null,null,null,null,null,null,null,null,null,null,null,null,"1 2120 6316 105 GU  TEST   SCORING"]
[null,null,null,null,null,null,null,null,null,null,null,null,null,null,null,null,null,null,null,null,null,null,null,null,null,null,null,null,null,"1 2120 6316 300 GU  TEST   SCORING"]
[null,null,null,null,null,null,null,null,null,null,null,null,null,null,null,null,null,null,null,null,null,null,null,null,null,null,null,null,null,"1 2120 6316 402 GU  TEST   SCORING"]
[null,null,null,null,null,null,null,null,null,null,null,null,null,null,null,null,null,null,null,null,null,null,null,null,null,null,null,null,null,"1 2120 6316.1 105 GU TEST  SCORING/ACT"]
[null,null,null,null,null,null,null,null,null,null,null,null,null,null,null,null,null,null,null,null,null,null,null,null,null,null,null,null,null,"1 2120 6410 105 GU  GEN   SUPPLIES"]
[null,null,null,null,null,null,null,null,null,null,null,null,null,null,null,null,null,null,null,null,null,null,null,null,null,null,null,null,null,"1 2120 6410 300 GU  GEN   SUPPLIES"]
[null,null,null,null,null,null,null,null,null,null,null,null,null,null,null,null,null,null,null,null,null,null,null,null,null,null,null,null,null,"1 2120 6410 402 GU  GEN   SUPPLIES"]
[null,null,null,null,null,null,null,null,null,null,null,null,null,null,null,null,null,null,null,null,null,null,null,null,null,null,null,null,null,"***  FUNCTION  2130  : NURSING SERVICES    "]
[null,null,null,null,null,null,null,null,null,null,null,null,null,null,null,null,null,null,null,null,null,null,null,null,null,null,null,null,null,"1 2130 6410 105 NU  GEN  SUPPLIES"]
[null,null,null,null,null,null,null,null,null,null,null,null,null,null,null,null,null,null,null,null,null,null,null,null,null,null,null,null,null,"1 2130 6410 300 NU  GEN  SUPPLIES"]
[null,null,null,null,null,null,null,null,null,null,null,null,null,null,null,null,null,null,null,null,null,null,null,null,null,null,null,null,null,"1 2130 6410 402 NU  GEN  SUPPLIES"]
[null,null,null,null,null,null,null,null,null,null,null,null,null,null,null,null,null,null,null,null,null,null,null,null,null,null,null,null,null,"***  FUNCTION  2132  : HEALTH  SERVICES    "]
[null,null,null,null,null,null,null,null,null,null,null,null,null,null,null,null,null,null,null,null,null,null,null,null,null,null,null,null,null,"1 2132 6319 402 HE  CONTR HEALTH SERV"]
[null,null,null,null,null,null,null,null,null,null,null,null,null,null,null,null,null,null,null,null,null,null,null,null,null,null,null,null,null,"1 2132 6319 800 HE  CONTR HEALTH SERV"]
[null,null,null,null,null,null,null,null,null,null,null,null,null,null,null,null,null,null,null,null,null,null,null,null,null,null,null,null,null,"***  FUNCTION  2142  : PSYCHOL/EVAL SERVICES    "]
[null,null,null,null,null,null,null,null,null,null,null,null,null,null,null,null,null,null,null,null,null,null,null,null,null,null,null,null,null,"***  FUNCTION  2210  : FEDERAL   PROGRAMS    "]
[null,null,null,null,null,null,null,null,null,null,null,null,null,null,null,null,null,null,null,null,null,null,null,null,null,null,null,null,null,"1 2210 6319.6 105 T5 PURCH/TECH  SERV"]
[null,null,null,null,null,null,null,null,null,null,null,null,null,null,null,null,null,null,null,null,null,null,null,null,null,null,null,null,null,"1 2210 6319.6 300 T5 PURCH/TECH  SERV"]
[null,null,null,null,null,null,null,null,null,null,null,null,null,null,null,null,null,null,null,null,null,null,null,null,null,null,null,null,null,"1 2210 6319.6 402 T5 PURCH/TECH  SERV"]
[null,null,null,null,null,null,null,null,null,null,null,null,null,null,null,null,null,null,null,null,null,null,null,null,null,null,null,null,null,"1 2210 6319.8 105 21CENT/PURCH  SERVICE"]
[null,null,null,null,null,null,null,null,null,null,null,null,null,null,null,null,null,null,null,null,null,null,null,null,null,null,null,null,null,"1 2210 6319.8 300 21CENT/PURCH  SERVICE"]
[null,null,null,null,null,null,null,null,null,null,null,null,null,null,null,null,null,null,null,null,null,null,null,null,null,null,null,null,null,"1 2210 6319.8 402 21CENT/PURCH  SERVICE"]
[null,null,null,null,null,null,null,null,null,null,null,null,null,null,null,null,null,null,null,null,null,null,null,null,null,null,null,null,null,"1 2210 6343.8 105 21CENT/MILEAGE/EXPENS"]
[null,null,null,null,null,null,null,null,null,null,null,null,null,null,null,null,null,null,null,null,null,null,null,null,null,null,null,null,null,"1 2210 6343.8 402 21CENT/MILEAGE/EXPENS"]
[null,null,null,null,null,null,null,null,null,null,null,null,null,null,null,null,null,null,null,null,null,null,null,null,null,null,null,null,null,"1 2210 6410.8 105 21CENT/GEN SUPPLIES"]
[null,null,null,null,null,null,null,null,null,null,null,null,null,null,null,null,null,null,null,null,null,null,null,null,null,null,null,null,null,"1 2210 6410.8 300 21CENT/GEN SUPPLIES"]
[null,null,null,null,null,null,null,null,null,null,null,null,null,null,null,null,null,null,null,null,null,null,null,null,null,null,null,null,null,"1 2210 6410.8 402 21CENT/GEN SUPPLIES"]
[null,null,null,null,null,null,null,null,null,null,null,null,null,null,null,null,null,null,null,null,null,null,null,null,null,null,null,null,null,"***  FUNCTION  2211  : CAREER  LADDER    "]
[null,null,null,null,null,null,null,null,null,null,null,null,null,null,null,null,null,null,null,null,null,null,null,null,null,null,null,null,null,"***  FUNCTION  2213  : IMPROVEMT  OF  INSTRUCTION    "]
[null,null,null,null,null,null,null,null,null,null,null,null,null,null,null,null,null,null,null,null,null,null,null,null,null,null,null,null,null,"1 2213 6319 402  50 T1 PURCH/TECH  SERVICE "]
[null,null,null,null,null,null,null,null,null,null,null,null,null,null,null,null,null,null,null,null,null,null,null,null,null,null,null,null,null,"***  FUNCTION  2214  : PROFESSIONAL  DEVELOPMENT    "]
[null,null,null,null,null,null,null,null,null,null,null,null,null,null,null,null,null,null,null,null,null,null,null,null,null,null,null,null,null,"2 2214 6312 800 PD  TUITION   REIMBURSMT"]
[null,null,null,null,null,null,null,null,null,null,null,null,null,null,null,null,null,null,null,null,null,null,null,null,null,null,null,null,null,"1 2214 6319 800 PD  PURC/TECH   SERV"]
[null,null,null,null,null,null,null,null,null,null,null,null,null,null,null,null,null,null,null,null,null,null,null,null,null,null,null,null,null,"1 2214 6343 800 PD  MILEAGE/EXPENSE "]
[null,null,null,null,null,null,null,null,null,null,null,null,null,null,null,null,null,null,null,null,null,null,null,null,null,null,null,null,null,"1 2214 6410 800 PD  GEN SUPPLIES "]
[null,null,null,null,null,null,null,null,null,null,null,null,null,null,null,null,null,null,null,null,null,null,null,null,null,null,null,null,null,"***  FUNCTION  2219  : GOALS  2000  - LOCAL   REFORM    "]
[null,null,null,null,null,null,null,null,null,null,null,null,null,null,null,null,null,null,null,null,null,null,null,null,null,null,null,null,null,"***  FUNCTION  2220  : MEDIA SERVICES    "]
[null,null,null,null,null,null,null,null,null,null,null,null,null,null,null,null,null,null,null,null,null,null,null,null,null,null,null,null,null,"1 2220 6319.7 105 T6.B PURCH/TECH  SERV"]
[null,null,null,null,null,null,null,null,null,null,null,null,null,null,null,null,null,null,null,null,null,null,null,null,null,null,null,null,null,"1 2220 6319.7 300 T6.B PURCH/TECH  SERV"]
[null,null,null,null,null,null,null,null,null,null,null,null,null,null,null,null,null,null,null,null,null,null,null,null,null,null,null,null,null,"1 2220 6319.7 402 T6.B PURCH/TECH  SERV"]
[null,null,null,null,null,null,null,null,null,null,null,null,null,null,null,null,null,null,null,null,null,null,null,null,null,null,null,null,null,"1 2220 6410 105 LB   GEN  SUPPLIES"]
[null,null,null,null,null,null,null,null,null,null,null,null,null,null,null,null,null,null,null,null,null,null,null,null,null,null,null,null,null,"1 2220 6410 300 LB   GEN  SUPPLIES"]
[null,null,null,null,null,null,null,null,null,null,null,null,null,null,null,null,null,null,null,null,null,null,null,null,null,null,null,null,null,"1 2220 6410 402 LB   GEN  SUPPLIES"]
[null,null,null,null,null,null,null,null,null,null,null,null,null,null,null,null,null,null,null,null,null,null,null,null,null,null,null,null,null,"1 2220 6441 105 LB  LIBRARY   BOOKS"]
[null,null,null,null,null,null,null,null,null,null,null,null,null,null,null,null,null,null,null,null,null,null,null,null,null,null,null,null,null,"1 2220 6441 300 LB  LIBRARY   BOOKS"]
[null,null,null,null,null,null,null,null,null,null,null,null,null,null,null,null,null,null,null,null,null,null,null,null,null,null,null,null,null,"1 2220 6441 402 LB  LIBRARY   BOOKS"]
[null,null,null,null,null,null,null,null,null,null,null,null,null,null,null,null,null,null,null,null,null,null,null,null,null,null,null,null,null,"***  FUNCTION  2223  : AUDIO VISUAL  SERVICES    "]
[null,null,null,null,null,null,null,null,null,null,null,null,null,null,null,null,null,null,null,null,null,null,null,null,null,null,null,null,null,"1 2223 6319 800 E"]
[null,null,null,null,null,null,null,null,null,null,null,null,null,null,null,null,null,null,null,null,null,null,null,null,null,null,null,null,null,"1 2223 6361 800 E"]
[null,null,null,null,null,null,null,null,null,null,null,null,null,null,null,null,null,null,null,null,null,null,null,null,null,null,null,null,null,"***  FUNCTION  2310  : BD OF EDUC SERVICES    "]
[null,null,null,null,null,null,null,null,null,null,null,null,null,null,null,null,null,null,null,null,null,null,null,null,null,null,null,null,null,"1 2310 6319 800 BE  PURC/TECH   SERV"]
[null,null,null,null,null,null,null,null,null,null,null,null,null,null,null,null,null,null,null,null,null,null,null,null,null,null,null,null,null,"1 2310 6343 800 BE  MILEAGE/EXPENSE"]
[null,null,null,null,null,null,null,null,null,null,null,null,null,null,null,null,null,null,null,null,null,null,null,null,null,null,null,null,null,"1 2310 6352 800 BE  LIABILITY   INS"]
[null,null,null,null,null,null,null,null,null,null,null,null,null,null,null,null,null,null,null,null,null,null,null,null,null,null,null,null,null,"1 2310 6353 800 BE  TREAS  BONDS"]
[null,null,null,null,null,null,null,null,null,null,null,null,null,null,null,null,null,null,null,null,null,null,null,null,null,null,null,null,null,"1 2310 6362 800 BE  ADVERTISING"]
[null,null,null,null,null,null,null,null,null,null,null,null,null,null,null,null,null,null,null,null,null,null,null,null,null,null,null,null,null,"1 2310 6371 800 BE DUES/FEES"]
[null,null,null,null,null,null,null,null,null,null,null,null,null,null,null,null,null,null,null,null,null,null,null,null,null,null,null,null,null,"1 2310 6410 800 BE   GEN  SUPPLIES"]
[null,null,null,null,null,null,null,null,null,null,null,null,null,null,null,null,null,null,null,null,null,null,null,null,null,null,null,null,null,"***  FUNCTION  2320  : EXECUTIVE  ADMINISTRATION    "]
[null,null,null,null,null,null,null,null,null,null,null,null,null,null,null,null,null,null,null,null,null,null,null,null,null,null,null,null,null,"1 2320 6319 800 EA  PURC/TECH   SERV"]
[null,null,null,null,null,null,null,null,null,null,null,null,null,null,null,null,null,null,null,null,null,null,null,null,null,null,null,null,null,"1 2320 6334 800 EA  LEASE/RENTAL"]
[null,null,null,null,null,null,null,null,null,null,null,null,null,null,null,null,null,null,null,null,null,null,null,null,null,null,null,null,null,"1 2320 6343 800 EA  MILEAGE/EXPENSE"]
[null,null,null,null,null,null,null,null,null,null,null,null,null,null,null,null,null,null,null,null,null,null,null,null,null,null,null,null,null,"1 2320 6361 800 EA  POSTAGE"]
[null,null,null,null,null,null,null,null,null,null,null,null,null,null,null,null,null,null,null,null,null,null,null,null,null,null,null,null,null,"1 2320 6371 800 EA DUES/FEES"]
[null,null,null,null,null,null,null,null,null,null,null,null,null,null,null,null,null,null,null,null,null,null,null,null,null,null,null,null,null,"1 2320 6398 800 EA  OTH EXPENSE/REFUND"]
[null,null,null,null,null,null,null,null,null,null,null,null,null,null,null,null,null,null,null,null,null,null,null,null,null,null,null,null,null,"1 2320 6410 800 EA  GEN  SUPPLIES"]
[null,null,null,null,null,null,null,null,null,null,null,null,null,null,null,null,null,null,null,null,null,null,null,null,null,null,null,null,null,"***  FUNCTION  2400  : BLD  LEVEL  ADMINISTRATION    "]
[null,null,null,null,null,null,null,null,null,null,null,null,null,null,null,null,null,null,null,null,null,null,null,null,null,null,null,null,null,"1 2400 6343 105 BL  MILEAGE/EXPENSE"]
[null,null,null,null,null,null,null,null,null,null,null,null,null,null,null,null,null,null,null,null,null,null,null,null,null,null,null,null,null,"1 2400 6343 300 BL  MILEAGE/EXPENSE"]
[null,null,null,null,null,null,null,null,null,null,null,null,null,null,null,null,null,null,null,null,null,null,null,null,null,null,null,null,null,"1 2400 6343 402 BL  MILEAGE/EXPENSE"]
[null,null,null,null,null,null,null,null,null,null,null,null,null,null,null,null,null,null,null,null,null,null,null,null,null,null,null,null,null,"1 2400 6343 402  42 EC  MILEAGE/EXPENSE"]
[null,null,null,null,null,null,null,null,null,null,null,null,null,null,null,null,null,null,null,null,null,null,null,null,null,null,null,null,null,"1 2400 6361 105 BL  POSTAGE"]
[null,null,null,null,null,null,null,null,null,null,null,null,null,null,null,null,null,null,null,null,null,null,null,null,null,null,null,null,null,"1 2400 6361 300 BL  POSTAGE"]
[null,null,null,null,null,null,null,null,null,null,null,null,null,null,null,null,null,null,null,null,null,null,null,null,null,null,null,null,null,"1 2400 6361 402 BL  POSTAGE"]
[null,null,null,null,null,null,null,null,null,null,null,null,null,null,null,null,null,null,null,null,null,null,null,null,null,null,null,null,null,"1 2400 6371 105 BL DUES/FEES"]
[null,null,null,null,null,null,null,null,null,null,null,null,null,null,null,null,null,null,null,null,null,null,null,null,null,null,null,null,null,"1 2400 6371 300 BL DUES/FEES"]
[null,null,null,null,null,null,null,null,null,null,null,null,null,null,null,null,null,null,null,null,null,null,null,null,null,null,null,null,null,"1 2400 6371 402 E"]
[null,null,null,null,null,null,null,null,null,null,null,null,null,null,null,null,null,null,null,null,null,null,null,null,null,null,null,null,null,"***  FUNCTION  2540  : OPER  OF  PLANT   - CUSTODIAL    "]
[null,null,null,null,null,null,null,null,null,null,null,null,null,null,null,null,null,null,null,null,null,null,null,null,null,null,null,null,null,"1 2540 6319 105 OM   PURC/TECH  SERV"]
[null,null,null,null,null,null,null,null,null,null,null,null,null,null,null,null,null,null,null,null,null,null,null,null,null,null,null,null,null,"1 2540 6319 402 OM   PURC/TECH  SERV"]
[null,null,null,null,null,null,null,null,null,null,null,null,null,null,null,null,null,null,null,null,null,null,null,null,null,null,null,null,null,"1 2540 6319 800 OM   PURC/TECH  SERV"]
[null,null,null,null,null,null,null,null,null,null,null,null,null,null,null,null,null,null,null,null,null,null,null,null,null,null,null,null,null,"1 2552 6319 800 PT  PURC/TECH  SERV"]
[null,null,null,null,null,null,null,null,null,null,null,null,null,null,null,null,null,null,null,null,null,null,null,null,null,null,null,null,null,"1 2552 6332 800 PT  CONTR REPAIR"]
[null,null,null,null,null,null,null,null,null,null,null,null,null,null,null,null,null,null,null,null,null,null,null,null,null,null,null,null,null,"***  FUNCTION  2554  : HANDIC  TRANS  - DISTRICT    "]
[null,null,null,null,null,null,null,null,null,null,null,null,null,null,null,null,null,null,null,null,null,null,null,null,null,null,null,null,null,"1 2554 6410 800 HD GEN SUPPLIES "]
[null,null,null,null,null,null,null,null,null,null,null,null,null,null,null,null,null,null,null,null,null,null,null,null,null,null,null,null,null,"***  FUNCTION  2558  : NONALLOWABLE  TRANS  EXPENS    "]
[null,null,null,null,null,null,null,null,null,null,null,null,null,null,null,null,null,null,null,null,null,null,null,null,null,null,null,null,null,"***  FUNCTION  2559  : ECSE  TRANSPORT    "]
[null,null,null,null,null,null,null,null,null,null,null,null,null,null,null,null,null,null,null,null,null,null,null,null,null,null,null,null,null,"1 2559 6341 402 42 EC  CONTR  TRANSP "]
[null,null,null,null,null,null,null,null,null,null,null,null,null,null,null,null,null,null,null,null,null,null,null,null,null,null,null,null,null,"***  FUNCTION  2561  : FOOD SERVICES    "]
[null,null,null,null,null,null,null,null,null,null,null,null,null,null,null,null,null,null,null,null,null,null,null,null,null,null,null,null,null,"1 2561 6410 105 FD  GEN  SUPPLIES"]
[null,null,null,null,null,null,null,null,null,null,null,null,null,null,null,null,null,null,null,null,null,null,null,null,null,null,null,null,null,"1 2561 6410 300 FD  GEN  SUPPLIES"]
[null,null,null,null,null,null,null,null,null,null,null,null,null,null,null,null,null,null,null,null,null,null,null,null,null,null,null,null,null,"1 2561 6410 402 FD  GEN  SUPPLIES"]
[null,null,null,null,null,null,null,null,null,null,null,null,null,null,null,null,null,null,null,null,null,null,null,null,null,null,null,null,null,"1 2561 6471 105 FD  FOOD  SUPPLIES"]
[null,null,null,null,null,null,null,null,null,null,null,null,null,null,null,null,null,null,null,null,null,null,null,null,null,null,null,null,null,"1 2561 6471 300 FD  FOOD  SUPPLIES"]
[null,null,null,null,null,null,null,null,null,null,null,null,null,null,null,null,null,null,null,null,null,null,null,null,null,null,null,null,null,"1 2561 6471 402 FD  FOOD  SUPPLIES"]
[null,null,null,null,null,null,null,null,null,null,null,null,null,null,null,null,null,null,null,null,null,null,null,null,null,null,null,null,null,"4 2561 6541 105 FD  GEN  EQUIPMENT"]
[null,null,null,null,null,null,null,null,null,null,null,null,null,null,null,null,null,null,null,null,null,null,null,null,null,null,null,null,null,"4 2561 6541 402 FD  GEN  EQUIPMENT"]
[null,null,null,null,null,null,null,null,null,null,null,null,null,null,null,null,null,null,null,null,null,null,null,null,null,null,null,null,null,"***  FUNCTION  2660  : DATA PROCESSING    "]
[null,null,null,null,null,null,null,null,null,null,null,null,null,null,null,null,null,null,null,null,null,null,null,null,null,null,null,null,null,"1 2660 6151 800 DP  TECH  SALARY"]
[null,null,null,null,null,null,null,null,null,null,null,null,null,null,null,null,null,null,null,null,null,null,null,null,null,null,null,null,null,"1 2660 6221 800 DP  NON  TEACHER  RET"]
[null,null,null,null,null,null,null,null,null,null,null,null,null,null,null,null,null,null,null,null,null,null,null,null,null,null,null,null,null,"1 2660 6231 800 DP  SOC  SEC"]
[null,null,null,null,null,null,null,null,null,null,null,null,null,null,null,null,null,null,null,null,null,null,null,null,null,null,null,null,null,"1 2660 6232 800 DP  MEDICARE"]
[null,null,null,null,null,null,null,null,null,null,null,null,null,null,null,null,null,null,null,null,null,null,null,null,null,null,null,null,null,"1 2660 6241 800 DP  MEDICAL  INS"]
[null,null,null,null,null,null,null,null,null,null,null,null,null,null,null,null,null,null,null,null,null,null,null,null,null,null,null,null,null,"1 2660 6319 105 DP  PURCH/TECH  SERV"]
[null,null,null,null,null,null,null,null,null,null,null,null,null,null,null,null,null,null,null,null,null,null,null,null,null,null,null,null,null,"1 2660 6319 300 DP  PURCH/TECH  SERV"]
[null,null,null,null,null,null,null,null,null,null,null,null,null,null,null,null,null,null,null,null,null,null,null,null,null,null,null,null,null,"1 2660 6319 402 DP  PURCH/TECH  SERV"]
[null,null,null,null,null,null,null,null,null,null,null,null,null,null,null,null,null,null,null,null,null,null,null,null,null,null,null,null,null,"1 2660 6319 800 DP  PURCH/TECH  SERV"]
[null,null,null,null,null,null,null,null,null,null,null,null,null,null,null,null,null,null,null,null,null,null,null,null,null,null,null,null,null,"1 2660 6332 105 DP  CONTR REPAIR"]
[null,null,null,null,null,null,null,null,null,null,null,null,null,null,null,null,null,null,null,null,null,null,null,null,null,null,null,null,null,"1 2660 6332 300 DP  CONTR REPAIR"]
[null,null,null,null,null,null,null,null,null,null,null,null,null,null,null,null,null,null,null,null,null,null,null,null,null,null,null,null,null,"1 2660 6332 402 DP  CONTR REPAIR"]
[null,null,null,null,null,null,null,null,null,null,null,null,null,null,null,null,null,null,null,null,null,null,null,null,null,null,null,null,null,"1 2660 6332 800 DP  CONTR REPAIR"]
[null,null,null,null,null,null,null,null,null,null,null,null,null,null,null,null,null,null,null,null,null,null,null,null,null,null,null,null,null,"1 2660 6343 800 DP  MILEAGE/EXPENSE"]
[null,null,null,null,null,null,null,null,null,null,null,null,null,null,null,null,null,null,null,null,null,null,null,null,null,null,null,null,null,"1 2660 6410 105 DP  GEN  SUPPLIES"]
[null,null,null,null,null,null,null,null,null,null,null,null,null,null,null,null,null,null,null,null,null,null,null,null,null,null,null,null,null,"1 2660 6410 300 DP  GEN  SUPPLIES"]
[null,null,null,null,null,null,null,null,null,null,null,null,null,null,null,null,null,null,null,null,null,null,null,null,null,null,null,null,null,"1 2660 6410 402 DP  GEN  SUPPLIES"]
[null,null,null,null,null,null,null,null,null,null,null,null,null,null,null,null,null,null,null,null,null,null,null,null,null,null,null,null,null,"1 2660 6410 800 DP  GEN  SUPPLIES"]
[null,null,null,null,null,null,null,null,null,null,null,null,null,null,null,null,null,null,null,null,null,null,null,null,null,null,null,null,null,"4 2660 6541 800 E EQUIPMENT"]
[null,null,null,null,null,null,null,null,null,null,null,null,null,null,null,null,null,null,null,null,null,null,null,null,null,null,null,null,null,"***  FUNCTION  3000  : COMMUNITY  SERVICES    "]
[null,null,null,null,null,null,null,null,null,null,null,null,null,null,null,null,null,null,null,null,null,null,null,null,null,null,null,null,null,"***  FUNCTION  3511  : PARENTS  AS  TEACHERS    "]
[null,null,null,null,null,null,null,null,null,null,null,null,null,null,null,null,null,null,null,null,null,null,null,null,null,null,null,null,null,"2 3511 6151 800 PA  PARENT  EDUC  SALARY"]
[null,null,null,null,null,null,null,null,null,null,null,null,null,null,null,null,null,null,null,null,null,null,null,null,null,null,null,null,null,"2 3511 6161 800 PA  PT  PARENT  EDUC  SAL "]
[null,null,null,null,null,null,null,null,null,null,null,null,null,null,null,null,null,null,null,null,null,null,null,null,null,null,null,null,null,"2 3511 6211 800 PA  RETIREMENT  TEA"]
[null,null,null,null,null,null,null,null,null,null,null,null,null,null,null,null,null,null,null,null,null,null,null,null,null,null,null,null,null,"2 3511 6221 800 PA  NON-TEACHER  RET"]
[null,null,null,null,null,null,null,null,null,null,null,null,null,null,null,null,null,null,null,null,null,null,null,null,null,null,null,null,null,"2 3511 6231 800 PA  SOC  SEC "]
[null,null,null,null,null,null,null,null,null,null,null,null,null,null,null,null,null,null,null,null,null,null,null,null,null,null,null,null,null,"2 3511 6232 800 PA  MEDICARE"]
[null,null,null,null,null,null,null,null,null,null,null,null,null,null,null,null,null,null,null,null,null,null,null,null,null,null,null,null,null,"2 3511 6241 800 PA  MEDICAL  INS"]
[null,null,null,null,null,null,null,null,null,null,null,null,null,null,null,null,null,null,null,null,null,null,null,null,null,null,null,null,null,"1 3511 6319 800 PA  PURC/TECH   SERV"]
[null,null,null,null,null,null,null,null,null,null,null,null,null,null,null,null,null,null,null,null,null,null,null,null,null,null,null,null,null,"1 3511 6343 800 PA  MILEAGE/EXPENSE "]
[null,null,null,null,null,null,null,null,null,null,null,null,null,null,null,null,null,null,null,null,null,null,null,null,null,null,null,null,null,"1 3511 6410 800 PA  GEN SUPPLIES "]
[null,null,null,null,null,null,null,null,null,null,null,null,null,null,null,null,null,null,null,null,null,null,null,null,null,null,null,null,null,"***  FUNCTION  3512  : TITLE  I PRE-SCHOOL    "]
[null,null,null,null,null,null,null,null,null,null,null,null,null,null,null,null,null,null,null,null,null,null,null,null,null,null,null,null,null,"2 3512 6112 402  52 PS TEACHER  SALARY"]
[null,null,null,null,null,null,null,null,null,null,null,null,null,null,null,null,null,null,null,null,null,null,null,null,null,null,null,null,null,"2 3512 6151 402  52 PS AIDE   SALARY"]
[null,null,null,null,null,null,null,null,null,null,null,null,null,null,null,null,null,null,null,null,null,null,null,null,null,null,null,null,null,"2 3512 6211 402  52 PS RETIREMENT  TEA"]
[null,null,null,null,null,null,null,null,null,null,null,null,null,null,null,null,null,null,null,null,null,null,null,null,null,null,null,null,null,"2 3512 6221 402  52 PS NON-TEACHER  RET"]
[null,null,null,null,null,null,null,null,null,null,null,null,null,null,null,null,null,null,null,null,null,null,null,null,null,null,null,null,null,"2 3512 6231 402  52 PS SOC  SEC "]
[null,null,null,null,null,null,null,null,null,null,null,null,null,null,null,null,null,null,null,null,null,null,null,null,null,null,null,null,null,"2 3512 6232 402  52 PS MEDICARE"]
[null,null,null,null,null,null,null,null,null,null,null,null,null,null,null,null,null,null,null,null,null,null,null,null,null,null,null,null,null,"2 3512 6241 402  52 PS MEDICAL  INS"]
[null,null,null,null,null,null,null,null,null,null,null,null,null,null,null,null,null,null,null,null,null,null,null,null,null,null,null,null,null,"1 3512 6410 402  52 PS GEN SUPPLIES "]
[null,null,null,null,null,null,null,null,null,null,null,null,null,null,null,null,null,null,null,null,null,null,null,null,null,null,null,null,null,"***  FUNCTION  3800  : SCHOOL-AGE  CHILD   CARE    "]
[null,null,null,null,null,null,null,null,null,null,null,null,null,null,null,null,null,null,null,null,null,null,null,null,null,null,null,null,null,"***  FUNCTION  3812  :    "]
[null,null,null,null,null,null,null,null,null,null,null,null,null,null,null,null,null,null,null,null,null,null,null,null,null,null,null,null,null,"1 3812 6161.8 402 AS   PT   COOK SALARY"]
[null,null,null,null,null,null,null,null,null,null,null,null,null,null,null,null,null,null,null,null,null,null,null,null,null,null,null,null,null,"1 3812 6221.8 402 AS   NON  TEACHER  RET"]
[null,null,null,null,null,null,null,null,null,null,null,null,null,null,null,null,null,null,null,null,null,null,null,null,null,null,null,null,null,"1 3812 6231.8 402 AS  SOC  SEC "]
[null,null,null,null,null,null,null,null,null,null,null,null,null,null,null,null,null,null,null,null,null,null,null,null,null,null,null,null,null,"1 3812 6232.8 402 AS  MEDICARE"]
[null,null,null,null,null,null,null,null,null,null,null,null,null,null,null,null,null,null,null,null,null,null,null,null,null,null,null,null,null,"1 3812 6491 105 AS  FOOD SUPPLIES "]
[null,null,null,null,null,null,null,null,null,null,null,null,null,null,null,null,null,null,null,null,null,null,null,null,null,null,null,null,null,"1 3812 6491 300 AS  FOOD SUPPLIES "]
[null,null,null,null,null,null,null,null,null,null,null,null,null,null,null,null,null,null,null,null,null,null,null,null,null,null,null,null,null,"1 3812 6491 402 AS  FOOD SUPPLIES "]
[null,null,null,null,null,null,null,null,null,null,null,null,null,null,null,null,null,null,null,null,null,null,null,null,null,null,null,null,null,"*** FUNC TION  3900  : SCHOLARSHIP  "]
[null,null,null,null,null,null,null,null,null,null,null,null,null,null,null,null,null,null,null,null,null,null,null,null,null,null,null,null,null,"1 3900 6390 800 CS  SCHOLARSHIPS  PAID "]
[null,null,null,null,null,null,null,null,null,null,null,null,null,null,null,null,null,null,null,null,null,null,null,null,null,null,null,null,null,"*** FUNC TION  3911  : SUMMER  FOOD   SERVICE  "]
[null,null,null,null,null,null,null,null,null,null,null,null,null,null,null,null,null,null,null,null,null,null,null,null,null,null,null,null,null,"1 3911 6161 105 SS COOK SALARY "]
[null,null,null,null,null,null,null,null,null,null,null,null,null,null,null,null,null,null,null,null,null,null,null,null,null,null,null,null,null,"1 3911 6161 402 SS COOK SALARY "]
[null,null,null,null,null,null,null,null,null,null,null,null,null,null,null,null,null,null,null,null,null,null,null,null,null,null,null,null,null,"1 3911 6221 105 SS NON  TEACHER  RET "]
[null,null,null,null,null,null,null,null,null,null,null,null,null,null,null,null,null,null,null,null,null,null,null,null,null,null,null,null,null,"1 3911 6221 402 SS NON  TEACHER  RET "]
[null,null,null,null,null,null,null,null,null,null,null,null,null,null,null,null,null,null,null,null,null,null,null,null,null,null,null,null,null,"1 3911 6231 105 SS SOC  SEC "]
[null,null,null,null,null,null,null,null,null,null,null,null,null,null,null,null,null,null,null,null,null,null,null,null,null,null,null,null,null,"1 3911 6231 402 SS SOC  SEC "]
[null,null,null,null,null,null,null,null,null,null,null,null,null,null,null,null,null,null,null,null,null,null,null,null,null,null,null,null,null,"1 3911 6232 105 SS MEDICARE"]
[null,null,null,null,null,null,null,null,null,null,null,null,null,null,null,null,null,null,null,null,null,null,null,null,null,null,null,null,null,"1 3911 6232 402 SS MEDICARE"]
[null,null,null,null,null,null,null,null,null,null,null,null,null,null,null,null,null,null,null,null,null,null,null,null,null,null,null,null,null,"1 3911 6410 300 SS GEN SUPPLIES "]
[null,null,null,null,null,null,null,null,null,null,null,null,null,null,null,null,null,null,null,null,null,null,null,null,null,null,null,null,null,"1 3911 6410 402 SS GEN SUPPLIES "]
[null,null,null,null,null,null,null,null,null,null,null,null,null,null,null,null,null,null,null,null,null,null,null,null,null,null,null,null,null,"1 3911 6491 105 SS FOOD SUPPLIES "]
[null,null,null,null,null,null,null,null,null,null,null,null,null,null,null,null,null,null,null,null,null,null,null,null,null,null,null,null,null,"1 3911 6491 300 SS FOOD SUPPLIES "]
[null,null,null,null,null,null,null,null,null,null,null,null,null,null,null,null,null,null,null,null,null,null,null,null,null,null,null,null,null,"1 3911 6491 402 SS FOOD SUPPLIES "]
[null,null,null,null,null,null,null,null,null,null,null,null,null,null,null,null,null,null,null,null,null,null,null,null,null,null,null,null,null,"***  FUNCTION  3912  : PARENTAL   INVOLVEMENT    "]
[null,null,null,null,null,null,null,null,null,null,null,null,null,null,null,null,null,null,null,null,null,null,null,null,null,null,null,null,null,"***  FUNCTION  4000  : FACILITY   ACQUIS/CONSTRUC    "]
[null,null,null,null,null,null,null,null,null,null,null,null,null,null,null,null,null,null,null,null,null,null,null,null,null,null,null,null,null,"4 4000 6521 300 E"]
[null,null,null,null,null,null,null,null,null,null,null,null,null,null,null,null,null,null,null,null,null,null,null,null,null,null,null,null,null,"***  FUNCTION  4050  : BUILDING    IMPROVEMENT    "]
[null,null,null,null,null,null,null,null,null,null,null,null,null,null,null,null,null,null,null,null,null,null,null,null,null,null,null,null,null,"4 4050 6521 105 BI BLDG IMPROV/MAINT"]
[null,null,null,null,null,null,null,null,null,null,null,null,null,null,null,null,null,null,null,null,null,null,null,null,null,null,null,null,null,"4 4050 6521 300 BI BLDG IMPROV/MAINT"]
[null,null,null,null,null,null,null,null,null,null,null,null,null,null,null,null,null,null,null,null,null,null,null,null,null,null,null,null,null,"4 4050 6521 402 BI BLDG IMPROV/MAINT"]
[null,null,null,null,null,null,null,null,null,null,null,null,null,null,null,null,null,null,null,null,null,null,null,null,null,null,null,null,null,"***  FUNCTION  5110  :    "]
[null,null,null,null,null,null,null,null,null,null,null,null,null,null,null,null,null,null,null,null,null,null,null,null,null,null,null,null,null,"3 5110 6611 800 DS   RET  OF  BONDS"]
[null,null,null,null,null,null,null,null,null,null,null,null,null,null,null,null,null,null,null,null,null,null,null,null,null,null,null,null,null,"*** FUNCTION 5210  "]
[null,null,null,null,null,null,null,null,null,null,null,null,null,null,null,null,null,null,null,null,null,null,null,null,null,null,null,null,null,"3 5210 6621 800 DS  INTEREST    ON  BONDS"]
[null,null,null,null,null,null,null,null,null,null,null,null,null,null,null,null,null,null,null,null,null,null,null,null,null,null,null,null,null,"*** FUNCTION 5230  "]
[null,null,null,null,null,null,null,null,null,null,null,null,null,null,null,null,null,null,null,null,null,null,null,null,null,null,null,null,null,"4 5230 6623 300 LP  LEAS/PURC  INTEREST"]
[null,null,null,null,null,null,null,null,null,null,null,null,null,null,null,null,null,null,null,null,null,null,null,null,null,null,null,null,null,"*** FUNCTION 5310  "]
[null,null,null,null,null,null,null,null,null,null,null,null,null,null,null,null,null,null,null,null,null,null,null,null,null,null,null,null,null,"3 5310 6631 800 DS   OTHER FEES"]
[null,null,null,null,null,null,null,null,null,null,null,null,null,null,null,null,null,null,null,null,null,null,null,null,null,null,null,null,null,"*** FUNCTION 5330  "]
[null,null,null,null,null,null,null,null,null,null,null,null,null,null,null,null,null,null,null,null,null,null,null,null,null,null,null,null,null,"4 5330 6631 300 LP   OTHER FEES"]
[]
[]
[]
[]
[]
[]
[]
[]
[]
[]
[]
[]
[]
[]
[]
[]
[]
[]
[]
[]
[]
[]
[]
[]
[]
[]
[]
[]
[]
[]
[]
[]
[]
[]
[]
[]
[]
[]
[]
[]
[]
[]
[]
[]
[]
[]
[]
[]
[]
[]
[]
[]
[]
[]
[null,null,null,null,null,null,null,null,null,null,null,null,null,null,null,null,null,null,null,null,null,null,null,null,null,null,null,null,null,"   "]
[null,null,null,null,null,null,null,null,null,null,null,null,null,null,null,null,null,null,null,null,null,null,null,null,null,null,null,null,null,"   "]
[null,null,null,null,null,null,null,null,null,null,null,null,null,null,null,null,null,null,null,null,null,null,null,null,null,null,null,null,null,"   "]
[null,null,null,null,null,null,null,null,null,null,null,null,null,null,null,null,null,null,null,null,null,null,null,null,null,null,null,null,null,"   "]
[null,null,null,null,null,null,null,null,null,null,null,null,null,null,null,null,null,null,null,null,null,null,null,null,null,null,null,null,null,"   "]
[null,null,null,null,null,null,null,null,null,null,null,null,null,null,null,null,null,null,null,null,null,null,null,null,null,null,null,null,null,"   "]

{"sheet":"Req (4)","index":3,"n_rows":358,"n_cols":30,"rows_kept":358,"cut":false,"hidden":false,"merged":[[50,4,52,5],[38,9,38,10],[39,9,39,10],[41,3,41,6],[41,9,44,10],[42,3,42,6],[44,3,46,6],[32,3,32,8],[33,3,33,8],[34,3,34,8],[35,3,35,8],[36,3,36,8],[37,1,37,9],[26,3,26,8],[27,3,27,8],[28,3,28,8],[29,3,29,8],[30,3,30,8],[31,3,31,8],[20,3,20,8],[21,3,21,8],[22,3,22,8],[23,3,23,8],[24,3,24,8],[25,3,25,8],[17,8,17,10],[18,4,18,7],[18,8,18,10],[19,0,19,3],[19,4,19,7],[19,8,19,10],[16,2,16,3],[16,4,16,5],[16,6,16,7],[17,0,17,1],[17,2,17,3],[17,4,17,5],[17,6,17,7],[11,1,11,4],[11,6,11,10],[12,1,12,4],[12,6,12,10],[13,6,13,7],[13,8,13,10],[5,0,5,6],[5,7,6,10],[6,0,6,6],[7,7,8,10],[10,1,10,4],[10,6,10,10],[0,0,0,10],[1,0,1,10],[1,12,3,13],[1,18,1,20],[2,0,2,6],[2,7,2,10],[3,0,3,6],[3,7,4,10],[4,0,4,6]]}
[]
["Requisition",null,null,null,null,null,null,null,null,null,null,null,null,null,null,null,"Building","Form Type","Sites",null,null,null,"Elementary Codes","Middle School Codes","High School Codes","Bus/Maintenance Codes","SPED Codes","PDC Codes","Food Service","All Codes"]
[null,null,null,null,null,null,null,"fv. 06122018"]
["BILL TO:  BOARD OF EDUCATION",null,null,null,null,null,null,{"$f":"IF(A2=\"PURCHASE ORDER\",\"PURCHASE ORDER\",\"\")","v":""},null,null,null,null,null,null,null,null,"WC_District","Requisition","West St. Francois County R-IV Bus/Maintenance","1124 Main Street","Leadwood, MO. 63653",null,"***  FUNCTION  1110  : ELEMENTARY  INSTRUCTION    ","***  FUNCTION  1130  : MIDDLE SCHOOL INSTRUCTION    ","***  FUNCTION  1150  : HIGH  SCHOOL INSTRUCTION    ",null,"***  FUNCTION  1221  : SPECIAL    PROGRAMS - EMH    ","***  FUNCTION  2214  : PROFESSIONAL  DEVELOPMENT    ","***  FUNCTION  2561  : FOOD SERVICES    ","***  FUNCTION  1110  : ELEMENTARY  INSTRUCTION    "]
["  WEST ST. FRANCOIS COUNTY R-IV SCHOOL DISTRICT",null,null,null,null,null,null,null,null,null,null,null,null,null,null,null,"WC_SPED","Purchase Order","West St. Francois County R-IV School District SPED","1124 Main Street","Leadwood, MO. 63653",null,"1 1110 6319 402 EL  PURCH/TECH  SERV","1 1130 6319 300 MS  PURCH/TECH  SERV","1 1150 6319 105 HS  PURCH/TECH SERVICE",null,"1 1221 6319 402  03 SE  PURCH/TECH SERV","2 2214 6121 800 PD  SUBST   TEACHER","1 2561 6151 105 FD  COOKS  SALARY","1 1110 6319 402 EL  PURCH/TECH  SERV"]
["                   1124 MAIN STREET, LEADWOOD, MO  63653-1214",null,null,null,null,null,null,null,null,null,null,null,null,null,null,null,"WCES",null,"West St. Francois County R-IV Food Service","624 Chariton Ave","Parkhills, MO.  63601",null,"1 1110 6343 402 EL  MILEAGE/EXPENSE","1 1130 6332 300 MS CONTR REPAIR","1 1150 6332 105 HS  CONTR REPAIR",null,"1 1221 6343 105  03 SE  MILEAGE/EXPENSE","2 2214 6131 800 PD  STIPENDS ","1 2561 6151 300 FD  COOKS  SALARY","1 1110 6343 402 EL  MILEAGE/EXPENSE"]
["                   (573)562-7535 fax (573)562-2710",null,null,null,null,null,null,null,null,null,null,null,null,null,null,null,"WCMS",null,"West St. Francois County R-IV Middle School","728 Hwy. M","Park Hills, MO.  63601",null,"1 1110 6410 402 EL   GEN  SUPPLIES","1 1130 6343 300 MS MILEAGE/EXPENSE","1 1150 6343 105 HS  MILEAGE/EXPENSE",null,"1 1221 6343 300  03 SE  MILEAGE/EXPENSE","2 2214 6211 800 PD  RETIREMENT  TEA","1 2561 6151 402 FD  COOKS  SALARY","1 1110 6410 402 EL   GEN  SUPPLIES"]
[" ",null,null,null,null,null,null,{"$f":"IF(A2=\"PURCHASE ORDER\",\"THIS NUMBER MUST APPEAR ON ALL PACKAGES, LABELS, CARTONS, PACKING SLIPS, BILLS OF LADING, INVOICES, AND ALL CORRESPONDANCE REFERRING TO THIS ORDER\",\"\")","v":""},null,null,null,null,null,null,null,null,"WCHS",null,"West St. Francois County R-IV High School","768 Highway M","Park Hills, MO.  63601",null,"1 1110 6410.1 402 EL  TECH  SUPPLIES","1 1130 6410 300 MS  GEN   SUPPLIES","1 1150 6410 105 HS   GEN  SUPPLIES",null,"1 1221 6343 402  03 SE  MILEAGE/EXPENSE","1 2214 6221 800 PD  NON-TEACHER  RET","1 2561 6151 800 FD  COOKS  SALARY","1 1110 6410.1 402 EL  TECH  SUPPLIES"]
[null,null,null,null,null,null,null,null,null,null,null,null,null,null,null,null,"WC_Bus_Maint",null,"West St. Francois County R-IV Bus/Maintenance","1124 Main Street","Leadwood, MO. 63653",null,null,"1 1130 6410.1 300 MS  TECH   SUPPLIES","1 1150 6410.1 105 HS  TECH  SUPPLIES",null,"1 1221 6343 800  03 SE  MILEAGE/EXPENSE","1 2214 6231 800 PD  SOC  SEC ","1 2561 6161 105 FD  PT   COOK SALARY/SUB","***  FUNCTION  1119  : READING  1ST GRANT    "]
["VENDOR NO.",null,null,null,null,"SHIP FREIGHT PREPAID TO:",null,null,null,null,null,null,null,null,null,null,"WC_FS",null,"West St. Francois County R-IV High School","768 Highway M","Park Hills, MO.  63601",null,null,"4 1130 6541 300 MS  GEN  EQUIPMENT","4 1150 6541 105 HS  GEN  EQUIPMENT",null,"1 1221 6410 105  03 SE   GEN SUPPLIES","2 2214 6231 800 PD  SOC  SEC ","1 2561 6161 300 FD  PT   COOK SALARY/SUB","***  FUNCTION  1130  : MIDDLE SCHOOL INSTRUCTION    "]
[null,null,null,null,null,null,{"$f":"IF(I20=\"\",\"\",VLOOKUP(I20,Q4:U12,3))","v":""},null,null,null,null,null,null,null,null,null,"WC_PDC",null,"West St. Francois County R-IV Middle School","728 Hwy. M","Park Hills, MO.  63601",null,null,"***  FUNCTION  1341  : HOME ECONOMICS    ","***  FUNCTION  1341  : HOME ECONOMICS    ",null,"1 1221 6410 300  03 SE   GEN SUPPLIES","1 2214 6232 800 PD  MEDICARE","1 2561 6161 402 FD  PT   COOK SALARY/SUB","1 1130 6319 300 MS  PURCH/TECH  SERV"]
[null,null,null,null,null,null,{"$f":"IF(G11=\"\",\"\",VLOOKUP(I20,Q4:U12,4))","v":""},null,null,null,null,null,null,null,null,null,null,null,null,null,null,null,null,"1 1341 6410 300 HE  GEN  SUPPLIES","2 1341 6112 105 HE  TEACHER  SALARY",null,"1 1221 6410 402  03 SE   GEN SUPPLIES","2 2214 6232 800 PD  MEDICARE","1 2561 6171 300 FD  SICKLEAVE   PAY","1 1130 6332 300 MS CONTR REPAIR"]
[null,null,null,null,null,null,{"$f":"IF(G11=\"\",\"\",VLOOKUP(I20,Q4:U12,5))","v":""},null,null,null,null,null,null,null,null,null,null,null,null,null,null,null,null,"***  FUNCTION  1351  : VOC INDUSTRIAL    TECH    ","2 1341 6211 105 HE  RETIREMENT   TEA",null,"1 1221 6410 800  03 SE   GEN SUPPLIES","2 2214 6312 800 PD  TUITION   REIMBURSMT","1 2561 6221 105 FD  NON  TEACHER  RET","1 1130 6343 300 MS MILEAGE/EXPENSE"]
[null,"Phone",null,"Fax",null,null,"Attention:",null,{"$f":"IF(E20=\"\",\"\",E20)","v":""},null,null,null,null,null,null,null,null,null,null,null,null,null,null,"1 1351 6410 300 IT GEN  SUPPLIES","2 1341 6232 105 HE  MEDICARE",null,null,"1 2214 6319 800 PD  PURC/TECH   SERV","1 2561 6221 300 FD  NON  TEACHER  RET","1 1130 6410 300 MS  GEN   SUPPLIES"]
[null,null,null,null,null,null,null,null,null,null,null,null,null,null,null,null,null,null,null,null,null,null,null,"***  FUNCTION  1411  : STUDENT  ACTIVITIES    ","2 1341 6241 105 HE  MEDICAL   INS",null,null,"1 2214 6343 800 PD  MILEAGE/EXPENSE ","1 2561 6221 402 FD  NON  TEACHER  RET","1 1130 6410.1 300 MS  TECH   SUPPLIES"]
["THIS IS A TAX EXEMPT PURCHASE.  DO NOT INCLUDE STATE SALES TAX OR FEDERAL EXCISE TAX",null,null,null,null,null,null,null,null,null,null,null,null,null,null,null,null,null,null,null,null,null,null,"1 1411 6411.002  SA  MIDDLE  SCHOOL EXP","1 1341 6343 105 HE MILEAGE/EXPENSE",null,null,"1 2214 6410 800 PD  GEN SUPPLIES ","1 2561 6221 800 FD  NON  TEACHER  RET","4 1130 6541 300 MS  GEN  EQUIPMENT"]
["ORDER DATE",null,"DATE WANTED",null,"SHIP VIA",null,"TERMS",null,"IN ACCORDANCE WITH BID OR CONTRACT DATED",null,null,null,null,null,null,null,null,null,null,null,null,null,null,"***  FUNCTION  2120  : GUIDANCE SERVICES    ","1 1341 6410 105 HE  GEN  SUPPLIES",null,null,null,"1 2561 6231 105 FD  SOC  SEC","***  FUNCTION  1150  : HIGH  SCHOOL INSTRUCTION    "]
[null,null,null,null,null,null,null,null,null,null,null,null,null,null,null,null,null,null,null,null,null,null,null,"1 2120 6410 300 GU  GEN   SUPPLIES","***  FUNCTION  1351  : VOC INDUSTRIAL    TECH    ",null,null,null,"1 2561 6231 300 FD  SOC  SEC","1 1150 6319 105 HS  PURCH/TECH SERVICE"]
["FUND APPROPRIATION EXPENDITURE ACCOUNT",null,null,null,"REQUISITIONED BY ",null,null,null,"BUILDING",null,null,null,null,null,null,null,null,null,null,null,null,null,null,"***  FUNCTION  2130  : NURSING SERVICES    ","1 1351 6343 105 IT MILEAGE/EXPENSE",null,null,null,"1 2561 6231 402 FD  SOC  SEC","1 1150 6332 105 HS  CONTR REPAIR"]
[null,null,null,null,null,null,null,null,null,null,null,null,null,null,null,null,null,null,null,null,null,null,null,"1 2130 6410 300 NU  GEN  SUPPLIES","1 1351 6410 105 IT GEN  SUPPLIES",null,null,null,"1 2561 6231 800 FD  SOC  SEC","1 1150 6343 105 HS  MILEAGE/EXPENSE"]
[null,"Quantity","Catalog Number","Description",null,null,null,null,null,"Unit Price","Amount",null,null,null,null,null,null,null,null,null,null,null,null,"***  FUNCTION  2220  : MEDIA SERVICES    ","***  FUNCTION  1341  : HOME ECONOMICS    ",null,null,null,"1 2561 6232 105 FD  MEDICARE","1 1150 6410 105 HS   GEN  SUPPLIES"]
[null,null,null,null,null,null,null,null,null,null,{"$f":"IF(B22=\"\",\"\",B22*J22)","v":""},null,null,null,null,null,null,null,null,null,null,null,null,"1 2220 6319.7 300 T6.B PURCH/TECH  SERV","1 1341 6343 105 HE MILEAGE/EXPENSE",null,null,null,"1 2561 6232 300 FD  MEDICARE","1 1150 6410.1 105 HS  TECH  SUPPLIES"]
[null,null,null,null,null,null,null,null,null,null,"",null,null,null,null,null,null,null,null,null,null,null,null,"1 2220 6410 300 LB   GEN  SUPPLIES","1 1341 6410 105 HE  GEN  SUPPLIES",null,null,null,"1 2561 6232 402 FD  MEDICARE","4 1150 6541 105 HS  GEN  EQUIPMENT"]
[null,null,null,null,null,null,null,null,null,null,"",null,null,null,null,null,null,null,null,null,null,null,null,"1 2220 6441 300 LB  LIBRARY   BOOKS","1 1341 6410 300 HE  GEN  SUPPLIES",null,null,null,"1 2561 6232 800 FD  MEDICARE","***  FUNCTION  1170  : ALTERNATIVE INSTRUCTION    "]
[null,null,null,null,null,null,null,null,null,null,"",null,null,null,null,null,null,null,null,null,null,null,null,"***  FUNCTION  2540  : OPER  OF  PLANT   - CUSTODIAL    ","***  FUNCTION  1411  : STUDENT  ACTIVITIES    ",null,null,null,"1 2561 6241 105 FD  MEDICAL  INS","1 1170 6319 105 AL  PURCH/TECH  SERV"]
[null,null,null,null,null,null,null,null,null,null,"",null,null,null,null,null,null,null,null,null,null,null,null,"1 2540 6410 300 GEN SUPPLIES","1 1411 6121 800 SA  ACTIVITY PAY/PT",null,null,null,"1 2561 6241 300 FD  MEDICAL  INS","1 1170 6410 105 AL  GEN  SUPPLIES"]
[null,null,null,null,null,null,null,null,null,null,"",null,null,null,null,null,null,null,null,null,null,null,null,"***  FUNCTION  2210  : FEDERAL   PROGRAMS    ","1 1411 6131 800 SA  ACTIVITY  PAY/TRS",null,null,null,"1 2561 6241 402 FD  MEDICAL  INS","***  FUNCTION  1191  : SUMMER SCHOOL    "]
[null,null,null,null,null,null,null,null,null,null,"",null,null,null,null,null,null,null,null,null,null,null,null,"1 2210 6319.8 300 21CENT/PURCH  SERVICE","1 1411 6161 800 SA  ACTIVITY  PAY/NT",null,null,null,"1 2561 6261 105 FD   WORKMANS COMP","1 1191 6410 800 SS GEN  SUPPLIES"]
[null,null,null,null,null,null,null,null,null,null,"",null,null,null,null,null,null,null,null,null,null,null,null,"1 2210 6410.8 300 21CENT/GEN SUPPLIES","1 1411 6411 39 SA  CROSS  COUNTRY EXP",null,null,null,"1 2561 6261 300 FD   WORKMANS COMP","***  FUNCTION  1192  : JUVENILE    PROGRAM    "]
[null,null,null,null,null,null,null,null,null,null,"",null,null,null,null,null,null,null,null,null,null,null,null,"***  FUNCTION  2214  : PROFESSIONAL  DEVELOPMENT    ","1 1411 6411.001  SA  ATHLETICS  EXP",null,null,null,"1 2561 6261 402 FD   WORKMANS COMP","1 1192 6319 105 JP PURCH/TECH  SERV"]
[null,null,null,null,null,null,null,null,null,null,"",null,null,null,null,null,null,null,null,null,null,null,null,"2 2214 6312 800 PD  TUITION   REIMBURSMT","1 1411 6411.002  SA  MIDDLE  SCHOOL EXP",null,null,null,"1 2561 6343 402 FD  MILEAGE/EXPENSE","1 1192 6410 105 JP GEN  SUPPLIES"]
[null,null,null,null,null,null,null,null,null,null,"",null,null,null,null,null,null,null,null,null,null,null,null,"1 2214 6319 800 PD  PURC/TECH   SERV","1 1411 6411.003  SA  BAND EXP",null,null,null,"1 2561 6343 800 FD  MILEAGE/EXPENSE","***  FUNCTION  1211  : SPECIAL    PROGRAMS - GIFTED    "]
[null,null,null,null,null,null,null,null,null,null,"",null,null,null,null,null,null,null,null,null,null,null,null,"1 2214 6343 800 PD  MILEAGE/EXPENSE ","1 1411 6411.005  SA  JUNIOR  EXP",null,null,null,"1 2561 6391 105 FD  OTHER PURCH SERV","***  FUNCTION  1221  : SPECIAL    PROGRAMS - EMH    "]
[null,null,null,null,null,null,null,null,null,null,"",null,null,null,null,null,null,null,null,null,null,null,null,"1 2214 6410 800 PD  GEN SUPPLIES ","1 1411 6411.006  SA  BASEBALL  EXP",null,null,null,"1 2561 6410 105 FD  GEN  SUPPLIES","1 1221 6319 402  03 SE  PURCH/TECH SERV"]
[null,null,null,null,null,null,null,null,null,null,"",null,null,null,null,null,null,null,null,null,null,null,null,null,"1 1411 6411.007  SA   ENVIRONMENTAL CLUB",null,null,null,"1 2561 6410 300 FD  GEN  SUPPLIES","1 1221 6343 105  03 SE  MILEAGE/EXPENSE"]
[null,null,null,null,null,null,null,null,null,null,"",null,null,null,null,null,null,null,null,null,null,null,null,null,"1 1411 6411.009  SA  SPIRIT    SQUAD EXP",null,null,null,"1 2561 6410 402 FD  GEN  SUPPLIES","1 1221 6343 300  03 SE  MILEAGE/EXPENSE"]
[null,null,null,null,null,null,null,null,null,null,"",null,null,null,null,null,null,null,null,null,null,null,null,null,"1 1411 6411.011  SA  FCCLA  EXP",null,null,null,"1 2561 6471 105 FD  FOOD  SUPPLIES","1 1221 6343 402  03 SE  MILEAGE/EXPENSE"]
[null,"SHIPPING",null,null,null,null,null,null,null,null,null,null,null,null,null,null,null,null,null,null,null,null,null,null,"1 1411 6411.012  SA  MATH/PHYSICS   EXP",null,null,null,"1 2561 6471 300 FD  FOOD  SUPPLIES","1 1221 6343 800  03 SE  MILEAGE/EXPENSE"]
["*** Bill to Board of Education, West St. Francois County R-IV, at above address",null,null,null,null,null,null,null,null,"Total Amount",null,null,null,null,null,null,null,null,null,null,null,null,null,null,"1 1411 6411.013  SA  BOYS  BASKETBALL",null,null,null,"1 2561 6471 402 FD  FOOD  SUPPLIES","1 1221 6410 105  03 SE   GEN SUPPLIES"]
[null,null,null,null,null,null,null,null,null,{"$f":"IF(K22=\"\",\"\",SUM(K22:K38))","v":""},null,null,null,null,null,null,null,null,null,null,null,null,null,null,"1 1411 6411.014  SA  LIBRARY  CLUB  EXP",null,null,null,"4 2561 6541 105 FD  GEN  EQUIPMENT","1 1221 6410 300  03 SE   GEN SUPPLIES"]
[null,null,null,null,null,null,null,null,null,null,null,null,null,null,null,null,null,null,null,null,null,null,null,null,"1 1411 6411.015  SA  MISC  EXP",null,null,null,"4 2561 6541 402 FD  GEN  EQUIPMENT","1 1221 6410 402  03 SE   GEN SUPPLIES"]
[null,null,null,null,null,null,null,null,null,{"$f":"IF($K$38=\"\",\"IF YOU SEE THIS YOU HAVE NOT ENTERED SHIPPING CHARGES\",\"\")","v":"IF YOU SEE THIS YOU HAVE NOT ENTERED SHIPPING CHARGES"},null,null,null,null,null,null,null,null,null,null,null,null,null,null,"1 1411 6411.016  SA  VOCAL MUSIC  EXP",null,null,null,"*** FUNC TION  3911  : SUMMER  FOOD   SERVICE  ","1 1221 6410 800  03 SE   GEN SUPPLIES"]
[null,null,null,{"$f":"IF(A2=\"PURCHASE ORDER\",\"Superintendent\",\"Building Principal\")","v":"Building Principal"},null,null,null,null,null,null,null,null,null,null,null,null,null,null,null,null,null,null,null,null,"1 1411 6411.017  SA  NHS  EXP",null,null,null,"1 3911 6161 105 SS COOK SALARY ","***  FUNCTION  1231  : SPECIAL    PROGRAMS - SPEECH    "]
[null,null,null,null,null,null,null,null,null,null,null,null,null,null,null,null,null,null,null,null,null,null,null,null,"1 1411 6411.018  SA  GIRLS   BASKETBALL",null,null,null,"1 3911 6161 402 SS COOK SALARY ","***  FUNCTION  1234  : HOMEBOUND   INSTRUCTION    "]
[null,null,null,null,null,null,null,null,null,null,null,null,null,null,null,null,null,null,null,null,null,null,null,null,"1 1411 6411.019  SA  FBLA  EXP",null,null,null,"1 3911 6221 105 SS NON  TEACHER  RET ","***  FUNCTION  1241  : EMOT/BEHAV DISTURBED    "]
[null,null,null,null,null,null,null,null,null,null,null,null,null,null,null,null,null,null,null,null,null,null,null,null,"1 1411 6411.02  SA  REFLECTOR EXP",null,null,null,"1 3911 6221 402 SS NON  TEACHER  RET ","***  FUNCTION  1251  : COMPENS  EDUC  - TITLE  1    "]
[null,null,null,null,null,null,null,null,null,null,null,null,null,null,null,null,null,null,null,null,null,null,null,null,"1 1411 6411.022  SA  STU  COUNCIL  EXP",null,null,null,"1 3911 6231 105 SS SOC  SEC ","1 1251 6319 402  50 T1 PURCH/TECH  SERVICE "]
[null,null,null,null,null,null,null,null,null,null,null,null,null,null,null,null,null,null,null,null,null,null,null,null,"1 1411 6411.023  SA  VOLLEYBALL EXP",null,null,null,"1 3911 6231 402 SS SOC  SEC ","***  FUNCTION  1261  : SPECIAL    PROGRAMS - LD    "]
[null,null,null,null,null,null,null,null,null,null,null,null,null,null,null,null,null,null,null,null,null,null,null,null,"1 1411 6411.025  SA  INSTRUC  ACTIV  EXP",null,null,null,"1 3911 6232 105 SS MEDICARE","***  FUNCTION  1281  : EARLY  CHILDHOOD/SPEC    EDUC    "]
[null,null,null,null,null,null,null,null,null,null,null,null,null,null,null,null,null,null,null,null,null,null,null,null,"1 1411 6411.026  SA  SPECIAL   ED  EXP",null,null,null,"1 3911 6232 402 SS MEDICARE","1 1281 6319 402 42 EC  PURCH/TECH  SERVICE "]
[null,null,null,null,null,null,null,null,null,null,null,null,null,null,null,null,null,null,null,null,null,null,null,null,"1 1411 6411.029  SA  WCTSA EXP"]
[null,null,null,null,null,null,null,null,null,null,null,null,null,null,null,null,null,null,null,null,null,null,null,null,"1 1411 6411.031  SA  DISTR   TOURNEY EXP"]
[null,null,null,null,null,null,null,null,null,null,null,null,null,null,null,null,null,null,null,null,null,null,null,null,"1 1411 6411.032  SA   COMMUNITY SERVICE"]
[null,null,null,null,null,null,null,null,null,null,null,null,null,null,null,null,null,null,null,null,null,null,null,null,"1 1411 6411.033  SA  FCA",null,null,null,"1 3911 6491 300 SS FOOD SUPPLIES ","1 1331 6410 105 BU  GEN SUPPLIES "]
[null,null,null,null,null,null,null,null,null,null,null,null,null,null,null,null,null,null,null,null,null,null,null,null,"1 1411 6411.035  SA  SOFTBALL",null,null,null,"1 3911 6491 402 SS FOOD SUPPLIES ","***  FUNCTION  1332  : VOCATIONAL BUSINESS    GRANT    "]
[null,null,null,null,null,null,null,null,null,null,null,null,null,null,null,null,null,null,null,null,null,null,null,null,"1 1411 6411.037  SA  SPEC  OLYMPICS",null,null,null,null,"***  FUNCTION  1341  : HOME ECONOMICS    "]
[null,null,null,null,null,null,null,null,null,null,null,null,null,null,null,null,null,null,null,null,null,null,null,null,"1 1411 6411.038  SA  GOLF EXP",null,null,null,null,"1 1341 6343 105 HE MILEAGE/EXPENSE"]
[null,null,null,null,null,null,null,null,null,null,null,null,null,null,null,null,null,null,null,null,null,null,null,null,"***  FUNCTION  2120  : GUIDANCE SERVICES    ",null,null,null,null,"1 1341 6410 105 HE  GEN  SUPPLIES"]
[null,null,null,null,null,null,null,null,null,null,null,null,null,null,null,null,null,null,null,null,null,null,null,null,"1 2120 6316 105 GU  TEST   SCORING",null,null,null,null,"1 1341 6410 300 HE  GEN  SUPPLIES"]
[null,null,null,null,null,null,null,null,null,null,null,null,null,null,null,null,null,null,null,null,null,null,null,null,"1 2120 6316.1 105 GU TEST  SCORING/ACT",null,null,null,null,"***  FUNCTION  1351  : VOC INDUSTRIAL    TECH    "]
[null,null,null,null,null,null,null,null,null,null,null,null,null,null,null,null,null,null,null,null,null,null,null,null,"1 2120 6410 105 GU  GEN   SUPPLIES",null,null,null,null,"1 1351 6343 105 IT MILEAGE/EXPENSE"]
[null,null,null,null,null,null,null,null,null,null,null,null,null,null,null,null,null,null,null,null,null,null,null,null,"***  FUNCTION  2130  : NURSING SERVICES    ",null,null,null,null,"1 1351 6410 105 IT GEN  SUPPLIES"]
[null,null,null,null,null,null,null,null,null,null,null,null,null,null,null,null,null,null,null,null,null,null,null,null,"1 2130 6410 105 NU  GEN  SUPPLIES",null,null,null,null,"1 1351 6410 300 IT GEN  SUPPLIES"]
[null,null,null,null,null,null,null,null,null,null,null,null,null,null,null,null,null,null,null,null,null,null,null,null,"***  FUNCTION  2220  : MEDIA SERVICES    ",null,null,null,null,"***  FUNCTION  1361  : VOC-TECH    ENHANCEMENT GRNT    "]
[null,null,null,null,null,null,null,null,null,null,null,null,null,null,null,null,null,null,null,null,null,null,null,null,"1 2220 6319.7 105 T6.B PURCH/TECH  SERV",null,null,null,null,"1 1361 6343 105 VE MILEAGE/EXPENSE"]
[null,null,null,null,null,null,null,null,null,null,null,null,null,null,null,null,null,null,null,null,null,null,null,null,"1 2220 6410 105 LB   GEN  SUPPLIES",null,null,null,null,"1 1361 6410 105 VE GEN SUPPLIES"]
[null,null,null,null,null,null,null,null,null,null,null,null,null,null,null,null,null,null,null,null,null,null,null,null,"1 2220 6441 105 LB  LIBRARY   BOOKS",null,null,null,null,"***  FUNCTION  1391  : OTHER CAREER  EDUCATION    "]
[null,null,null,null,null,null,null,null,null,null,null,null,null,null,null,null,null,null,null,null,null,null,null,null,"***  FUNCTION  2540  : OPER  OF  PLANT   - CUSTODIAL    ",null,null,null,null,"1 1391 6319 105 JG  PURCH/TECH SERVICE"]
[null,null,null,null,null,null,null,null,null,null,null,null,null,null,null,null,null,null,null,null,null,null,null,null,"1 2540 6319 105 OM   PURC/TECH  SERV",null,null,null,null,"1 1391 6343 105 JG  MILEAGE/EXPENSE"]
[null,null,null,null,null,null,null,null,null,null,null,null,null,null,null,null,null,null,null,null,null,null,null,null,"1 2540 6335 105 OM   WATER/SEWER",null,null,null,null,"1 1391 6410 105 JG   GEN  SUPPLIES"]
[null,null,null,null,null,null,null,null,null,null,null,null,null,null,null,null,null,null,null,null,null,null,null,null,"1 2540 6336 105 OM  TRASH    REMOVAL",null,null,null,null,"***  FUNCTION  1411  : STUDENT  ACTIVITIES    "]
[null,null,null,null,null,null,null,null,null,null,null,null,null,null,null,null,null,null,null,null,null,null,null,null,"1 2540 6339 105 OM   OTH/PEST    CONTROL",null,null,null,null,"1 1411 6121 800 SA  ACTIVITY PAY/PT"]
[null,null,null,null,null,null,null,null,null,null,null,null,null,null,null,null,null,null,null,null,null,null,null,null,"1 2540 6351 105 OM   PROPERTY INSURANCE",null,null,null,null,"1 1411 6131 800 SA  ACTIVITY  PAY/TRS"]
[null,null,null,null,null,null,null,null,null,null,null,null,null,null,null,null,null,null,null,null,null,null,null,null,null,null,null,null,null,"1 1411 6161 800 SA  ACTIVITY  PAY/NT"]
[null,null,null,null,null,null,null,null,null,null,null,null,null,null,null,null,null,null,null,null,null,null,null,null,null,null,null,null,null,"1 1411 6211 800 SA  RETIREMENT  TEA"]
[null,null,null,null,null,null,null,null,null,null,null,null,null,null,null,null,null,null,null,null,null,null,null,null,null,null,null,null,null,"1 1411 6221 800 SA  NON-TEACHER  RET"]
[null,null,null,null,null,null,null,null,null,null,null,null,null,null,null,null,null,null,null,null,null,null,null,null,null,null,null,null,null,"1 1411 6231 800 SA  SOC  SEC"]
[null,null,null,null,null,null,null,null,null,null,null,null,null,null,null,null,null,null,null,null,null,null,null,null,null,null,null,null,null,"1 1411 6232 800 SA  MEDICARE"]
[null,null,null,null,null,null,null,null,null,null,null,null,null,null,null,null,null,null,null,null,null,null,null,null,null,null,null,null,null,"1 1411 6411 39 SA  CROSS  COUNTRY EXP"]
[null,null,null,null,null,null,null,null,null,null,null,null,null,null,null,null,null,null,null,null,null,null,null,null,null,null,null,null,null,"1 1411 6411.001  SA  ATHLETICS  EXP"]
[null,null,null,null,null,null,null,null,null,null,null,null,null,null,null,null,null,null,null,null,null,null,null,null,null,null,null,null,null,"1 1411 6411.002  SA  MIDDLE  SCHOOL EXP"]
[null,null,null,null,null,null,null,null,null,null,null,null,null,null,null,null,null,null,null,null,null,null,null,null,null,null,null,null,null,"1 1411 6411.003  SA  BAND EXP"]
[null,null,null,null,null,null,null,null,null,null,null,null,null,null,null,null,null,null,null,null,null,null,null,null,null,null,null,null,null,"1 1411 6411.005  SA  JUNIOR  EXP"]
[null,null,null,null,null,null,null,null,null,null,null,null,null,null,null,null,null,null,null,null,null,null,null,null,null,null,null,null,null,"1 1411 6411.006  SA  BASEBALL  EXP"]
[null,null,null,null,null,null,null,null,null,null,null,null,null,null,null,null,null,null,null,null,null,null,null,null,null,null,null,null,null,"1 1411 6411.007  SA   ENVIRONMENTAL CLUB"]
[null,null,null,null,null,null,null,null,null,null,null,null,null,null,null,null,null,null,null,null,null,null,null,null,null,null,null,null,null,"1 1411 6411.009  SA  SPIRIT    SQUAD EXP"]
[null,null,null,null,null,null,null,null,null,null,null,null,null,null,null,null,null,null,null,null,null,null,null,null,null,null,null,null,null,"1 1411 6411.01  SA  ELEM GEN EXP"]
[null,null,null,null,null,null,null,null,null,null,null,null,null,null,null,null,null,null,null,null,null,null,null,null,null,null,null,null,null,"1 1411 6411.011  SA  FCCLA  EXP"]
[null,null,null,null,null,null,null,null,null,null,null,null,null,null,null,null,null,null,null,null,null,null,null,null,null,null,null,null,null,"1 1411 6411.012  SA  MATH/PHYSICS   EXP"]
[null,null,null,null,null,null,null,null,null,null,null,null,null,null,null,null,null,null,null,null,null,null,null,null,null,null,null,null,null,"1 1411 6411.013  SA  BOYS  BASKETBALL"]
[null,null,null,null,null,null,null,null,null,null,null,null,null,null,null,null,null,null,null,null,null,null,null,null,null,null,null,null,null,"1 1411 6411.014  SA  LIBRARY  CLUB  EXP"]
[null,null,null,null,null,null,null,null,null,null,null,null,null,null,null,null,null,null,null,null,null,null,null,null,null,null,null,null,null,"1 1411 6411.015  SA  MISC  EXP"]
[null,null,null,null,null,null,null,null,null,null,null,null,null,null,null,null,null,null,null,null,null,null,null,null,null,null,null,null,null,"1 1411 6411.016  SA  VOCAL MUSIC  EXP"]
[null,null,null,null,null,null,null,null,null,null,null,null,null,null,null,null,null,null,null,null,null,null,null,null,null,null,null,null,null,"1 1411 6411.017  SA  NHS  EXP"]
[null,null,null,null,null,null,null,null,null,null,null,null,null,null,null,null,null,null,null,null,null,null,null,null,null,null,null,null,null,"1 1411 6411.018  SA  GIRLS   BASKETBALL"]
[null,null,null,null,null,null,null,null,null,null,null,null,null,null,null,null,null,null,null,null,null,null,null,null,null,null,null,null,null,"1 1411 6411.019  SA  FBLA  EXP"]
[null,null,null,null,null,null,null,null,null,null,null,null,null,null,null,null,null,null,null,null,null,null,null,null,null,null,null,null,null,"1 1411 6411.02  SA  REFLECTOR EXP"]
[null,null,null,null,null,null,null,null,null,null,null,null,null,null,null,null,null,null,null,null,null,null,null,null,null,null,null,null,null,"1 1411 6411.022  SA  STU  COUNCIL  EXP"]
[null,null,null,null,null,null,null,null,null,null,null,null,null,null,null,null,null,null,null,null,null,null,null,null,null,null,null,null,null,"1 1411 6411.023  SA  VOLLEYBALL EXP"]
[null,null,null,null,null,null,null,null,null,null,null,null,null,null,null,null,null,null,null,null,null,null,null,null,null,null,null,null,null,"1 1411 6411.025  SA  INSTRUC  ACTIV  EXP"]
[null,null,null,null,null,null,null,null,null,null,null,null,null,null,null,null,null,null,null,null,null,null,null,null,null,null,null,null,null,"1 1411 6411.026  SA  SPECIAL   ED  EXP"]
[null,null,null,null,null,null,null,null,null,null,null,null,null,null,null,null,null,null,null,null,null,null,null,null,null,null,null,null,null,"1 1411 6411.029  SA  WCTSA EXP"]
[null,null,null,null,null,null,null,null,null,null,null,null,null,null,null,null,null,null,null,null,null,null,null,null,null,null,null,null,null,"1 1411 6411.031  SA  DISTR   TOURNEY EXP"]
[null,null,null,null,null,null,null,null,null,null,null,null,null,null,null,null,null,null,null,null,null,null,null,null,null,null,null,null,null,"1 1411 6411.032  SA   COMMUNITY SERVICE"]
[null,null,null,null,null,null,null,null,null,null,null,null,null,null,null,null,null,null,null,null,null,null,null,null,null,null,null,null,null,"1 1411 6411.033  SA  FCA"]
[null,null,null,null,null,null,null,null,null,null,null,null,null,null,null,null,null,null,null,null,null,null,null,null,null,null,null,null,null,"1 1411 6411.035  SA  SOFTBALL"]
[null,null,null,null,null,null,null,null,null,null,null,null,null,null,null,null,null,null,null,null,null,null,null,null,null,null,null,null,null,"1 1411 6411.037  SA  SPEC  OLYMPICS"]
[null,null,null,null,null,null,null,null,null,null,null,null,null,null,null,null,null,null,null,null,null,null,null,null,null,null,null,null,null,"1 1411 6411.038  SA  GOLF EXP"]
[null,null,null,null,null,null,null,null,null,null,null,null,null,null,null,null,null,null,null,null,null,null,null,null,null,null,null,null,null,"***  FUNCTION  1910  : TUITION  - OTHER  SCHOOLS    "]
[null,null,null,null,null,null,null,null,null,null,null,null,null,null,null,null,null,null,null,null,null,null,null,null,null,null,null,null,null,"***  FUNCTION  1911  :    "]
[null,null,null,null,null,null,null,null,null,null,null,null,null,null,null,null,null,null,null,null,null,null,null,null,null,null,null,null,null,"2 1911 6311 105 TU  DUAL CREDIT/MAC"]
[null,null,null,null,null,null,null,null,null,null,null,null,null,null,null,null,null,null,null,null,null,null,null,null,null,null,null,null,null,"***  FUNCTION  1921  :    "]
[null,null,null,null,null,null,null,null,null,null,null,null,null,null,null,null,null,null,null,null,null,null,null,null,null,null,null,null,null,"2 1921 6311 105 TU  AREA VOC/TUITION "]
[null,null,null,null,null,null,null,null,null,null,null,null,null,null,null,null,null,null,null,null,null,null,null,null,null,null,null,null,null,"***  FUNCTION  1931  :    "]
[null,null,null,null,null,null,null,null,null,null,null,null,null,null,null,null,null,null,null,null,null,null,null,null,null,null,null,null,null,"***  FUNCTION  1941  : CONTRACTED  EDUC  SERVICES    "]
[null,null,null,null,null,null,null,null,null,null,null,null,null,null,null,null,null,null,null,null,null,null,null,null,null,null,null,null,null,"2 1941 6311 800 CE  CONTR  EDUC  SERV "]
[null,null,null,null,null,null,null,null,null,null,null,null,null,null,null,null,null,null,null,null,null,null,null,null,null,null,null,null,null,"***  FUNCTION  1942  : SUPPLEMENTAL EDUC  SERV    "]
[null,null,null,null,null,null,null,null,null,null,null,null,null,null,null,null,null,null,null,null,null,null,null,null,null,null,null,null,null,"***  FUNCTION  2111  : TITLE  I TESTING    "]
[null,null,null,null,null,null,null,null,null,null,null,null,null,null,null,null,null,null,null,null,null,null,null,null,null,null,null,null,null,"***  FUNCTION  2112  : ATTENDANCE  SERVICES    "]
[null,null,null,null,null,null,null,null,null,null,null,null,null,null,null,null,null,null,null,null,null,null,null,null,null,null,null,null,null,"1 2120 6316 105 GU  TEST   SCORING"]
[null,null,null,null,null,null,null,null,null,null,null,null,null,null,null,null,null,null,null,null,null,null,null,null,null,null,null,null,null,"1 2120 6316 300 GU  TEST   SCORING"]
[null,null,null,null,null,null,null,null,null,null,null,null,null,null,null,null,null,null,null,null,null,null,null,null,null,null,null,null,null,"1 2120 6316 402 GU  TEST   SCORING"]
[null,null,null,null,null,null,null,null,null,null,null,null,null,null,null,null,null,null,null,null,null,null,null,null,null,null,null,null,null,"1 2120 6316.1 105 GU TEST  SCORING/ACT"]
[null,null,null,null,null,null,null,null,null,null,null,null,null,null,null,null,null,null,null,null,null,null,null,null,null,null,null,null,null,"1 2120 6410 105 GU  GEN   SUPPLIES"]
[null,null,null,null,null,null,null,null,null,null,null,null,null,null,null,null,null,null,null,null,null,null,null,null,null,null,null,null,null,"1 2120 6410 300 GU  GEN   SUPPLIES"]
[null,null,null,null,null,null,null,null,null,null,null,null,null,null,null,null,null,null,null,null,null,null,null,null,null,null,null,null,null,"1 2120 6410 402 GU  GEN   SUPPLIES"]
[null,null,null,null,null,null,null,null,null,null,null,null,null,null,null,null,null,null,null,null,null,null,null,null,null,null,null,null,null,"***  FUNCTION  2130  : NURSING SERVICES    "]
[null,null,null,null,null,null,null,null,null,null,null,null,null,null,null,null,null,null,null,null,null,null,null,null,null,null,null,null,null,"1 2130 6410 105 NU  GEN  SUPPLIES"]
[null,null,null,null,null,null,null,null,null,null,null,null,null,null,null,null,null,null,null,null,null,null,null,null,null,null,null,null,null,"1 2130 6410 300 NU  GEN  SUPPLIES"]
[null,null,null,null,null,null,null,null,null,null,null,null,null,null,null,null,null,null,null,null,null,null,null,null,null,null,null,null,null,"1 2130 6410 402 NU  GEN  SUPPLIES"]
[null,null,null,null,null,null,null,null,null,null,null,null,null,null,null,null,null,null,null,null,null,null,null,null,null,null,null,null,null,"***  FUNCTION  2132  : HEALTH  SERVICES    "]
[null,null,null,null,null,null,null,null,null,null,null,null,null,null,null,null,null,null,null,null,null,null,null,null,null,null,null,null,null,"1 2132 6319 402 HE  CONTR HEALTH SERV"]
[null,null,null,null,null,null,null,null,null,null,null,null,null,null,null,null,null,null,null,null,null,null,null,null,null,null,null,null,null,"1 2132 6319 800 HE  CONTR HEALTH SERV"]
[null,null,null,null,null,null,null,null,null,null,null,null,null,null,null,null,null,null,null,null,null,null,null,null,null,null,null,null,null,"***  FUNCTION  2142  : PSYCHOL/EVAL SERVICES    "]
[null,null,null,null,null,null,null,null,null,null,null,null,null,null,null,null,null,null,null,null,null,null,null,null,null,null,null,null,null,"***  FUNCTION  2210  : FEDERAL   PROGRAMS    "]
[null,null,null,null,null,null,null,null,null,null,null,null,null,null,null,null,null,null,null,null,null,null,null,null,null,null,null,null,null,"1 2210 6319.6 105 T5 PURCH/TECH  SERV"]
[null,null,null,null,null,null,null,null,null,null,null,null,null,null,null,null,null,null,null,null,null,null,null,null,null,null,null,null,null,"1 2210 6319.6 300 T5 PURCH/TECH  SERV"]
[null,null,null,null,null,null,null,null,null,null,null,null,null,null,null,null,null,null,null,null,null,null,null,null,null,null,null,null,null,"1 2210 6319.6 402 T5 PURCH/TECH  SERV"]
[null,null,null,null,null,null,null,null,null,null,null,null,null,null,null,null,null,null,null,null,null,null,null,null,null,null,null,null,null,"1 2210 6319.8 105 21CENT/PURCH  SERVICE"]
[null,null,null,null,null,null,null,null,null,null,null,null,null,null,null,null,null,null,null,null,null,null,null,null,null,null,null,null,null,"1 2210 6319.8 300 21CENT/PURCH  SERVICE"]
[null,null,null,null,null,null,null,null,null,null,null,null,null,null,null,null,null,null,null,null,null,null,null,null,null,null,null,null,null,"1 2210 6319.8 402 21CENT/PURCH  SERVICE"]
[null,null,null,null,null,null,null,null,null,null,null,null,null,null,null,null,null,null,null,null,null,null,null,null,null,null,null,null,null,"1 2210 6343.8 105 21CENT/MILEAGE/EXPENS"]
[null,null,null,null,null,null,null,null,null,null,null,null,null,null,null,null,null,null,null,null,null,null,null,null,null,null,null,null,null,"1 2210 6343.8 402 21CENT/MILEAGE/EXPENS"]
[null,null,null,null,null,null,null,null,null,null,null,null,null,null,null,null,null,null,null,null,null,null,null,null,null,null,null,null,null,"1 2210 6410.8 105 21CENT/GEN SUPPLIES"]
[null,null,null,null,null,null,null,null,null,null,null,null,null,null,null,null,null,null,null,null,null,null,null,null,null,null,null,null,null,"1 2210 6410.8 300 21CENT/GEN SUPPLIES"]
[null,null,null,null,null,null,null,null,null,null,null,null,null,null,null,null,null,null,null,null,null,null,null,null,null,null,null,null,null,"1 2210 6410.8 402 21CENT/GEN SUPPLIES"]
[null,null,null,null,null,null,null,null,null,null,null,null,null,null,null,null,null,null,null,null,null,null,null,null,null,null,null,null,null,"***  FUNCTION  2211  : CAREER  LADDER    "]
[null,null,null,null,null,null,null,null,null,null,null,null,null,null,null,null,null,null,null,null,null,null,null,null,null,null,null,null,null,"***  FUNCTION  2213  : IMPROVEMT  OF  INSTRUCTION    "]
[null,null,null,null,null,null,null,null,null,null,null,null,null,null,null,null,null,null,null,null,null,null,null,null,null,null,null,null,null,"1 2213 6319 402  50 T1 PURCH/TECH  SERVICE "]
[null,null,null,null,null,null,null,null,null,null,null,null,null,null,null,null,null,null,null,null,null,null,null,null,null,null,null,null,null,"***  FUNCTION  2214  : PROFESSIONAL  DEVELOPMENT    "]
[null,null,null,null,null,null,null,null,null,null,null,null,null,null,null,null,null,null,null,null,null,null,null,null,null,null,null,null,null,"2 2214 6312 800 PD  TUITION   REIMBURSMT"]
[null,null,null,null,null,null,null,null,null,null,null,null,null,null,null,null,null,null,null,null,null,null,null,null,null,null,null,null,null,"1 2214 6319 800 PD  PURC/TECH   SERV"]
[null,null,null,null,null,null,null,null,null,null,null,null,null,null,null,null,null,null,null,null,null,null,null,null,null,null,null,null,null,"1 2214 6343 800 PD  MILEAGE/EXPENSE "]
[null,null,null,null,null,null,null,null,null,null,null,null,null,null,null,null,null,null,null,null,null,null,null,null,null,null,null,null,null,"1 2214 6410 800 PD  GEN SUPPLIES "]
[null,null,null,null,null,null,null,null,null,null,null,null,null,null,null,null,null,null,null,null,null,null,null,null,null,null,null,null,null,"***  FUNCTION  2219  : GOALS  2000  - LOCAL   REFORM    "]
[null,null,null,null,null,null,null,null,null,null,null,null,null,null,null,null,null,null,null,null,null,null,null,null,null,null,null,null,null,"***  FUNCTION  2220  : MEDIA SERVICES    "]
[null,null,null,null,null,null,null,null,null,null,null,null,null,null,null,null,null,null,null,null,null,null,null,null,null,null,null,null,null,"1 2220 6319.7 105 T6.B PURCH/TECH  SERV"]
[null,null,null,null,null,null,null,null,null,null,null,null,null,null,null,null,null,null,null,null,null,null,null,null,null,null,null,null,null,"1 2220 6319.7 300 T6.B PURCH/TECH  SERV"]
[null,null,null,null,null,null,null,null,null,null,null,null,null,null,null,null,null,null,null,null,null,null,null,null,null,null,null,null,null,"1 2220 6319.7 402 T6.B PURCH/TECH  SERV"]
[null,null,null,null,null,null,null,null,null,null,null,null,null,null,null,null,null,null,null,null,null,null,null,null,null,null,null,null,null,"1 2220 6410 105 LB   GEN  SUPPLIES"]
[null,null,null,null,null,null,null,null,null,null,null,null,null,null,null,null,null,null,null,null,null,null,null,null,null,null,null,null,null,"1 2220 6410 300 LB   GEN  SUPPLIES"]
[null,null,null,null,null,null,null,null,null,null,null,null,null,null,null,null,null,null,null,null,null,null,null,null,null,null,null,null,null,"1 2220 6410 402 LB   GEN  SUPPLIES"]
[null,null,null,null,null,null,null,null,null,null,null,null,null,null,null,null,null,null,null,null,null,null,null,null,null,null,null,null,null,"1 2220 6441 105 LB  LIBRARY   BOOKS"]
[null,null,null,null,null,null,null,null,null,null,null,null,null,null,null,null,null,null,null,null,null,null,null,null,null,null,null,null,null,"1 2220 6441 300 LB  LIBRARY   BOOKS"]
[null,null,null,null,null,null,null,null,null,null,null,null,null,null,null,null,null,null,null,null,null,null,null,null,null,null,null,null,null,"1 2220 6441 402 LB  LIBRARY   BOOKS"]
[null,null,null,null,null,null,null,null,null,null,null,null,null,null,null,null,null,null,null,null,null,null,null,null,null,null,null,null,null,"***  FUNCTION  2223  : AUDIO VISUAL  SERVICES    "]
[null,null,null,null,null,null,null,null,null,null,null,null,null,null,null,null,null,null,null,null,null,null,null,null,null,null,null,null,null,"1 2223 6319 800 E"]
[null,null,null,null,null,null,null,null,null,null,null,null,null,null,null,null,null,null,null,null,null,null,null,null,null,null,null,null,null,"1 2223 6361 800 E"]
[null,null,null,null,null,null,null,null,null,null,null,null,null,null,null,null,null,null,null,null,null,null,null,null,null,null,null,null,null,"***  FUNCTION  2310  : BD OF EDUC SERVICES    "]
[null,null,null,null,null,null,null,null,null,null,null,null,null,null,null,null,null,null,null,null,null,null,null,null,null,null,null,null,null,"1 2310 6319 800 BE  PURC/TECH   SERV"]
[null,null,null,null,null,null,null,null,null,null,null,null,null,null,null,null,null,null,null,null,null,null,null,null,null,null,null,null,null,"1 2310 6343 800 BE  MILEAGE/EXPENSE"]
[null,null,null,null,null,null,null,null,null,null,null,null,null,null,null,null,null,null,null,null,null,null,null,null,null,null,null,null,null,"1 2310 6352 800 BE  LIABILITY   INS"]
[null,null,null,null,null,null,null,null,null,null,null,null,null,null,null,null,null,null,null,null,null,null,null,null,null,null,null,null,null,"1 2310 6353 800 BE  TREAS  BONDS"]
[null,null,null,null,null,null,null,null,null,null,null,null,null,null,null,null,null,null,null,null,null,null,null,null,null,null,null,null,null,"1 2310 6362 800 BE  ADVERTISING"]
[null,null,null,null,null,null,null,null,null,null,null,null,null,null,null,null,null,null,null,null,null,null,null,null,null,null,null,null,null,"1 2310 6371 800 BE DUES/FEES"]
[null,null,null,null,null,null,null,null,null,null,null,null,null,null,null,null,null,null,null,null,null,null,null,null,null,null,null,null,null,"1 2310 6410 800 BE   GEN  SUPPLIES"]
[null,null,null,null,null,null,null,null,null,null,null,null,null,null,null,null,null,null,null,null,null,null,null,null,null,null,null,null,null,"***  FUNCTION  2320  : EXECUTIVE  ADMINISTRATION    "]
[null,null,null,null,null,null,null,null,null,null,null,null,null,null,null,null,null,null,null,null,null,null,null,null,null,null,null,null,null,"1 2320 6319 800 EA  PURC/TECH   SERV"]
[null,null,null,null,null,null,null,null,null,null,null,null,null,null,null,null,null,null,null,null,null,null,null,null,null,null,null,null,null,"1 2320 6334 800 EA  LEASE/RENTAL"]
[null,null,null,null,null,null,null,null,null,null,null,null,null,null,null,null,null,null,null,null,null,null,null,null,null,null,null,null,null,"1 2320 6343 800 EA  MILEAGE/EXPENSE"]
[null,null,null,null,null,null,null,null,null,null,null,null,null,null,null,null,null,null,null,null,null,null,null,null,null,null,null,null,null,"1 2320 6361 800 EA  POSTAGE"]
[null,null,null,null,null,null,null,null,null,null,null,null,null,null,null,null,null,null,null,null,null,null,null,null,null,null,null,null,null,"1 2320 6371 800 EA DUES/FEES"]
[null,null,null,null,null,null,null,null,null,null,null,null,null,null,null,null,null,null,null,null,null,null,null,null,null,null,null,null,null,"1 2320 6398 800 EA  OTH EXPENSE/REFUND"]
[null,null,null,null,null,null,null,null,null,null,null,null,null,null,null,null,null,null,null,null,null,null,null,null,null,null,null,null,null,"1 2320 6410 800 EA  GEN  SUPPLIES"]
[null,null,null,null,null,null,null,null,null,null,null,null,null,null,null,null,null,null,null,null,null,null,null,null,null,null,null,null,null,"***  FUNCTION  2400  : BLD  LEVEL  ADMINISTRATION    "]
[null,null,null,null,null,null,null,null,null,null,null,null,null,null,null,null,null,null,null,null,null,null,null,null,null,null,null,null,null,"1 2400 6343 105 BL  MILEAGE/EXPENSE"]
[null,null,null,null,null,null,null,null,null,null,null,null,null,null,null,null,null,null,null,null,null,null,null,null,null,null,null,null,null,"1 2400 6343 300 BL  MILEAGE/EXPENSE"]
[null,null,null,null,null,null,null,null,null,null,null,null,null,null,null,null,null,null,null,null,null,null,null,null,null,null,null,null,null,"1 2400 6343 402 BL  MILEAGE/EXPENSE"]
[null,null,null,null,null,null,null,null,null,null,null,null,null,null,null,null,null,null,null,null,null,null,null,null,null,null,null,null,null,"1 2400 6343 402  42 EC  MILEAGE/EXPENSE"]
[null,null,null,null,null,null,null,null,null,null,null,null,null,null,null,null,null,null,null,null,null,null,null,null,null,null,null,null,null,"1 2400 6361 105 BL  POSTAGE"]
[null,null,null,null,null,null,null,null,null,null,null,null,null,null,null,null,null,null,null,null,null,null,null,null,null,null,null,null,null,"1 2400 6361 300 BL  POSTAGE"]
[null,null,null,null,null,null,null,null,null,null,null,null,null,null,null,null,null,null,null,null,null,null,null,null,null,null,null,null,null,"1 2400 6361 402 BL  POSTAGE"]
[null,null,null,null,null,null,null,null,null,null,null,null,null,null,null,null,null,null,null,null,null,null,null,null,null,null,null,null,null,"1 2400 6371 105 BL DUES/FEES"]
[null,null,null,null,null,null,null,null,null,null,null,null,null,null,null,null,null,null,null,null,null,null,null,null,null,null,null,null,null,"1 2400 6371 300 BL DUES/FEES"]
[null,null,null,null,null,null,null,null,null,null,null,null,null,null,null,null,null,null,null,null,null,null,null,null,null,null,null,null,null,"1 2400 6371 402 E"]
[null,null,null,null,null,null,null,null,null,null,null,null,null,null,null,null,null,null,null,null,null,null,null,null,null,null,null,null,null,"***  FUNCTION  2540  : OPER  OF  PLANT   - CUSTODIAL    "]
[null,null,null,null,null,null,null,null,null,null,null,null,null,null,null,null,null,null,null,null,null,null,null,null,null,null,null,null,null,"1 2540 6319 105 OM   PURC/TECH  SERV"]
[null,null,null,null,null,null,null,null,null,null,null,null,null,null,null,null,null,null,null,null,null,null,null,null,null,null,null,null,null,"1 2540 6319 402 OM   PURC/TECH  SERV"]
[null,null,null,null,null,null,null,null,null,null,null,null,null,null,null,null,null,null,null,null,null,null,null,null,null,null,null,null,null,"1 2540 6319 800 OM   PURC/TECH  SERV"]
[null,null,null,null,null,null,null,null,null,null,null,null,null,null,null,null,null,null,null,null,null,null,null,null,null,null,null,null,null,"1 2552 6319 800 PT  PURC/TECH  SERV"]
[null,null,null,null,null,null,null,null,null,null,null,null,null,null,null,null,null,null,null,null,null,null,null,null,null,null,null,null,null,"1 2552 6332 800 PT  CONTR REPAIR"]
[null,null,null,null,null,null,null,null,null,null,null,null,null,null,null,null,null,null,null,null,null,null,null,null,null,null,null,null,null,"***  FUNCTION  2554  : HANDIC  TRANS  - DISTRICT    "]
[null,null,null,null,null,null,null,null,null,null,null,null,null,null,null,null,null,null,null,null,null,null,null,null,null,null,null,null,null,"1 2554 6410 800 HD GEN SUPPLIES "]
[null,null,null,null,null,null,null,null,null,null,null,null,null,null,null,null,null,null,null,null,null,null,null,null,null,null,null,null,null,"***  FUNCTION  2558  : NONALLOWABLE  TRANS  EXPENS    "]
[null,null,null,null,null,null,null,null,null,null,null,null,null,null,null,null,null,null,null,null,null,null,null,null,null,null,null,null,null,"***  FUNCTION  2559  : ECSE  TRANSPORT    "]
[null,null,null,null,null,null,null,null,null,null,null,null,null,null,null,null,null,null,null,null,null,null,null,null,null,null,null,null,null,"1 2559 6341 402 42 EC  CONTR  TRANSP "]
[null,null,null,null,null,null,null,null,null,null,null,null,null,null,null,null,null,null,null,null,null,null,null,null,null,null,null,null,null,"***  FUNCTION  2561  : FOOD SERVICES    "]
[null,null,null,null,null,null,null,null,null,null,null,null,null,null,null,null,null,null,null,null,null,null,null,null,null,null,null,null,null,"1 2561 6410 105 FD  GEN  SUPPLIES"]
[null,null,null,null,null,null,null,null,null,null,null,null,null,null,null,null,null,null,null,null,null,null,null,null,null,null,null,null,null,"1 2561 6410 300 FD  GEN  SUPPLIES"]
[null,null,null,null,null,null,null,null,null,null,null,null,null,null,null,null,null,null,null,null,null,null,null,null,null,null,null,null,null,"1 2561 6410 402 FD  GEN  SUPPLIES"]
[null,null,null,null,null,null,null,null,null,null,null,null,null,null,null,null,null,null,null,null,null,null,null,null,null,null,null,null,null,"1 2561 6471 105 FD  FOOD  SUPPLIES"]
[null,null,null,null,null,null,null,null,null,null,null,null,null,null,null,null,null,null,null,null,null,null,null,null,null,null,null,null,null,"1 2561 6471 300 FD  FOOD  SUPPLIES"]
[null,null,null,null,null,null,null,null,null,null,null,null,null,null,null,null,null,null,null,null,null,null,null,null,null,null,null,null,null,"1 2561 6471 402 FD  FOOD  SUPPLIES"]
[null,null,null,null,null,null,null,null,null,null,null,null,null,null,null,null,null,null,null,null,null,null,null,null,null,null,null,null,null,"4 2561 6541 105 FD  GEN  EQUIPMENT"]
[null,null,null,null,null,null,null,null,null,null,null,null,null,null,null,null,null,null,null,null,null,null,null,null,null,null,null,null,null,"4 2561 6541 402 FD  GEN  EQUIPMENT"]
[null,null,null,null,null,null,null,null,null,null,null,null,null,null,null,null,null,null,null,null,null,null,null,null,null,null,null,null,null,"***  FUNCTION  2660  : DATA PROCESSING    "]
[null,null,null,null,null,null,null,null,null,null,null,null,null,null,null,null,null,null,null,null,null,null,null,null,null,null,null,null,null,"1 2660 6151 800 DP  TECH  SALARY"]
[null,null,null,null,null,null,null,null,null,null,null,null,null,null,null,null,null,null,null,null,null,null,null,null,null,null,null,null,null,"1 2660 6221 800 DP  NON  TEACHER  RET"]
[null,null,null,null,null,null,null,null,null,null,null,null,null,null,null,null,null,null,null,null,null,null,null,null,null,null,null,null,null,"1 2660 6231 800 DP  SOC  SEC"]
[null,null,null,null,null,null,null,null,null,null,null,null,null,null,null,null,null,null,null,null,null,null,null,null,null,null,null,null,null,"1 2660 6232 800 DP  MEDICARE"]
[null,null,null,null,null,null,null,null,null,null,null,null,null,null,null,null,null,null,null,null,null,null,null,null,null,null,null,null,null,"1 2660 6241 800 DP  MEDICAL  INS"]
[null,null,null,null,null,null,null,null,null,null,null,null,null,null,null,null,null,null,null,null,null,null,null,null,null,null,null,null,null,"1 2660 6319 105 DP  PURCH/TECH  SERV"]
[null,null,null,null,null,null,null,null,null,null,null,null,null,null,null,null,null,null,null,null,null,null,null,null,null,null,null,null,null,"1 2660 6319 300 DP  PURCH/TECH  SERV"]
[null,null,null,null,null,null,null,null,null,null,null,null,null,null,null,null,null,null,null,null,null,null,null,null,null,null,null,null,null,"1 2660 6319 402 DP  PURCH/TECH  SERV"]
[null,null,null,null,null,null,null,null,null,null,null,null,null,null,null,null,null,null,null,null,null,null,null,null,null,null,null,null,null,"1 2660 6319 800 DP  PURCH/TECH  SERV"]
[null,null,null,null,null,null,null,null,null,null,null,null,null,null,null,null,null,null,null,null,null,null,null,null,null,null,null,null,null,"1 2660 6332 105 DP  CONTR REPAIR"]
[null,null,null,null,null,null,null,null,null,null,null,null,null,null,null,null,null,null,null,null,null,null,null,null,null,null,null,null,null,"1 2660 6332 300 DP  CONTR REPAIR"]
[null,null,null,null,null,null,null,null,null,null,null,null,null,null,null,null,null,null,null,null,null,null,null,null,null,null,null,null,null,"1 2660 6332 402 DP  CONTR REPAIR"]
[null,null,null,null,null,null,null,null,null,null,null,null,null,null,null,null,null,null,null,null,null,null,null,null,null,null,null,null,null,"1 2660 6332 800 DP  CONTR REPAIR"]
[null,null,null,null,null,null,null,null,null,null,null,null,null,null,null,null,null,null,null,null,null,null,null,null,null,null,null,null,null,"1 2660 6343 800 DP  MILEAGE/EXPENSE"]
[null,null,null,null,null,null,null,null,null,null,null,null,null,null,null,null,null,null,null,null,null,null,null,null,null,null,null,null,null,"1 2660 6410 105 DP  GEN  SUPPLIES"]
[null,null,null,null,null,null,null,null,null,null,null,null,null,null,null,null,null,null,null,null,null,null,null,null,null,null,null,null,null,"1 2660 6410 300 DP  GEN  SUPPLIES"]
[null,null,null,null,null,null,null,null,null,null,null,null,null,null,null,null,null,null,null,null,null,null,null,null,null,null,null,null,null,"1 2660 6410 402 DP  GEN  SUPPLIES"]
[null,null,null,null,null,null,null,null,null,null,null,null,null,null,null,null,null,null,null,null,null,null,null,null,null,null,null,null,null,"1 2660 6410 800 DP  GEN  SUPPLIES"]
[null,null,null,null,null,null,null,null,null,null,null,null,null,null,null,null,null,null,null,null,null,null,null,null,null,null,null,null,null,"4 2660 6541 800 E EQUIPMENT"]
[null,null,null,null,null,null,null,null,null,null,null,null,null,null,null,null,null,null,null,null,null,null,null,null,null,null,null,null,null,"***  FUNCTION  3000  : COMMUNITY  SERVICES    "]
[null,null,null,null,null,null,null,null,null,null,null,null,null,null,null,null,null,null,null,null,null,null,null,null,null,null,null,null,null,"***  FUNCTION  3511  : PARENTS  AS  TEACHERS    "]
[null,null,null,null,null,null,null,null,null,null,null,null,null,null,null,null,null,null,null,null,null,null,null,null,null,null,null,null,null,"2 3511 6151 800 PA  PARENT  EDUC  SALARY"]
[null,null,null,null,null,null,null,null,null,null,null,null,null,null,null,null,null,null,null,null,null,null,null,null,null,null,null,null,null,"2 3511 6161 800 PA  PT  PARENT  EDUC  SAL "]
[null,null,null,null,null,null,null,null,null,null,null,null,null,null,null,null,null,null,null,null,null,null,null,null,null,null,null,null,null,"2 3511 6211 800 PA  RETIREMENT  TEA"]
[null,null,null,null,null,null,null,null,null,null,null,null,null,null,null,null,null,null,null,null,null,null,null,null,null,null,null,null,null,"2 3511 6221 800 PA  NON-TEACHER  RET"]
[null,null,null,null,null,null,null,null,null,null,null,null,null,null,null,null,null,null,null,null,null,null,null,null,null,null,null,null,null,"2 3511 6231 800 PA  SOC  SEC "]
[null,null,null,null,null,null,null,null,null,null,null,null,null,null,null,null,null,null,null,null,null,null,null,null,null,null,null,null,null,"2 3511 6232 800 PA  MEDICARE"]
[null,null,null,null,null,null,null,null,null,null,null,null,null,null,null,null,null,null,null,null,null,null,null,null,null,null,null,null,null,"2 3511 6241 800 PA  MEDICAL  INS"]
[null,null,null,null,null,null,null,null,null,null,null,null,null,null,null,null,null,null,null,null,null,null,null,null,null,null,null,null,null,"1 3511 6319 800 PA  PURC/TECH   SERV"]
[null,null,null,null,null,null,null,null,null,null,null,null,null,null,null,null,null,null,null,null,null,null,null,null,null,null,null,null,null,"1 3511 6343 800 PA  MILEAGE/EXPENSE "]
[null,null,null,null,null,null,null,null,null,null,null,null,null,null,null,null,null,null,null,null,null,null,null,null,null,null,null,null,null,"1 3511 6410 800 PA  GEN SUPPLIES "]
[null,null,null,null,null,null,null,null,null,null,null,null,null,null,null,null,null,null,null,null,null,null,null,null,null,null,null,null,null,"***  FUNCTION  3512  : TITLE  I PRE-SCHOOL    "]
[null,null,null,null,null,null,null,null,null,null,null,null,null,null,null,null,null,null,null,null,null,null,null,null,null,null,null,null,null,"2 3512 6112 402  52 PS TEACHER  SALARY"]
[null,null,null,null,null,null,null,null,null,null,null,null,null,null,null,null,null,null,null,null,null,null,null,null,null,null,null,null,null,"2 3512 6151 402  52 PS AIDE   SALARY"]
[null,null,null,null,null,null,null,null,null,null,null,null,null,null,null,null,null,null,null,null,null,null,null,null,null,null,null,null,null,"2 3512 6211 402  52 PS RETIREMENT  TEA"]
[null,null,null,null,null,null,null,null,null,null,null,null,null,null,null,null,null,null,null,null,null,null,null,null,null,null,null,null,null,"2 3512 6221 402  52 PS NON-TEACHER  RET"]
[null,null,null,null,null,null,null,null,null,null,null,null,null,null,null,null,null,null,null,null,null,null,null,null,null,null,null,null,null,"2 3512 6231 402  52 PS SOC  SEC "]
[null,null,null,null,null,null,null,null,null,null,null,null,null,null,null,null,null,null,null,null,null,null,null,null,null,null,null,null,null,"2 3512 6232 402  52 PS MEDICARE"]
[null,null,null,null,null,null,null,null,null,null,null,null,null,null,null,null,null,null,null,null,null,null,null,null,null,null,null,null,null,"2 3512 6241 402  52 PS MEDICAL  INS"]
[null,null,null,null,null,null,null,null,null,null,null,null,null,null,null,null,null,null,null,null,null,null,null,null,null,null,null,null,null,"1 3512 6410 402  52 PS GEN SUPPLIES "]
[null,null,null,null,null,null,null,null,null,null,null,null,null,null,null,null,null,null,null,null,null,null,null,null,null,null,null,null,null,"***  FUNCTION  3800  : SCHOOL-AGE  CHILD   CARE    "]
[null,null,null,null,null,null,null,null,null,null,null,null,null,null,null,null,null,null,null,null,null,null,null,null,null,null,null,null,null,"***  FUNCTION  3812  :    "]
[null,null,null,null,null,null,null,null,null,null,null,null,null,null,null,null,null,null,null,null,null,null,null,null,null,null,null,null,null,"1 3812 6161.8 402 AS   PT   COOK SALARY"]
[null,null,null,null,null,null,null,null,null,null,null,null,null,null,null,null,null,null,null,null,null,null,null,null,null,null,null,null,null,"1 3812 6221.8 402 AS   NON  TEACHER  RET"]
[null,null,null,null,null,null,null,null,null,null,null,null,null,null,null,null,null,null,null,null,null,null,null,null,null,null,null,null,null,"1 3812 6231.8 402 AS  SOC  SEC "]
[null,null,null,null,null,null,null,null,null,null,null,null,null,null,null,null,null,null,null,null,null,null,null,null,null,null,null,null,null,"1 3812 6232.8 402 AS  MEDICARE"]
[null,null,null,null,null,null,null,null,null,null,null,null,null,null,null,null,null,null,null,null,null,null,null,null,null,null,null,null,null,"1 3812 6491 105 AS  FOOD SUPPLIES "]
[null,null,null,null,null,null,null,null,null,null,null,null,null,null,null,null,null,null,null,null,null,null,null,null,null,null,null,null,null,"1 3812 6491 300 AS  FOOD SUPPLIES "]
[null,null,null,null,null,null,null,null,null,null,null,null,null,null,null,null,null,null,null,null,null,null,null,null,null,null,null,null,null,"1 3812 6491 402 AS  FOOD SUPPLIES "]
[null,null,null,null,null,null,null,null,null,null,null,null,null,null,null,null,null,null,null,null,null,null,null,null,null,null,null,null,null,"*** FUNC TION  3900  : SCHOLARSHIP  "]
[null,null,null,null,null,null,null,null,null,null,null,null,null,null,null,null,null,null,null,null,null,null,null,null,null,null,null,null,null,"1 3900 6390 800 CS  SCHOLARSHIPS  PAID "]
[null,null,null,null,null,null,null,null,null,null,null,null,null,null,null,null,null,null,null,null,null,null,null,null,null,null,null,null,null,"*** FUNC TION  3911  : SUMMER  FOOD   SERVICE  "]
[null,null,null,null,null,null,null,null,null,null,null,null,null,null,null,null,null,null,null,null,null,null,null,null,null,null,null,null,null,"1 3911 6161 105 SS COOK SALARY "]
[null,null,null,null,null,null,null,null,null,null,null,null,null,null,null,null,null,null,null,null,null,null,null,null,null,null,null,null,null,"1 3911 6161 402 SS COOK SALARY "]
[null,null,null,null,null,null,null,null,null,null,null,null,null,null,null,null,null,null,null,null,null,null,null,null,null,null,null,null,null,"1 3911 6221 105 SS NON  TEACHER  RET "]
[null,null,null,null,null,null,null,null,null,null,null,null,null,null,null,null,null,null,null,null,null,null,null,null,null,null,null,null,null,"1 3911 6221 402 SS NON  TEACHER  RET "]
[null,null,null,null,null,null,null,null,null,null,null,null,null,null,null,null,null,null,null,null,null,null,null,null,null,null,null,null,null,"1 3911 6231 105 SS SOC  SEC "]
[null,null,null,null,null,null,null,null,null,null,null,null,null,null,null,null,null,null,null,null,null,null,null,null,null,null,null,null,null,"1 3911 6231 402 SS SOC  SEC "]
[null,null,null,null,null,null,null,null,null,null,null,null,null,null,null,null,null,null,null,null,null,null,null,null,null,null,null,null,null,"1 3911 6232 105 SS MEDICARE"]
[null,null,null,null,null,null,null,null,null,null,null,null,null,null,null,null,null,null,null,null,null,null,null,null,null,null,null,null,null,"1 3911 6232 402 SS MEDICARE"]
[null,null,null,null,null,null,null,null,null,null,null,null,null,null,null,null,null,null,null,null,null,null,null,null,null,null,null,null,null,"1 3911 6410 300 SS GEN SUPPLIES "]
[null,null,null,null,null,null,null,null,null,null,null,null,null,null,null,null,null,null,null,null,null,null,null,null,null,null,null,null,null,"1 3911 6410 402 SS GEN SUPPLIES "]
[null,null,null,null,null,null,null,null,null,null,null,null,null,null,null,null,null,null,null,null,null,null,null,null,null,null,null,null,null,"1 3911 6491 105 SS FOOD SUPPLIES "]
[null,null,null,null,null,null,null,null,null,null,null,null,null,null,null,null,null,null,null,null,null,null,null,null,null,null,null,null,null,"1 3911 6491 300 SS FOOD SUPPLIES "]
[null,null,null,null,null,null,null,null,null,null,null,null,null,null,null,null,null,null,null,null,null,null,null,null,null,null,null,null,null,"1 3911 6491 402 SS FOOD SUPPLIES "]
[null,null,null,null,null,null,null,null,null,null,null,null,null,null,null,null,null,null,null,null,null,null,null,null,null,null,null,null,null,"***  FUNCTION  3912  : PARENTAL   INVOLVEMENT    "]
[null,null,null,null,null,null,null,null,null,null,null,null,null,null,null,null,null,null,null,null,null,null,null,null,null,null,null,null,null,"***  FUNCTION  4000  : FACILITY   ACQUIS/CONSTRUC    "]
[null,null,null,null,null,null,null,null,null,null,null,null,null,null,null,null,null,null,null,null,null,null,null,null,null,null,null,null,null,"4 4000 6521 300 E"]
[null,null,null,null,null,null,null,null,null,null,null,null,null,null,null,null,null,null,null,null,null,null,null,null,null,null,null,null,null,"***  FUNCTION  4050  : BUILDING    IMPROVEMENT    "]
[null,null,null,null,null,null,null,null,null,null,null,null,null,null,null,null,null,null,null,null,null,null,null,null,null,null,null,null,null,"4 4050 6521 105 BI BLDG IMPROV/MAINT"]
[null,null,null,null,null,null,null,null,null,null,null,null,null,null,null,null,null,null,null,null,null,null,null,null,null,null,null,null,null,"4 4050 6521 300 BI BLDG IMPROV/MAINT"]
[null,null,null,null,null,null,null,null,null,null,null,null,null,null,null,null,null,null,null,null,null,null,null,null,null,null,null,null,null,"4 4050 6521 402 BI BLDG IMPROV/MAINT"]
[null,null,null,null,null,null,null,null,null,null,null,null,null,null,null,null,null,null,null,null,null,null,null,null,null,null,null,null,null,"***  FUNCTION  5110  :    "]
[null,null,null,null,null,null,null,null,null,null,null,null,null,null,null,null,null,null,null,null,null,null,null,null,null,null,null,null,null,"3 5110 6611 800 DS   RET  OF  BONDS"]
[null,null,null,null,null,null,null,null,null,null,null,null,null,null,null,null,null,null,null,null,null,null,null,null,null,null,null,null,null,"*** FUNCTION 5210  "]
[null,null,null,null,null,null,null,null,null,null,null,null,null,null,null,null,null,null,null,null,null,null,null,null,null,null,null,null,null,"3 5210 6621 800 DS  INTEREST    ON  BONDS"]
[null,null,null,null,null,null,null,null,null,null,null,null,null,null,null,null,null,null,null,null,null,null,null,null,null,null,null,null,null,"*** FUNCTION 5230  "]
[null,null,null,null,null,null,null,null,null,null,null,null,null,null,null,null,null,null,null,null,null,null,null,null,null,null,null,null,null,"4 5230 6623 300 LP  LEAS/PURC  INTEREST"]
[null,null,null,null,null,null,null,null,null,null,null,null,null,null,null,null,null,null,null,null,null,null,null,null,null,null,null,null,null,"*** FUNCTION 5310  "]
[null,null,null,null,null,null,null,null,null,null,null,null,null,null,null,null,null,null,null,null,null,null,null,null,null,null,null,null,null,"3 5310 6631 800 DS   OTHER FEES"]
[null,null,null,null,null,null,null,null,null,null,null,null,null,null,null,null,null,null,null,null,null,null,null,null,null,null,null,null,null,"*** FUNCTION 5330  "]
[null,null,null,null,null,null,null,null,null,null,null,null,null,null,null,null,null,null,null,null,null,null,null,null,null,null,null,null,null,"4 5330 6631 300 LP   OTHER FEES"]
[]
[]
[]
[]
[]
[]
[]
[]
[]
[]
[]
[]
[]
[]
[]
[]
[]
[]
[]
[]
[]
[]
[]
[]
[]
[]
[]
[]
[]
[]
[]
[]
[]
[]
[]
[]
[]
[]
[]
[]
[]
[]
[]
[]
[]
[]
[]
[]
[]
[]
[]
[]
[]
[]
[null,null,null,null,null,null,null,null,null,null,null,null,null,null,null,null,null,null,null,null,null,null,null,null,null,null,null,null,null,"   "]
[null,null,null,null,null,null,null,null,null,null,null,null,null,null,null,null,null,null,null,null,null,null,null,null,null,null,null,null,null,"   "]
[null,null,null,null,null,null,null,null,null,null,null,null,null,null,null,null,null,null,null,null,null,null,null,null,null,null,null,null,null,"   "]
[null,null,null,null,null,null,null,null,null,null,null,null,null,null,null,null,null,null,null,null,null,null,null,null,null,null,null,null,null,"   "]
[null,null,null,null,null,null,null,null,null,null,null,null,null,null,null,null,null,null,null,null,null,null,null,null,null,null,null,null,null,"   "]
[null,null,null,null,null,null,null,null,null,null,null,null,null,null,null,null,null,null,null,null,null,null,null,null,null,null,null,null,null,"   "]

{"sheet":"Req (5)","index":4,"n_rows":358,"n_cols":30,"rows_kept":358,"cut":false,"hidden":false,"merged":[[0,0,0,10],[1,0,1,10],[1,12,3,13],[1,18,1,20],[2,0,2,6],[2,7,2,10],[3,0,3,6],[3,7,4,10],[4,0,4,6],[5,0,5,6],[5,7,6,10],[6,0,6,6],[7,7,8,10],[10,1,10,4],[10,6,10,10],[11,1,11,4],[11,6,11,10],[12,1,12,4],[12,6,12,10],[13,6,13,7],[13,8,13,10],[16,2,16,3],[16,4,16,5],[16,6,16,7],[17,0,17,1],[17,2,17,3],[17,4,17,5],[17,6,17,7],[25,3,25,8],[17,8,17,10],[18,4,18,7],[18,8,18,10],[19,0,19,3],[19,4,19,7],[19,8,19,10],[20,3,20,8],[21,3,21,8],[22,3,22,8],[23,3,23,8],[24,3,24,8],[37,1,37,9],[26,3,26,8],[27,3,27,8],[28,3,28,8],[29,3,29,8],[30,3,30,8],[31,3,31,8],[32,3,32,8],[33,3,33,8],[34,3,34,8],[35,3,35,8],[36,3,36,8],[50,4,52,5],[38,9,38,10],[39,9,39,10],[41,3,41,6],[41,9,44,10],[42,3,42,6],[44,3,46,6]]}
[]
["Requisition",null,null,null,null,null,null,null,null,null,null,null,null,null,null,null,"Building","Form Type","Sites",null,null,null,"Elementary Codes","Middle School Codes","High School Codes","Bus/Maintenance Codes","SPED Codes","PDC Codes","Food Service","All Codes"]
[null,null,null,null,null,null,null,"fv. 06122018"]
["BILL TO:  BOARD OF EDUCATION",null,null,null,null,null,null,{"$f":"IF(A2=\"PURCHASE ORDER\",\"PURCHASE ORDER\",\"\")","v":""},null,null,null,null,null,null,null,null,"WC_District","Requisition","West St. Francois County R-IV Bus/Maintenance","1124 Main Street","Leadwood, MO. 63653",null,"***  FUNCTION  1110  : ELEMENTARY  INSTRUCTION    ","***  FUNCTION  1130  : MIDDLE SCHOOL INSTRUCTION    ","***  FUNCTION  1150  : HIGH  SCHOOL INSTRUCTION    ",null,"***  FUNCTION  1221  : SPECIAL    PROGRAMS - EMH    ","***  FUNCTION  2214  : PROFESSIONAL  DEVELOPMENT    ","***  FUNCTION  2561  : FOOD SERVICES    ","***  FUNCTION  1110  : ELEMENTARY  INSTRUCTION    "]
["  WEST ST. FRANCOIS COUNTY R-IV SCHOOL DISTRICT",null,null,null,null,null,null,null,null,null,null,null,null,null,null,null,"WC_SPED","Purchase Order","West St. Francois County R-IV School District SPED","1124 Main Street","Leadwood, MO. 63653",null,"1 1110 6319 402 EL  PURCH/TECH  SERV","1 1130 6319 300 MS  PURCH/TECH  SERV","1 1150 6319 105 HS  PURCH/TECH SERVICE",null,"1 1221 6319 402  03 SE  PURCH/TECH SERV","2 2214 6121 800 PD  SUBST   TEACHER","1 2561 6151 105 FD  COOKS  SALARY","1 1110 6319 402 EL  PURCH/TECH  SERV"]
["                   1124 MAIN STREET, LEADWOOD, MO  63653-1214",null,null,null,null,null,null,null,null,null,null,null,null,null,null,null,"WCES",null,"West St. Francois County R-IV Food Service","624 Chariton Ave","Parkhills, MO.  63601",null,"1 1110 6343 402 EL  MILEAGE/EXPENSE","1 1130 6332 300 MS CONTR REPAIR","1 1150 6332 105 HS  CONTR REPAIR",null,"1 1221 6343 105  03 SE  MILEAGE/EXPENSE","2 2214 6131 800 PD  STIPENDS ","1 2561 6151 300 FD  COOKS  SALARY","1 1110 6343 402 EL  MILEAGE/EXPENSE"]
["                   (573)562-7535 fax (573)562-2710",null,null,null,null,null,null,null,null,null,null,null,null,null,null,null,"WCMS",null,"West St. Francois County R-IV Middle School","728 Hwy. M","Park Hills, MO.  63601",null,"1 1110 6410 402 EL   GEN  SUPPLIES","1 1130 6343 300 MS MILEAGE/EXPENSE","1 1150 6343 105 HS  MILEAGE/EXPENSE",null,"1 1221 6343 300  03 SE  MILEAGE/EXPENSE","2 2214 6211 800 PD  RETIREMENT  TEA","1 2561 6151 402 FD  COOKS  SALARY","1 1110 6410 402 EL   GEN  SUPPLIES"]
[" ",null,null,null,null,null,null,{"$f":"IF(A2=\"PURCHASE ORDER\",\"THIS NUMBER MUST APPEAR ON ALL PACKAGES, LABELS, CARTONS, PACKING SLIPS, BILLS OF LADING, INVOICES, AND ALL CORRESPONDANCE REFERRING TO THIS ORDER\",\"\")","v":""},null,null,null,null,null,null,null,null,"WCHS",null,"West St. Francois County R-IV High School","768 Highway M","Park Hills, MO.  63601",null,"1 1110 6410.1 402 EL  TECH  SUPPLIES","1 1130 6410 300 MS  GEN   SUPPLIES","1 1150 6410 105 HS   GEN  SUPPLIES",null,"1 1221 6343 402  03 SE  MILEAGE/EXPENSE","1 2214 6221 800 PD  NON-TEACHER  RET","1 2561 6151 800 FD  COOKS  SALARY","1 1110 6410.1 402 EL  TECH  SUPPLIES"]
[null,null,null,null,null,null,null,null,null,null,null,null,null,null,null,null,"WC_Bus_Maint",null,"West St. Francois County R-IV Bus/Maintenance","1124 Main Street","Leadwood, MO. 63653",null,null,"1 1130 6410.1 300 MS  TECH   SUPPLIES","1 1150 6410.1 105 HS  TECH  SUPPLIES",null,"1 1221 6343 800  03 SE  MILEAGE/EXPENSE","1 2214 6231 800 PD  SOC  SEC ","1 2561 6161 105 FD  PT   COOK SALARY/SUB","***  FUNCTION  1119  : READING  1ST GRANT    "]
["VENDOR NO.",null,null,null,null,"SHIP FREIGHT PREPAID TO:",null,null,null,null,null,null,null,null,null,null,"WC_FS",null,"West St. Francois County R-IV High School","768 Highway M","Park Hills, MO.  63601",null,null,"4 1130 6541 300 MS  GEN  EQUIPMENT","4 1150 6541 105 HS  GEN  EQUIPMENT",null,"1 1221 6410 105  03 SE   GEN SUPPLIES","2 2214 6231 800 PD  SOC  SEC ","1 2561 6161 300 FD  PT   COOK SALARY/SUB","***  FUNCTION  1130  : MIDDLE SCHOOL INSTRUCTION    "]
[null,null,null,null,null,null,{"$f":"IF(I20=\"\",\"\",VLOOKUP(I20,Q4:U12,3))","v":""},null,null,null,null,null,null,null,null,null,"WC_PDC",null,"West St. Francois County R-IV Middle School","728 Hwy. M","Park Hills, MO.  63601",null,null,"***  FUNCTION  1341  : HOME ECONOMICS    ","***  FUNCTION  1341  : HOME ECONOMICS    ",null,"1 1221 6410 300  03 SE   GEN SUPPLIES","1 2214 6232 800 PD  MEDICARE","1 2561 6161 402 FD  PT   COOK SALARY/SUB","1 1130 6319 300 MS  PURCH/TECH  SERV"]
[null,null,null,null,null,null,{"$f":"IF(G11=\"\",\"\",VLOOKUP(I20,Q4:U12,4))","v":""},null,null,null,null,null,null,null,null,null,null,null,null,null,null,null,null,"1 1341 6410 300 HE  GEN  SUPPLIES","2 1341 6112 105 HE  TEACHER  SALARY",null,"1 1221 6410 402  03 SE   GEN SUPPLIES","2 2214 6232 800 PD  MEDICARE","1 2561 6171 300 FD  SICKLEAVE   PAY","1 1130 6332 300 MS CONTR REPAIR"]
[null,null,null,null,null,null,{"$f":"IF(G11=\"\",\"\",VLOOKUP(I20,Q4:U12,5))","v":""},null,null,null,null,null,null,null,null,null,null,null,null,null,null,null,null,"***  FUNCTION  1351  : VOC INDUSTRIAL    TECH    ","2 1341 6211 105 HE  RETIREMENT   TEA",null,"1 1221 6410 800  03 SE   GEN SUPPLIES","2 2214 6312 800 PD  TUITION   REIMBURSMT","1 2561 6221 105 FD  NON  TEACHER  RET","1 1130 6343 300 MS MILEAGE/EXPENSE"]
[null,"Phone",null,"Fax",null,null,"Attention:",null,{"$f":"IF(E20=\"\",\"\",E20)","v":""},null,null,null,null,null,null,null,null,null,null,null,null,null,null,"1 1351 6410 300 IT GEN  SUPPLIES","2 1341 6232 105 HE  MEDICARE",null,null,"1 2214 6319 800 PD  PURC/TECH   SERV","1 2561 6221 300 FD  NON  TEACHER  RET","1 1130 6410 300 MS  GEN   SUPPLIES"]
[null,null,null,null,null,null,null,null,null,null,null,null,null,null,null,null,null,null,null,null,null,null,null,"***  FUNCTION  1411  : STUDENT  ACTIVITIES    ","2 1341 6241 105 HE  MEDICAL   INS",null,null,"1 2214 6343 800 PD  MILEAGE/EXPENSE ","1 2561 6221 402 FD  NON  TEACHER  RET","1 1130 6410.1 300 MS  TECH   SUPPLIES"]
["THIS IS A TAX EXEMPT PURCHASE.  DO NOT INCLUDE STATE SALES TAX OR FEDERAL EXCISE TAX",null,null,null,null,null,null,null,null,null,null,null,null,null,null,null,null,null,null,null,null,null,null,"1 1411 6411.002  SA  MIDDLE  SCHOOL EXP","1 1341 6343 105 HE MILEAGE/EXPENSE",null,null,"1 2214 6410 800 PD  GEN SUPPLIES ","1 2561 6221 800 FD  NON  TEACHER  RET","4 1130 6541 300 MS  GEN  EQUIPMENT"]
["ORDER DATE",null,"DATE WANTED",null,"SHIP VIA",null,"TERMS",null,"IN ACCORDANCE WITH BID OR CONTRACT DATED",null,null,null,null,null,null,null,null,null,null,null,null,null,null,"***  FUNCTION  2120  : GUIDANCE SERVICES    ","1 1341 6410 105 HE  GEN  SUPPLIES",null,null,null,"1 2561 6231 105 FD  SOC  SEC","***  FUNCTION  1150  : HIGH  SCHOOL INSTRUCTION    "]
[null,null,null,null,null,null,null,null,null,null,null,null,null,null,null,null,null,null,null,null,null,null,null,"1 2120 6410 300 GU  GEN   SUPPLIES","***  FUNCTION  1351  : VOC INDUSTRIAL    TECH    ",null,null,null,"1 2561 6231 300 FD  SOC  SEC","1 1150 6319 105 HS  PURCH/TECH SERVICE"]
["FUND APPROPRIATION EXPENDITURE ACCOUNT",null,null,null,"REQUISITIONED BY ",null,null,null,"BUILDING",null,null,null,null,null,null,null,null,null,null,null,null,null,null,"***  FUNCTION  2130  : NURSING SERVICES    ","1 1351 6343 105 IT MILEAGE/EXPENSE",null,null,null,"1 2561 6231 402 FD  SOC  SEC","1 1150 6332 105 HS  CONTR REPAIR"]
[null,null,null,null,null,null,null,null,null,null,null,null,null,null,null,null,null,null,null,null,null,null,null,"1 2130 6410 300 NU  GEN  SUPPLIES","1 1351 6410 105 IT GEN  SUPPLIES",null,null,null,"1 2561 6231 800 FD  SOC  SEC","1 1150 6343 105 HS  MILEAGE/EXPENSE"]
[null,"Quantity","Catalog Number","Description",null,null,null,null,null,"Unit Price","Amount",null,null,null,null,null,null,null,null,null,null,null,null,"***  FUNCTION  2220  : MEDIA SERVICES    ","***  FUNCTION  1341  : HOME ECONOMICS    ",null,null,null,"1 2561 6232 105 FD  MEDICARE","1 1150 6410 105 HS   GEN  SUPPLIES"]
[null,null,null,null,null,null,null,null,null,null,{"$f":"IF(B22=\"\",\"\",B22*J22)","v":""},null,null,null,null,null,null,null,null,null,null,null,null,"1 2220 6319.7 300 T6.B PURCH/TECH  SERV","1 1341 6343 105 HE MILEAGE/EXPENSE",null,null,null,"1 2561 6232 300 FD  MEDICARE","1 1150 6410.1 105 HS  TECH  SUPPLIES"]
[null,null,null,null,null,null,null,null,null,null,"",null,null,null,null,null,null,null,null,null,null,null,null,"1 2220 6410 300 LB   GEN  SUPPLIES","1 1341 6410 105 HE  GEN  SUPPLIES",null,null,null,"1 2561 6232 402 FD  MEDICARE","4 1150 6541 105 HS  GEN  EQUIPMENT"]
[null,null,null,null,null,null,null,null,null,null,"",null,null,null,null,null,null,null,null,null,null,null,null,"1 2220 6441 300 LB  LIBRARY   BOOKS","1 1341 6410 300 HE  GEN  SUPPLIES",null,null,null,"1 2561 6232 800 FD  MEDICARE","***  FUNCTION  1170  : ALTERNATIVE INSTRUCTION    "]
[null,null,null,null,null,null,null,null,null,null,"",null,null,null,null,null,null,null,null,null,null,null,null,"***  FUNCTION  2540  : OPER  OF  PLANT   - CUSTODIAL    ","***  FUNCTION  1411  : STUDENT  ACTIVITIES    ",null,null,null,"1 2561 6241 105 FD  MEDICAL  INS","1 1170 6319 105 AL  PURCH/TECH  SERV"]
[null,null,null,null,null,null,null,null,null,null,"",null,null,null,null,null,null,null,null,null,null,null,null,"1 2540 6410 300 GEN SUPPLIES","1 1411 6121 800 SA  ACTIVITY PAY/PT",null,null,null,"1 2561 6241 300 FD  MEDICAL  INS","1 1170 6410 105 AL  GEN  SUPPLIES"]
[null,null,null,null,null,null,null,null,null,null,"",null,null,null,null,null,null,null,null,null,null,null,null,"***  FUNCTION  2210  : FEDERAL   PROGRAMS    ","1 1411 6131 800 SA  ACTIVITY  PAY/TRS",null,null,null,"1 2561 6241 402 FD  MEDICAL  INS","***  FUNCTION  1191  : SUMMER SCHOOL    "]
[null,null,null,null,null,null,null,null,null,null,"",null,null,null,null,null,null,null,null,null,null,null,null,"1 2210 6319.8 300 21CENT/PURCH  SERVICE","1 1411 6161 800 SA  ACTIVITY  PAY/NT",null,null,null,"1 2561 6261 105 FD   WORKMANS COMP","1 1191 6410 800 SS GEN  SUPPLIES"]
[null,null,null,null,null,null,null,null,null,null,"",null,null,null,null,null,null,null,null,null,null,null,null,"1 2210 6410.8 300 21CENT/GEN SUPPLIES","1 1411 6411 39 SA  CROSS  COUNTRY EXP",null,null,null,"1 2561 6261 300 FD   WORKMANS COMP","***  FUNCTION  1192  : JUVENILE    PROGRAM    "]
[null,null,null,null,null,null,null,null,null,null,"",null,null,null,null,null,null,null,null,null,null,null,null,"***  FUNCTION  2214  : PROFESSIONAL  DEVELOPMENT    ","1 1411 6411.001  SA  ATHLETICS  EXP",null,null,null,"1 2561 6261 402 FD   WORKMANS COMP","1 1192 6319 105 JP PURCH/TECH  SERV"]
[null,null,null,null,null,null,null,null,null,null,"",null,null,null,null,null,null,null,null,null,null,null,null,"2 2214 6312 800 PD  TUITION   REIMBURSMT","1 1411 6411.002  SA  MIDDLE  SCHOOL EXP",null,null,null,"1 2561 6343 402 FD  MILEAGE/EXPENSE","1 1192 6410 105 JP GEN  SUPPLIES"]
[null,null,null,null,null,null,null,null,null,null,"",null,null,null,null,null,null,null,null,null,null,null,null,"1 2214 6319 800 PD  PURC/TECH   SERV","1 1411 6411.003  SA  BAND EXP",null,null,null,"1 2561 6343 800 FD  MILEAGE/EXPENSE","***  FUNCTION  1211  : SPECIAL    PROGRAMS - GIFTED    "]
[null,null,null,null,null,null,null,null,null,null,"",null,null,null,null,null,null,null,null,null,null,null,null,"1 2214 6343 800 PD  MILEAGE/EXPENSE ","1 1411 6411.005  SA  JUNIOR  EXP",null,null,null,"1 2561 6391 105 FD  OTHER PURCH SERV","***  FUNCTION  1221  : SPECIAL    PROGRAMS - EMH    "]
[null,null,null,null,null,null,null,null,null,null,"",null,null,null,null,null,null,null,null,null,null,null,null,"1 2214 6410 800 PD  GEN SUPPLIES ","1 1411 6411.006  SA  BASEBALL  EXP",null,null,null,"1 2561 6410 105 FD  GEN  SUPPLIES","1 1221 6319 402  03 SE  PURCH/TECH SERV"]
[null,null,null,null,null,null,null,null,null,null,"",null,null,null,null,null,null,null,null,null,null,null,null,null,"1 1411 6411.007  SA   ENVIRONMENTAL CLUB",null,null,null,"1 2561 6410 300 FD  GEN  SUPPLIES","1 1221 6343 105  03 SE  MILEAGE/EXPENSE"]
[null,null,null,null,null,null,null,null,null,null,"",null,null,null,null,null,null,null,null,null,null,null,null,null,"1 1411 6411.009  SA  SPIRIT    SQUAD EXP",null,null,null,"1 2561 6410 402 FD  GEN  SUPPLIES","1 1221 6343 300  03 SE  MILEAGE/EXPENSE"]
[null,null,null,null,null,null,null,null,null,null,"",null,null,null,null,null,null,null,null,null,null,null,null,null,"1 1411 6411.011  SA  FCCLA  EXP",null,null,null,"1 2561 6471 105 FD  FOOD  SUPPLIES","1 1221 6343 402  03 SE  MILEAGE/EXPENSE"]
[null,"SHIPPING",null,null,null,null,null,null,null,null,null,null,null,null,null,null,null,null,null,null,null,null,null,null,"1 1411 6411.012  SA  MATH/PHYSICS   EXP",null,null,null,"1 2561 6471 300 FD  FOOD  SUPPLIES","1 1221 6343 800  03 SE  MILEAGE/EXPENSE"]
["*** Bill to Board of Education, West St. Francois County R-IV, at above address",null,null,null,null,null,null,null,null,"Total Amount",null,null,null,null,null,null,null,null,null,null,null,null,null,null,"1 1411 6411.013  SA  BOYS  BASKETBALL",null,null,null,"1 2561 6471 402 FD  FOOD  SUPPLIES","1 1221 6410 105  03 SE   GEN SUPPLIES"]
[null,null,null,null,null,null,null,null,null,{"$f":"IF(K22=\"\",\"\",SUM(K22:K38))","v":""},null,null,null,null,null,null,null,null,null,null,null,null,null,null,"1 1411 6411.014  SA  LIBRARY  CLUB  EXP",null,null,null,"4 2561 6541 105 FD  GEN  EQUIPMENT","1 1221 6410 300  03 SE   GEN SUPPLIES"]
[null,null,null,null,null,null,null,null,null,null,null,null,null,null,null,null,null,null,null,null,null,null,null,null,"1 1411 6411.015  SA  MISC  EXP",null,null,null,"4 2561 6541 402 FD  GEN  EQUIPMENT","1 1221 6410 402  03 SE   GEN SUPPLIES"]
[null,null,null,null,null,null,null,null,null,{"$f":"IF($K$38=\"\",\"IF YOU SEE THIS YOU HAVE NOT ENTERED SHIPPING CHARGES\",\"\")","v":"IF YOU SEE THIS YOU HAVE NOT ENTERED SHIPPING CHARGES"},null,null,null,null,null,null,null,null,null,null,null,null,null,null,"1 1411 6411.016  SA  VOCAL MUSIC  EXP",null,null,null,"*** FUNC TION  3911  : SUMMER  FOOD   SERVICE  ","1 1221 6410 800  03 SE   GEN SUPPLIES"]
[null,null,null,{"$f":"IF(A2=\"PURCHASE ORDER\",\"Superintendent\",\"Building Principal\")","v":"Building Principal"},null,null,null,null,null,null,null,null,null,null,null,null,null,null,null,null,null,null,null,null,"1 1411 6411.017  SA  NHS  EXP",null,null,null,"1 3911 6161 105 SS COOK SALARY ","***  FUNCTION  1231  : SPECIAL    PROGRAMS - SPEECH    "]
[null,null,null,null,null,null,null,null,null,null,null,null,null,null,null,null,null,null,null,null,null,null,null,null,"1 1411 6411.018  SA  GIRLS   BASKETBALL",null,null,null,"1 3911 6161 402 SS COOK SALARY ","***  FUNCTION  1234  : HOMEBOUND   INSTRUCTION    "]
[null,null,null,null,null,null,null,null,null,null,null,null,null,null,null,null,null,null,null,null,null,null,null,null,"1 1411 6411.019  SA  FBLA  EXP",null,null,null,"1 3911 6221 105 SS NON  TEACHER  RET ","***  FUNCTION  1241  : EMOT/BEHAV DISTURBED    "]
[null,null,null,null,null,null,null,null,null,null,null,null,null,null,null,null,null,null,null,null,null,null,null,null,"1 1411 6411.02  SA  REFLECTOR EXP",null,null,null,"1 3911 6221 402 SS NON  TEACHER  RET ","***  FUNCTION  1251  : COMPENS  EDUC  - TITLE  1    "]
[null,null,null,null,null,null,null,null,null,null,null,null,null,null,null,null,null,null,null,null,null,null,null,null,"1 1411 6411.022  SA  STU  COUNCIL  EXP",null,null,null,"1 3911 6231 105 SS SOC  SEC ","1 1251 6319 402  50 T1 PURCH/TECH  SERVICE "]
[null,null,null,null,null,null,null,null,null,null,null,null,null,null,null,null,null,null,null,null,null,null,null,null,"1 1411 6411.023  SA  VOLLEYBALL EXP",null,null,null,"1 3911 6231 402 SS SOC  SEC ","***  FUNCTION  1261  : SPECIAL    PROGRAMS - LD    "]
[null,null,null,null,null,null,null,null,null,null,null,null,null,null,null,null,null,null,null,null,null,null,null,null,"1 1411 6411.025  SA  INSTRUC  ACTIV  EXP",null,null,null,"1 3911 6232 105 SS MEDICARE","***  FUNCTION  1281  : EARLY  CHILDHOOD/SPEC    EDUC    "]
[null,null,null,null,null,null,null,null,null,null,null,null,null,null,null,null,null,null,null,null,null,null,null,null,"1 1411 6411.026  SA  SPECIAL   ED  EXP",null,null,null,"1 3911 6232 402 SS MEDICARE","1 1281 6319 402 42 EC  PURCH/TECH  SERVICE "]
[null,null,null,null,null,null,null,null,null,null,null,null,null,null,null,null,null,null,null,null,null,null,null,null,"1 1411 6411.029  SA  WCTSA EXP"]
[null,null,null,null,null,null,null,null,null,null,null,null,null,null,null,null,null,null,null,null,null,null,null,null,"1 1411 6411.031  SA  DISTR   TOURNEY EXP"]
[null,null,null,null,null,null,null,null,null,null,null,null,null,null,null,null,null,null,null,null,null,null,null,null,"1 1411 6411.032  SA   COMMUNITY SERVICE"]
[null,null,null,null,null,null,null,null,null,null,null,null,null,null,null,null,null,null,null,null,null,null,null,null,"1 1411 6411.033  SA  FCA",null,null,null,"1 3911 6491 300 SS FOOD SUPPLIES ","1 1331 6410 105 BU  GEN SUPPLIES "]
[null,null,null,null,null,null,null,null,null,null,null,null,null,null,null,null,null,null,null,null,null,null,null,null,"1 1411 6411.035  SA  SOFTBALL",null,null,null,"1 3911 6491 402 SS FOOD SUPPLIES ","***  FUNCTION  1332  : VOCATIONAL BUSINESS    GRANT    "]
[null,null,null,null,null,null,null,null,null,null,null,null,null,null,null,null,null,null,null,null,null,null,null,null,"1 1411 6411.037  SA  SPEC  OLYMPICS",null,null,null,null,"***  FUNCTION  1341  : HOME ECONOMICS    "]
[null,null,null,null,null,null,null,null,null,null,null,null,null,null,null,null,null,null,null,null,null,null,null,null,"1 1411 6411.038  SA  GOLF EXP",null,null,null,null,"1 1341 6343 105 HE MILEAGE/EXPENSE"]
[null,null,null,null,null,null,null,null,null,null,null,null,null,null,null,null,null,null,null,null,null,null,null,null,"***  FUNCTION  2120  : GUIDANCE SERVICES    ",null,null,null,null,"1 1341 6410 105 HE  GEN  SUPPLIES"]
[null,null,null,null,null,null,null,null,null,null,null,null,null,null,null,null,null,null,null,null,null,null,null,null,"1 2120 6316 105 GU  TEST   SCORING",null,null,null,null,"1 1341 6410 300 HE  GEN  SUPPLIES"]
[null,null,null,null,null,null,null,null,null,null,null,null,null,null,null,null,null,null,null,null,null,null,null,null,"1 2120 6316.1 105 GU TEST  SCORING/ACT",null,null,null,null,"***  FUNCTION  1351  : VOC INDUSTRIAL    TECH    "]
[null,null,null,null,null,null,null,null,null,null,null,null,null,null,null,null,null,null,null,null,null,null,null,null,"1 2120 6410 105 GU  GEN   SUPPLIES",null,null,null,null,"1 1351 6343 105 IT MILEAGE/EXPENSE"]
[null,null,null,null,null,null,null,null,null,null,null,null,null,null,null,null,null,null,null,null,null,null,null,null,"***  FUNCTION  2130  : NURSING SERVICES    ",null,null,null,null,"1 1351 6410 105 IT GEN  SUPPLIES"]
[null,null,null,null,null,null,null,null,null,null,null,null,null,null,null,null,null,null,null,null,null,null,null,null,"1 2130 6410 105 NU  GEN  SUPPLIES",null,null,null,null,"1 1351 6410 300 IT GEN  SUPPLIES"]
[null,null,null,null,null,null,null,null,null,null,null,null,null,null,null,null,null,null,null,null,null,null,null,null,"***  FUNCTION  2220  : MEDIA SERVICES    ",null,null,null,null,"***  FUNCTION  1361  : VOC-TECH    ENHANCEMENT GRNT    "]
[null,null,null,null,null,null,null,null,null,null,null,null,null,null,null,null,null,null,null,null,null,null,null,null,"1 2220 6319.7 105 T6.B PURCH/TECH  SERV",null,null,null,null,"1 1361 6343 105 VE MILEAGE/EXPENSE"]
[null,null,null,null,null,null,null,null,null,null,null,null,null,null,null,null,null,null,null,null,null,null,null,null,"1 2220 6410 105 LB   GEN  SUPPLIES",null,null,null,null,"1 1361 6410 105 VE GEN SUPPLIES"]
[null,null,null,null,null,null,null,null,null,null,null,null,null,null,null,null,null,null,null,null,null,null,null,null,"1 2220 6441 105 LB  LIBRARY   BOOKS",null,null,null,null,"***  FUNCTION  1391  : OTHER CAREER  EDUCATION    "]
[null,null,null,null,null,null,null,null,null,null,null,null,null,null,null,null,null,null,null,null,null,null,null,null,"***  FUNCTION  2540  : OPER  OF  PLANT   - CUSTODIAL    ",null,null,null,null,"1 1391 6319 105 JG  PURCH/TECH SERVICE"]
[null,null,null,null,null,null,null,null,null,null,null,null,null,null,null,null,null,null,null,null,null,null,null,null,"1 2540 6319 105 OM   PURC/TECH  SERV",null,null,null,null,"1 1391 6343 105 JG  MILEAGE/EXPENSE"]
[null,null,null,null,null,null,null,null,null,null,null,null,null,null,null,null,null,null,null,null,null,null,null,null,"1 2540 6335 105 OM   WATER/SEWER",null,null,null,null,"1 1391 6410 105 JG   GEN  SUPPLIES"]
[null,null,null,null,null,null,null,null,null,null,null,null,null,null,null,null,null,null,null,null,null,null,null,null,"1 2540 6336 105 OM  TRASH    REMOVAL",null,null,null,null,"***  FUNCTION  1411  : STUDENT  ACTIVITIES    "]
[null,null,null,null,null,null,null,null,null,null,null,null,null,null,null,null,null,null,null,null,null,null,null,null,"1 2540 6339 105 OM   OTH/PEST    CONTROL",null,null,null,null,"1 1411 6121 800 SA  ACTIVITY PAY/PT"]
[null,null,null,null,null,null,null,null,null,null,null,null,null,null,null,null,null,null,null,null,null,null,null,null,"1 2540 6351 105 OM   PROPERTY INSURANCE",null,null,null,null,"1 1411 6131 800 SA  ACTIVITY  PAY/TRS"]
[null,null,null,null,null,null,null,null,null,null,null,null,null,null,null,null,null,null,null,null,null,null,null,null,null,null,null,null,null,"1 1411 6161 800 SA  ACTIVITY  PAY/NT"]
[null,null,null,null,null,null,null,null,null,null,null,null,null,null,null,null,null,null,null,null,null,null,null,null,null,null,null,null,null,"1 1411 6211 800 SA  RETIREMENT  TEA"]
[null,null,null,null,null,null,null,null,null,null,null,null,null,null,null,null,null,null,null,null,null,null,null,null,null,null,null,null,null,"1 1411 6221 800 SA  NON-TEACHER  RET"]
[null,null,null,null,null,null,null,null,null,null,null,null,null,null,null,null,null,null,null,null,null,null,null,null,null,null,null,null,null,"1 1411 6231 800 SA  SOC  SEC"]
[null,null,null,null,null,null,null,null,null,null,null,null,null,null,null,null,null,null,null,null,null,null,null,null,null,null,null,null,null,"1 1411 6232 800 SA  MEDICARE"]
[null,null,null,null,null,null,null,null,null,null,null,null,null,null,null,null,null,null,null,null,null,null,null,null,null,null,null,null,null,"1 1411 6411 39 SA  CROSS  COUNTRY EXP"]
[null,null,null,null,null,null,null,null,null,null,null,null,null,null,null,null,null,null,null,null,null,null,null,null,null,null,null,null,null,"1 1411 6411.001  SA  ATHLETICS  EXP"]
[null,null,null,null,null,null,null,null,null,null,null,null,null,null,null,null,null,null,null,null,null,null,null,null,null,null,null,null,null,"1 1411 6411.002  SA  MIDDLE  SCHOOL EXP"]
[null,null,null,null,null,null,null,null,null,null,null,null,null,null,null,null,null,null,null,null,null,null,null,null,null,null,null,null,null,"1 1411 6411.003  SA  BAND EXP"]
[null,null,null,null,null,null,null,null,null,null,null,null,null,null,null,null,null,null,null,null,null,null,null,null,null,null,null,null,null,"1 1411 6411.005  SA  JUNIOR  EXP"]
[null,null,null,null,null,null,null,null,null,null,null,null,null,null,null,null,null,null,null,null,null,null,null,null,null,null,null,null,null,"1 1411 6411.006  SA  BASEBALL  EXP"]
[null,null,null,null,null,null,null,null,null,null,null,null,null,null,null,null,null,null,null,null,null,null,null,null,null,null,null,null,null,"1 1411 6411.007  SA   ENVIRONMENTAL CLUB"]
[null,null,null,null,null,null,null,null,null,null,null,null,null,null,null,null,null,null,null,null,null,null,null,null,null,null,null,null,null,"1 1411 6411.009  SA  SPIRIT    SQUAD EXP"]
[null,null,null,null,null,null,null,null,null,null,null,null,null,null,null,null,null,null,null,null,null,null,null,null,null,null,null,null,null,"1 1411 6411.01  SA  ELEM GEN EXP"]
[null,null,null,null,null,null,null,null,null,null,null,null,null,null,null,null,null,null,null,null,null,null,null,null,null,null,null,null,null,"1 1411 6411.011  SA  FCCLA  EXP"]
[null,null,null,null,null,null,null,null,null,null,null,null,null,null,null,null,null,null,null,null,null,null,null,null,null,null,null,null,null,"1 1411 6411.012  SA  MATH/PHYSICS   EXP"]
[null,null,null,null,null,null,null,null,null,null,null,null,null,null,null,null,null,null,null,null,null,null,null,null,null,null,null,null,null,"1 1411 6411.013  SA  BOYS  BASKETBALL"]
[null,null,null,null,null,null,null,null,null,null,null,null,null,null,null,null,null,null,null,null,null,null,null,null,null,null,null,null,null,"1 1411 6411.014  SA  LIBRARY  CLUB  EXP"]
[null,null,null,null,null,null,null,null,null,null,null,null,null,null,null,null,null,null,null,null,null,null,null,null,null,null,null,null,null,"1 1411 6411.015  SA  MISC  EXP"]
[null,null,null,null,null,null,null,null,null,null,null,null,null,null,null,null,null,null,null,null,null,null,null,null,null,null,null,null,null,"1 1411 6411.016  SA  VOCAL MUSIC  EXP"]
[null,null,null,null,null,null,null,null,null,null,null,null,null,null,null,null,null,null,null,null,null,null,null,null,null,null,null,null,null,"1 1411 6411.017  SA  NHS  EXP"]
[null,null,null,null,null,null,null,null,null,null,null,null,null,null,null,null,null,null,null,null,null,null,null,null,null,null,null,null,null,"1 1411 6411.018  SA  GIRLS   BASKETBALL"]
[null,null,null,null,null,null,null,null,null,null,null,null,null,null,null,null,null,null,null,null,null,null,null,null,null,null,null,null,null,"1 1411 6411.019  SA  FBLA  EXP"]
[null,null,null,null,null,null,null,null,null,null,null,null,null,null,null,null,null,null,null,null,null,null,null,null,null,null,null,null,null,"1 1411 6411.02  SA  REFLECTOR EXP"]
[null,null,null,null,null,null,null,null,null,null,null,null,null,null,null,null,null,null,null,null,null,null,null,null,null,null,null,null,null,"1 1411 6411.022  SA  STU  COUNCIL  EXP"]
[null,null,null,null,null,null,null,null,null,null,null,null,null,null,null,null,null,null,null,null,null,null,null,null,null,null,null,null,null,"1 1411 6411.023  SA  VOLLEYBALL EXP"]
[null,null,null,null,null,null,null,null,null,null,null,null,null,null,null,null,null,null,null,null,null,null,null,null,null,null,null,null,null,"1 1411 6411.025  SA  INSTRUC  ACTIV  EXP"]
[null,null,null,null,null,null,null,null,null,null,null,null,null,null,null,null,null,null,null,null,null,null,null,null,null,null,null,null,null,"1 1411 6411.026  SA  SPECIAL   ED  EXP"]
[null,null,null,null,null,null,null,null,null,null,null,null,null,null,null,null,null,null,null,null,null,null,null,null,null,null,null,null,null,"1 1411 6411.029  SA  WCTSA EXP"]
[null,null,null,null,null,null,null,null,null,null,null,null,null,null,null,null,null,null,null,null,null,null,null,null,null,null,null,null,null,"1 1411 6411.031  SA  DISTR   TOURNEY EXP"]
[null,null,null,null,null,null,null,null,null,null,null,null,null,null,null,null,null,null,null,null,null,null,null,null,null,null,null,null,null,"1 1411 6411.032  SA   COMMUNITY SERVICE"]
[null,null,null,null,null,null,null,null,null,null,null,null,null,null,null,null,null,null,null,null,null,null,null,null,null,null,null,null,null,"1 1411 6411.033  SA  FCA"]
[null,null,null,null,null,null,null,null,null,null,null,null,null,null,null,null,null,null,null,null,null,null,null,null,null,null,null,null,null,"1 1411 6411.035  SA  SOFTBALL"]
[null,null,null,null,null,null,null,null,null,null,null,null,null,null,null,null,null,null,null,null,null,null,null,null,null,null,null,null,null,"1 1411 6411.037  SA  SPEC  OLYMPICS"]
[null,null,null,null,null,null,null,null,null,null,null,null,null,null,null,null,null,null,null,null,null,null,null,null,null,null,null,null,null,"1 1411 6411.038  SA  GOLF EXP"]
[null,null,null,null,null,null,null,null,null,null,null,null,null,null,null,null,null,null,null,null,null,null,null,null,null,null,null,null,null,"***  FUNCTION  1910  : TUITION  - OTHER  SCHOOLS    "]
[null,null,null,null,null,null,null,null,null,null,null,null,null,null,null,null,null,null,null,null,null,null,null,null,null,null,null,null,null,"***  FUNCTION  1911  :    "]
[null,null,null,null,null,null,null,null,null,null,null,null,null,null,null,null,null,null,null,null,null,null,null,null,null,null,null,null,null,"2 1911 6311 105 TU  DUAL CREDIT/MAC"]
[null,null,null,null,null,null,null,null,null,null,null,null,null,null,null,null,null,null,null,null,null,null,null,null,null,null,null,null,null,"***  FUNCTION  1921  :    "]
[null,null,null,null,null,null,null,null,null,null,null,null,null,null,null,null,null,null,null,null,null,null,null,null,null,null,null,null,null,"2 1921 6311 105 TU  AREA VOC/TUITION "]
[null,null,null,null,null,null,null,null,null,null,null,null,null,null,null,null,null,null,null,null,null,null,null,null,null,null,null,null,null,"***  FUNCTION  1931  :    "]
[null,null,null,null,null,null,null,null,null,null,null,null,null,null,null,null,null,null,null,null,null,null,null,null,null,null,null,null,null,"***  FUNCTION  1941  : CONTRACTED  EDUC  SERVICES    "]
[null,null,null,null,null,null,null,null,null,null,null,null,null,null,null,null,null,null,null,null,null,null,null,null,null,null,null,null,null,"2 1941 6311 800 CE  CONTR  EDUC  SERV "]
[null,null,null,null,null,null,null,null,null,null,null,null,null,null,null,null,null,null,null,null,null,null,null,null,null,null,null,null,null,"***  FUNCTION  1942  : SUPPLEMENTAL EDUC  SERV    "]
[null,null,null,null,null,null,null,null,null,null,null,null,null,null,null,null,null,null,null,null,null,null,null,null,null,null,null,null,null,"***  FUNCTION  2111  : TITLE  I TESTING    "]
[null,null,null,null,null,null,null,null,null,null,null,null,null,null,null,null,null,null,null,null,null,null,null,null,null,null,null,null,null,"***  FUNCTION  2112  : ATTENDANCE  SERVICES    "]
[null,null,null,null,null,null,null,null,null,null,null,null,null,null,null,null,null,null,null,null,null,null,null,null,null,null,null,null,null,"1 2120 6316 105 GU  TEST   SCORING"]
[null,null,null,null,null,null,null,null,null,null,null,null,null,null,null,null,null,null,null,null,null,null,null,null,null,null,null,null,null,"1 2120 6316 300 GU  TEST   SCORING"]
[null,null,null,null,null,null,null,null,null,null,null,null,null,null,null,null,null,null,null,null,null,null,null,null,null,null,null,null,null,"1 2120 6316 402 GU  TEST   SCORING"]
[null,null,null,null,null,null,null,null,null,null,null,null,null,null,null,null,null,null,null,null,null,null,null,null,null,null,null,null,null,"1 2120 6316.1 105 GU TEST  SCORING/ACT"]
[null,null,null,null,null,null,null,null,null,null,null,null,null,null,null,null,null,null,null,null,null,null,null,null,null,null,null,null,null,"1 2120 6410 105 GU  GEN   SUPPLIES"]
[null,null,null,null,null,null,null,null,null,null,null,null,null,null,null,null,null,null,null,null,null,null,null,null,null,null,null,null,null,"1 2120 6410 300 GU  GEN   SUPPLIES"]
[null,null,null,null,null,null,null,null,null,null,null,null,null,null,null,null,null,null,null,null,null,null,null,null,null,null,null,null,null,"1 2120 6410 402 GU  GEN   SUPPLIES"]
[null,null,null,null,null,null,null,null,null,null,null,null,null,null,null,null,null,null,null,null,null,null,null,null,null,null,null,null,null,"***  FUNCTION  2130  : NURSING SERVICES    "]
[null,null,null,null,null,null,null,null,null,null,null,null,null,null,null,null,null,null,null,null,null,null,null,null,null,null,null,null,null,"1 2130 6410 105 NU  GEN  SUPPLIES"]
[null,null,null,null,null,null,null,null,null,null,null,null,null,null,null,null,null,null,null,null,null,null,null,null,null,null,null,null,null,"1 2130 6410 300 NU  GEN  SUPPLIES"]
[null,null,null,null,null,null,null,null,null,null,null,null,null,null,null,null,null,null,null,null,null,null,null,null,null,null,null,null,null,"1 2130 6410 402 NU  GEN  SUPPLIES"]
[null,null,null,null,null,null,null,null,null,null,null,null,null,null,null,null,null,null,null,null,null,null,null,null,null,null,null,null,null,"***  FUNCTION  2132  : HEALTH  SERVICES    "]
[null,null,null,null,null,null,null,null,null,null,null,null,null,null,null,null,null,null,null,null,null,null,null,null,null,null,null,null,null,"1 2132 6319 402 HE  CONTR HEALTH SERV"]
[null,null,null,null,null,null,null,null,null,null,null,null,null,null,null,null,null,null,null,null,null,null,null,null,null,null,null,null,null,"1 2132 6319 800 HE  CONTR HEALTH SERV"]
[null,null,null,null,null,null,null,null,null,null,null,null,null,null,null,null,null,null,null,null,null,null,null,null,null,null,null,null,null,"***  FUNCTION  2142  : PSYCHOL/EVAL SERVICES    "]
[null,null,null,null,null,null,null,null,null,null,null,null,null,null,null,null,null,null,null,null,null,null,null,null,null,null,null,null,null,"***  FUNCTION  2210  : FEDERAL   PROGRAMS    "]
[null,null,null,null,null,null,null,null,null,null,null,null,null,null,null,null,null,null,null,null,null,null,null,null,null,null,null,null,null,"1 2210 6319.6 105 T5 PURCH/TECH  SERV"]
[null,null,null,null,null,null,null,null,null,null,null,null,null,null,null,null,null,null,null,null,null,null,null,null,null,null,null,null,null,"1 2210 6319.6 300 T5 PURCH/TECH  SERV"]
[null,null,null,null,null,null,null,null,null,null,null,null,null,null,null,null,null,null,null,null,null,null,null,null,null,null,null,null,null,"1 2210 6319.6 402 T5 PURCH/TECH  SERV"]
[null,null,null,null,null,null,null,null,null,null,null,null,null,null,null,null,null,null,null,null,null,null,null,null,null,null,null,null,null,"1 2210 6319.8 105 21CENT/PURCH  SERVICE"]
[null,null,null,null,null,null,null,null,null,null,null,null,null,null,null,null,null,null,null,null,null,null,null,null,null,null,null,null,null,"1 2210 6319.8 300 21CENT/PURCH  SERVICE"]
[null,null,null,null,null,null,null,null,null,null,null,null,null,null,null,null,null,null,null,null,null,null,null,null,null,null,null,null,null,"1 2210 6319.8 402 21CENT/PURCH  SERVICE"]
[null,null,null,null,null,null,null,null,null,null,null,null,null,null,null,null,null,null,null,null,null,null,null,null,null,null,null,null,null,"1 2210 6343.8 105 21CENT/MILEAGE/EXPENS"]
[null,null,null,null,null,null,null,null,null,null,null,null,null,null,null,null,null,null,null,null,null,null,null,null,null,null,null,null,null,"1 2210 6343.8 402 21CENT/MILEAGE/EXPENS"]
[null,null,null,null,null,null,null,null,null,null,null,null,null,null,null,null,null,null,null,null,null,null,null,null,null,null,null,null,null,"1 2210 6410.8 105 21CENT/GEN SUPPLIES"]
[null,null,null,null,null,null,null,null,null,null,null,null,null,null,null,null,null,null,null,null,null,null,null,null,null,null,null,null,null,"1 2210 6410.8 300 21CENT/GEN SUPPLIES"]
[null,null,null,null,null,null,null,null,null,null,null,null,null,null,null,null,null,null,null,null,null,null,null,null,null,null,null,null,null,"1 2210 6410.8 402 21CENT/GEN SUPPLIES"]
[null,null,null,null,null,null,null,null,null,null,null,null,null,null,null,null,null,null,null,null,null,null,null,null,null,null,null,null,null,"***  FUNCTION  2211  : CAREER  LADDER    "]
[null,null,null,null,null,null,null,null,null,null,null,null,null,null,null,null,null,null,null,null,null,null,null,null,null,null,null,null,null,"***  FUNCTION  2213  : IMPROVEMT  OF  INSTRUCTION    "]
[null,null,null,null,null,null,null,null,null,null,null,null,null,null,null,null,null,null,null,null,null,null,null,null,null,null,null,null,null,"1 2213 6319 402  50 T1 PURCH/TECH  SERVICE "]
[null,null,null,null,null,null,null,null,null,null,null,null,null,null,null,null,null,null,null,null,null,null,null,null,null,null,null,null,null,"***  FUNCTION  2214  : PROFESSIONAL  DEVELOPMENT    "]
[null,null,null,null,null,null,null,null,null,null,null,null,null,null,null,null,null,null,null,null,null,null,null,null,null,null,null,null,null,"2 2214 6312 800 PD  TUITION   REIMBURSMT"]
[null,null,null,null,null,null,null,null,null,null,null,null,null,null,null,null,null,null,null,null,null,null,null,null,null,null,null,null,null,"1 2214 6319 800 PD  PURC/TECH   SERV"]
[null,null,null,null,null,null,null,null,null,null,null,null,null,null,null,null,null,null,null,null,null,null,null,null,null,null,null,null,null,"1 2214 6343 800 PD  MILEAGE/EXPENSE "]
[null,null,null,null,null,null,null,null,null,null,null,null,null,null,null,null,null,null,null,null,null,null,null,null,null,null,null,null,null,"1 2214 6410 800 PD  GEN SUPPLIES "]
[null,null,null,null,null,null,null,null,null,null,null,null,null,null,null,null,null,null,null,null,null,null,null,null,null,null,null,null,null,"***  FUNCTION  2219  : GOALS  2000  - LOCAL   REFORM    "]
[null,null,null,null,null,null,null,null,null,null,null,null,null,null,null,null,null,null,null,null,null,null,null,null,null,null,null,null,null,"***  FUNCTION  2220  : MEDIA SERVICES    "]
[null,null,null,null,null,null,null,null,null,null,null,null,null,null,null,null,null,null,null,null,null,null,null,null,null,null,null,null,null,"1 2220 6319.7 105 T6.B PURCH/TECH  SERV"]
[null,null,null,null,null,null,null,null,null,null,null,null,null,null,null,null,null,null,null,null,null,null,null,null,null,null,null,null,null,"1 2220 6319.7 300 T6.B PURCH/TECH  SERV"]
[null,null,null,null,null,null,null,null,null,null,null,null,null,null,null,null,null,null,null,null,null,null,null,null,null,null,null,null,null,"1 2220 6319.7 402 T6.B PURCH/TECH  SERV"]
[null,null,null,null,null,null,null,null,null,null,null,null,null,null,null,null,null,null,null,null,null,null,null,null,null,null,null,null,null,"1 2220 6410 105 LB   GEN  SUPPLIES"]
[null,null,null,null,null,null,null,null,null,null,null,null,null,null,null,null,null,null,null,null,null,null,null,null,null,null,null,null,null,"1 2220 6410 300 LB   GEN  SUPPLIES"]
[null,null,null,null,null,null,null,null,null,null,null,null,null,null,null,null,null,null,null,null,null,null,null,null,null,null,null,null,null,"1 2220 6410 402 LB   GEN  SUPPLIES"]
[null,null,null,null,null,null,null,null,null,null,null,null,null,null,null,null,null,null,null,null,null,null,null,null,null,null,null,null,null,"1 2220 6441 105 LB  LIBRARY   BOOKS"]
[null,null,null,null,null,null,null,null,null,null,null,null,null,null,null,null,null,null,null,null,null,null,null,null,null,null,null,null,null,"1 2220 6441 300 LB  LIBRARY   BOOKS"]
[null,null,null,null,null,null,null,null,null,null,null,null,null,null,null,null,null,null,null,null,null,null,null,null,null,null,null,null,null,"1 2220 6441 402 LB  LIBRARY   BOOKS"]
[null,null,null,null,null,null,null,null,null,null,null,null,null,null,null,null,null,null,null,null,null,null,null,null,null,null,null,null,null,"***  FUNCTION  2223  : AUDIO VISUAL  SERVICES    "]
[null,null,null,null,null,null,null,null,null,null,null,null,null,null,null,null,null,null,null,null,null,null,null,null,null,null,null,null,null,"1 2223 6319 800 E"]
[null,null,null,null,null,null,null,null,null,null,null,null,null,null,null,null,null,null,null,null,null,null,null,null,null,null,null,null,null,"1 2223 6361 800 E"]
[null,null,null,null,null,null,null,null,null,null,null,null,null,null,null,null,null,null,null,null,null,null,null,null,null,null,null,null,null,"***  FUNCTION  2310  : BD OF EDUC SERVICES    "]
[null,null,null,null,null,null,null,null,null,null,null,null,null,null,null,null,null,null,null,null,null,null,null,null,null,null,null,null,null,"1 2310 6319 800 BE  PURC/TECH   SERV"]
[null,null,null,null,null,null,null,null,null,null,null,null,null,null,null,null,null,null,null,null,null,null,null,null,null,null,null,null,null,"1 2310 6343 800 BE  MILEAGE/EXPENSE"]
[null,null,null,null,null,null,null,null,null,null,null,null,null,null,null,null,null,null,null,null,null,null,null,null,null,null,null,null,null,"1 2310 6352 800 BE  LIABILITY   INS"]
[null,null,null,null,null,null,null,null,null,null,null,null,null,null,null,null,null,null,null,null,null,null,null,null,null,null,null,null,null,"1 2310 6353 800 BE  TREAS  BONDS"]
[null,null,null,null,null,null,null,null,null,null,null,null,null,null,null,null,null,null,null,null,null,null,null,null,null,null,null,null,null,"1 2310 6362 800 BE  ADVERTISING"]
[null,null,null,null,null,null,null,null,null,null,null,null,null,null,null,null,null,null,null,null,null,null,null,null,null,null,null,null,null,"1 2310 6371 800 BE DUES/FEES"]
[null,null,null,null,null,null,null,null,null,null,null,null,null,null,null,null,null,null,null,null,null,null,null,null,null,null,null,null,null,"1 2310 6410 800 BE   GEN  SUPPLIES"]
[null,null,null,null,null,null,null,null,null,null,null,null,null,null,null,null,null,null,null,null,null,null,null,null,null,null,null,null,null,"***  FUNCTION  2320  : EXECUTIVE  ADMINISTRATION    "]
[null,null,null,null,null,null,null,null,null,null,null,null,null,null,null,null,null,null,null,null,null,null,null,null,null,null,null,null,null,"1 2320 6319 800 EA  PURC/TECH   SERV"]
[null,null,null,null,null,null,null,null,null,null,null,null,null,null,null,null,null,null,null,null,null,null,null,null,null,null,null,null,null,"1 2320 6334 800 EA  LEASE/RENTAL"]
[null,null,null,null,null,null,null,null,null,null,null,null,null,null,null,null,null,null,null,null,null,null,null,null,null,null,null,null,null,"1 2320 6343 800 EA  MILEAGE/EXPENSE"]
[null,null,null,null,null,null,null,null,null,null,null,null,null,null,null,null,null,null,null,null,null,null,null,null,null,null,null,null,null,"1 2320 6361 800 EA  POSTAGE"]
[null,null,null,null,null,null,null,null,null,null,null,null,null,null,null,null,null,null,null,null,null,null,null,null,null,null,null,null,null,"1 2320 6371 800 EA DUES/FEES"]
[null,null,null,null,null,null,null,null,null,null,null,null,null,null,null,null,null,null,null,null,null,null,null,null,null,null,null,null,null,"1 2320 6398 800 EA  OTH EXPENSE/REFUND"]
[null,null,null,null,null,null,null,null,null,null,null,null,null,null,null,null,null,null,null,null,null,null,null,null,null,null,null,null,null,"1 2320 6410 800 EA  GEN  SUPPLIES"]
[null,null,null,null,null,null,null,null,null,null,null,null,null,null,null,null,null,null,null,null,null,null,null,null,null,null,null,null,null,"***  FUNCTION  2400  : BLD  LEVEL  ADMINISTRATION    "]
[null,null,null,null,null,null,null,null,null,null,null,null,null,null,null,null,null,null,null,null,null,null,null,null,null,null,null,null,null,"1 2400 6343 105 BL  MILEAGE/EXPENSE"]
[null,null,null,null,null,null,null,null,null,null,null,null,null,null,null,null,null,null,null,null,null,null,null,null,null,null,null,null,null,"1 2400 6343 300 BL  MILEAGE/EXPENSE"]
[null,null,null,null,null,null,null,null,null,null,null,null,null,null,null,null,null,null,null,null,null,null,null,null,null,null,null,null,null,"1 2400 6343 402 BL  MILEAGE/EXPENSE"]
[null,null,null,null,null,null,null,null,null,null,null,null,null,null,null,null,null,null,null,null,null,null,null,null,null,null,null,null,null,"1 2400 6343 402  42 EC  MILEAGE/EXPENSE"]
[null,null,null,null,null,null,null,null,null,null,null,null,null,null,null,null,null,null,null,null,null,null,null,null,null,null,null,null,null,"1 2400 6361 105 BL  POSTAGE"]
[null,null,null,null,null,null,null,null,null,null,null,null,null,null,null,null,null,null,null,null,null,null,null,null,null,null,null,null,null,"1 2400 6361 300 BL  POSTAGE"]
[null,null,null,null,null,null,null,null,null,null,null,null,null,null,null,null,null,null,null,null,null,null,null,null,null,null,null,null,null,"1 2400 6361 402 BL  POSTAGE"]
[null,null,null,null,null,null,null,null,null,null,null,null,null,null,null,null,null,null,null,null,null,null,null,null,null,null,null,null,null,"1 2400 6371 105 BL DUES/FEES"]
[null,null,null,null,null,null,null,null,null,null,null,null,null,null,null,null,null,null,null,null,null,null,null,null,null,null,null,null,null,"1 2400 6371 300 BL DUES/FEES"]
[null,null,null,null,null,null,null,null,null,null,null,null,null,null,null,null,null,null,null,null,null,null,null,null,null,null,null,null,null,"1 2400 6371 402 E"]
[null,null,null,null,null,null,null,null,null,null,null,null,null,null,null,null,null,null,null,null,null,null,null,null,null,null,null,null,null,"***  FUNCTION  2540  : OPER  OF  PLANT   - CUSTODIAL    "]
[null,null,null,null,null,null,null,null,null,null,null,null,null,null,null,null,null,null,null,null,null,null,null,null,null,null,null,null,null,"1 2540 6319 105 OM   PURC/TECH  SERV"]
[null,null,null,null,null,null,null,null,null,null,null,null,null,null,null,null,null,null,null,null,null,null,null,null,null,null,null,null,null,"1 2540 6319 402 OM   PURC/TECH  SERV"]
[null,null,null,null,null,null,null,null,null,null,null,null,null,null,null,null,null,null,null,null,null,null,null,null,null,null,null,null,null,"1 2540 6319 800 OM   PURC/TECH  SERV"]
[null,null,null,null,null,null,null,null,null,null,null,null,null,null,null,null,null,null,null,null,null,null,null,null,null,null,null,null,null,"1 2552 6319 800 PT  PURC/TECH  SERV"]
[null,null,null,null,null,null,null,null,null,null,null,null,null,null,null,null,null,null,null,null,null,null,null,null,null,null,null,null,null,"1 2552 6332 800 PT  CONTR REPAIR"]
[null,null,null,null,null,null,null,null,null,null,null,null,null,null,null,null,null,null,null,null,null,null,null,null,null,null,null,null,null,"***  FUNCTION  2554  : HANDIC  TRANS  - DISTRICT    "]
[null,null,null,null,null,null,null,null,null,null,null,null,null,null,null,null,null,null,null,null,null,null,null,null,null,null,null,null,null,"1 2554 6410 800 HD GEN SUPPLIES "]
[null,null,null,null,null,null,null,null,null,null,null,null,null,null,null,null,null,null,null,null,null,null,null,null,null,null,null,null,null,"***  FUNCTION  2558  : NONALLOWABLE  TRANS  EXPENS    "]
[null,null,null,null,null,null,null,null,null,null,null,null,null,null,null,null,null,null,null,null,null,null,null,null,null,null,null,null,null,"***  FUNCTION  2559  : ECSE  TRANSPORT    "]
[null,null,null,null,null,null,null,null,null,null,null,null,null,null,null,null,null,null,null,null,null,null,null,null,null,null,null,null,null,"1 2559 6341 402 42 EC  CONTR  TRANSP "]
[null,null,null,null,null,null,null,null,null,null,null,null,null,null,null,null,null,null,null,null,null,null,null,null,null,null,null,null,null,"***  FUNCTION  2561  : FOOD SERVICES    "]
[null,null,null,null,null,null,null,null,null,null,null,null,null,null,null,null,null,null,null,null,null,null,null,null,null,null,null,null,null,"1 2561 6410 105 FD  GEN  SUPPLIES"]
[null,null,null,null,null,null,null,null,null,null,null,null,null,null,null,null,null,null,null,null,null,null,null,null,null,null,null,null,null,"1 2561 6410 300 FD  GEN  SUPPLIES"]
[null,null,null,null,null,null,null,null,null,null,null,null,null,null,null,null,null,null,null,null,null,null,null,null,null,null,null,null,null,"1 2561 6410 402 FD  GEN  SUPPLIES"]
[null,null,null,null,null,null,null,null,null,null,null,null,null,null,null,null,null,null,null,null,null,null,null,null,null,null,null,null,null,"1 2561 6471 105 FD  FOOD  SUPPLIES"]
[null,null,null,null,null,null,null,null,null,null,null,null,null,null,null,null,null,null,null,null,null,null,null,null,null,null,null,null,null,"1 2561 6471 300 FD  FOOD  SUPPLIES"]
[null,null,null,null,null,null,null,null,null,null,null,null,null,null,null,null,null,null,null,null,null,null,null,null,null,null,null,null,null,"1 2561 6471 402 FD  FOOD  SUPPLIES"]
[null,null,null,null,null,null,null,null,null,null,null,null,null,null,null,null,null,null,null,null,null,null,null,null,null,null,null,null,null,"4 2561 6541 105 FD  GEN  EQUIPMENT"]
[null,null,null,null,null,null,null,null,null,null,null,null,null,null,null,null,null,null,null,null,null,null,null,null,null,null,null,null,null,"4 2561 6541 402 FD  GEN  EQUIPMENT"]
[null,null,null,null,null,null,null,null,null,null,null,null,null,null,null,null,null,null,null,null,null,null,null,null,null,null,null,null,null,"***  FUNCTION  2660  : DATA PROCESSING    "]
[null,null,null,null,null,null,null,null,null,null,null,null,null,null,null,null,null,null,null,null,null,null,null,null,null,null,null,null,null,"1 2660 6151 800 DP  TECH  SALARY"]
[null,null,null,null,null,null,null,null,null,null,null,null,null,null,null,null,null,null,null,null,null,null,null,null,null,null,null,null,null,"1 2660 6221 800 DP  NON  TEACHER  RET"]
[null,null,null,null,null,null,null,null,null,null,null,null,null,null,null,null,null,null,null,null,null,null,null,null,null,null,null,null,null,"1 2660 6231 800 DP  SOC  SEC"]
[null,null,null,null,null,null,null,null,null,null,null,null,null,null,null,null,null,null,null,null,null,null,null,null,null,null,null,null,null,"1 2660 6232 800 DP  MEDICARE"]
[null,null,null,null,null,null,null,null,null,null,null,null,null,null,null,null,null,null,null,null,null,null,null,null,null,null,null,null,null,"1 2660 6241 800 DP  MEDICAL  INS"]
[null,null,null,null,null,null,null,null,null,null,null,null,null,null,null,null,null,null,null,null,null,null,null,null,null,null,null,null,null,"1 2660 6319 105 DP  PURCH/TECH  SERV"]
[null,null,null,null,null,null,null,null,null,null,null,null,null,null,null,null,null,null,null,null,null,null,null,null,null,null,null,null,null,"1 2660 6319 300 DP  PURCH/TECH  SERV"]
[null,null,null,null,null,null,null,null,null,null,null,null,null,null,null,null,null,null,null,null,null,null,null,null,null,null,null,null,null,"1 2660 6319 402 DP  PURCH/TECH  SERV"]
[null,null,null,null,null,null,null,null,null,null,null,null,null,null,null,null,null,null,null,null,null,null,null,null,null,null,null,null,null,"1 2660 6319 800 DP  PURCH/TECH  SERV"]
[null,null,null,null,null,null,null,null,null,null,null,null,null,null,null,null,null,null,null,null,null,null,null,null,null,null,null,null,null,"1 2660 6332 105 DP  CONTR REPAIR"]
[null,null,null,null,null,null,null,null,null,null,null,null,null,null,null,null,null,null,null,null,null,null,null,null,null,null,null,null,null,"1 2660 6332 300 DP  CONTR REPAIR"]
[null,null,null,null,null,null,null,null,null,null,null,null,null,null,null,null,null,null,null,null,null,null,null,null,null,null,null,null,null,"1 2660 6332 402 DP  CONTR REPAIR"]
[null,null,null,null,null,null,null,null,null,null,null,null,null,null,null,null,null,null,null,null,null,null,null,null,null,null,null,null,null,"1 2660 6332 800 DP  CONTR REPAIR"]
[null,null,null,null,null,null,null,null,null,null,null,null,null,null,null,null,null,null,null,null,null,null,null,null,null,null,null,null,null,"1 2660 6343 800 DP  MILEAGE/EXPENSE"]
[null,null,null,null,null,null,null,null,null,null,null,null,null,null,null,null,null,null,null,null,null,null,null,null,null,null,null,null,null,"1 2660 6410 105 DP  GEN  SUPPLIES"]
[null,null,null,null,null,null,null,null,null,null,null,null,null,null,null,null,null,null,null,null,null,null,null,null,null,null,null,null,null,"1 2660 6410 300 DP  GEN  SUPPLIES"]
[null,null,null,null,null,null,null,null,null,null,null,null,null,null,null,null,null,null,null,null,null,null,null,null,null,null,null,null,null,"1 2660 6410 402 DP  GEN  SUPPLIES"]
[null,null,null,null,null,null,null,null,null,null,null,null,null,null,null,null,null,null,null,null,null,null,null,null,null,null,null,null,null,"1 2660 6410 800 DP  GEN  SUPPLIES"]
[null,null,null,null,null,null,null,null,null,null,null,null,null,null,null,null,null,null,null,null,null,null,null,null,null,null,null,null,null,"4 2660 6541 800 E EQUIPMENT"]
[null,null,null,null,null,null,null,null,null,null,null,null,null,null,null,null,null,null,null,null,null,null,null,null,null,null,null,null,null,"***  FUNCTION  3000  : COMMUNITY  SERVICES    "]
[null,null,null,null,null,null,null,null,null,null,null,null,null,null,null,null,null,null,null,null,null,null,null,null,null,null,null,null,null,"***  FUNCTION  3511  : PARENTS  AS  TEACHERS    "]
[null,null,null,null,null,null,null,null,null,null,null,null,null,null,null,null,null,null,null,null,null,null,null,null,null,null,null,null,null,"2 3511 6151 800 PA  PARENT  EDUC  SALARY"]
[null,null,null,null,null,null,null,null,null,null,null,null,null,null,null,null,null,null,null,null,null,null,null,null,null,null,null,null,null,"2 3511 6161 800 PA  PT  PARENT  EDUC  SAL "]
[null,null,null,null,null,null,null,null,null,null,null,null,null,null,null,null,null,null,null,null,null,null,null,null,null,null,null,null,null,"2 3511 6211 800 PA  RETIREMENT  TEA"]
[null,null,null,null,null,null,null,null,null,null,null,null,null,null,null,null,null,null,null,null,null,null,null,null,null,null,null,null,null,"2 3511 6221 800 PA  NON-TEACHER  RET"]
[null,null,null,null,null,null,null,null,null,null,null,null,null,null,null,null,null,null,null,null,null,null,null,null,null,null,null,null,null,"2 3511 6231 800 PA  SOC  SEC "]
[null,null,null,null,null,null,null,null,null,null,null,null,null,null,null,null,null,null,null,null,null,null,null,null,null,null,null,null,null,"2 3511 6232 800 PA  MEDICARE"]
[null,null,null,null,null,null,null,null,null,null,null,null,null,null,null,null,null,null,null,null,null,null,null,null,null,null,null,null,null,"2 3511 6241 800 PA  MEDICAL  INS"]
[null,null,null,null,null,null,null,null,null,null,null,null,null,null,null,null,null,null,null,null,null,null,null,null,null,null,null,null,null,"1 3511 6319 800 PA  PURC/TECH   SERV"]
[null,null,null,null,null,null,null,null,null,null,null,null,null,null,null,null,null,null,null,null,null,null,null,null,null,null,null,null,null,"1 3511 6343 800 PA  MILEAGE/EXPENSE "]
[null,null,null,null,null,null,null,null,null,null,null,null,null,null,null,null,null,null,null,null,null,null,null,null,null,null,null,null,null,"1 3511 6410 800 PA  GEN SUPPLIES "]
[null,null,null,null,null,null,null,null,null,null,null,null,null,null,null,null,null,null,null,null,null,null,null,null,null,null,null,null,null,"***  FUNCTION  3512  : TITLE  I PRE-SCHOOL    "]
[null,null,null,null,null,null,null,null,null,null,null,null,null,null,null,null,null,null,null,null,null,null,null,null,null,null,null,null,null,"2 3512 6112 402  52 PS TEACHER  SALARY"]
[null,null,null,null,null,null,null,null,null,null,null,null,null,null,null,null,null,null,null,null,null,null,null,null,null,null,null,null,null,"2 3512 6151 402  52 PS AIDE   SALARY"]
[null,null,null,null,null,null,null,null,null,null,null,null,null,null,null,null,null,null,null,null,null,null,null,null,null,null,null,null,null,"2 3512 6211 402  52 PS RETIREMENT  TEA"]
[null,null,null,null,null,null,null,null,null,null,null,null,null,null,null,null,null,null,null,null,null,null,null,null,null,null,null,null,null,"2 3512 6221 402  52 PS NON-TEACHER  RET"]
[null,null,null,null,null,null,null,null,null,null,null,null,null,null,null,null,null,null,null,null,null,null,null,null,null,null,null,null,null,"2 3512 6231 402  52 PS SOC  SEC "]
[null,null,null,null,null,null,null,null,null,null,null,null,null,null,null,null,null,null,null,null,null,null,null,null,null,null,null,null,null,"2 3512 6232 402  52 PS MEDICARE"]
[null,null,null,null,null,null,null,null,null,null,null,null,null,null,null,null,null,null,null,null,null,null,null,null,null,null,null,null,null,"2 3512 6241 402  52 PS MEDICAL  INS"]
[null,null,null,null,null,null,null,null,null,null,null,null,null,null,null,null,null,null,null,null,null,null,null,null,null,null,null,null,null,"1 3512 6410 402  52 PS GEN SUPPLIES "]
[null,null,null,null,null,null,null,null,null,null,null,null,null,null,null,null,null,null,null,null,null,null,null,null,null,null,null,null,null,"***  FUNCTION  3800  : SCHOOL-AGE  CHILD   CARE    "]
[null,null,null,null,null,null,null,null,null,null,null,null,null,null,null,null,null,null,null,null,null,null,null,null,null,null,null,null,null,"***  FUNCTION  3812  :    "]
[null,null,null,null,null,null,null,null,null,null,null,null,null,null,null,null,null,null,null,null,null,null,null,null,null,null,null,null,null,"1 3812 6161.8 402 AS   PT   COOK SALARY"]
[null,null,null,null,null,null,null,null,null,null,null,null,null,null,null,null,null,null,null,null,null,null,null,null,null,null,null,null,null,"1 3812 6221.8 402 AS   NON  TEACHER  RET"]
[null,null,null,null,null,null,null,null,null,null,null,null,null,null,null,null,null,null,null,null,null,null,null,null,null,null,null,null,null,"1 3812 6231.8 402 AS  SOC  SEC "]
[null,null,null,null,null,null,null,null,null,null,null,null,null,null,null,null,null,null,null,null,null,null,null,null,null,null,null,null,null,"1 3812 6232.8 402 AS  MEDICARE"]
[null,null,null,null,null,null,null,null,null,null,null,null,null,null,null,null,null,null,null,null,null,null,null,null,null,null,null,null,null,"1 3812 6491 105 AS  FOOD SUPPLIES "]
[null,null,null,null,null,null,null,null,null,null,null,null,null,null,null,null,null,null,null,null,null,null,null,null,null,null,null,null,null,"1 3812 6491 300 AS  FOOD SUPPLIES "]
[null,null,null,null,null,null,null,null,null,null,null,null,null,null,null,null,null,null,null,null,null,null,null,null,null,null,null,null,null,"1 3812 6491 402 AS  FOOD SUPPLIES "]
[null,null,null,null,null,null,null,null,null,null,null,null,null,null,null,null,null,null,null,null,null,null,null,null,null,null,null,null,null,"*** FUNC TION  3900  : SCHOLARSHIP  "]
[null,null,null,null,null,null,null,null,null,null,null,null,null,null,null,null,null,null,null,null,null,null,null,null,null,null,null,null,null,"1 3900 6390 800 CS  SCHOLARSHIPS  PAID "]
[null,null,null,null,null,null,null,null,null,null,null,null,null,null,null,null,null,null,null,null,null,null,null,null,null,null,null,null,null,"*** FUNC TION  3911  : SUMMER  FOOD   SERVICE  "]
[null,null,null,null,null,null,null,null,null,null,null,null,null,null,null,null,null,null,null,null,null,null,null,null,null,null,null,null,null,"1 3911 6161 105 SS COOK SALARY "]
[null,null,null,null,null,null,null,null,null,null,null,null,null,null,null,null,null,null,null,null,null,null,null,null,null,null,null,null,null,"1 3911 6161 402 SS COOK SALARY "]
[null,null,null,null,null,null,null,null,null,null,null,null,null,null,null,null,null,null,null,null,null,null,null,null,null,null,null,null,null,"1 3911 6221 105 SS NON  TEACHER  RET "]
[null,null,null,null,null,null,null,null,null,null,null,null,null,null,null,null,null,null,null,null,null,null,null,null,null,null,null,null,null,"1 3911 6221 402 SS NON  TEACHER  RET "]
[null,null,null,null,null,null,null,null,null,null,null,null,null,null,null,null,null,null,null,null,null,null,null,null,null,null,null,null,null,"1 3911 6231 105 SS SOC  SEC "]
[null,null,null,null,null,null,null,null,null,null,null,null,null,null,null,null,null,null,null,null,null,null,null,null,null,null,null,null,null,"1 3911 6231 402 SS SOC  SEC "]
[null,null,null,null,null,null,null,null,null,null,null,null,null,null,null,null,null,null,null,null,null,null,null,null,null,null,null,null,null,"1 3911 6232 105 SS MEDICARE"]
[null,null,null,null,null,null,null,null,null,null,null,null,null,null,null,null,null,null,null,null,null,null,null,null,null,null,null,null,null,"1 3911 6232 402 SS MEDICARE"]
[null,null,null,null,null,null,null,null,null,null,null,null,null,null,null,null,null,null,null,null,null,null,null,null,null,null,null,null,null,"1 3911 6410 300 SS GEN SUPPLIES "]
[null,null,null,null,null,null,null,null,null,null,null,null,null,null,null,null,null,null,null,null,null,null,null,null,null,null,null,null,null,"1 3911 6410 402 SS GEN SUPPLIES "]
[null,null,null,null,null,null,null,null,null,null,null,null,null,null,null,null,null,null,null,null,null,null,null,null,null,null,null,null,null,"1 3911 6491 105 SS FOOD SUPPLIES "]
[null,null,null,null,null,null,null,null,null,null,null,null,null,null,null,null,null,null,null,null,null,null,null,null,null,null,null,null,null,"1 3911 6491 300 SS FOOD SUPPLIES "]
[null,null,null,null,null,null,null,null,null,null,null,null,null,null,null,null,null,null,null,null,null,null,null,null,null,null,null,null,null,"1 3911 6491 402 SS FOOD SUPPLIES "]
[null,null,null,null,null,null,null,null,null,null,null,null,null,null,null,null,null,null,null,null,null,null,null,null,null,null,null,null,null,"***  FUNCTION  3912  : PARENTAL   INVOLVEMENT    "]
[null,null,null,null,null,null,null,null,null,null,null,null,null,null,null,null,null,null,null,null,null,null,null,null,null,null,null,null,null,"***  FUNCTION  4000  : FACILITY   ACQUIS/CONSTRUC    "]
[null,null,null,null,null,null,null,null,null,null,null,null,null,null,null,null,null,null,null,null,null,null,null,null,null,null,null,null,null,"4 4000 6521 300 E"]
[null,null,null,null,null,null,null,null,null,null,null,null,null,null,null,null,null,null,null,null,null,null,null,null,null,null,null,null,null,"***  FUNCTION  4050  : BUILDING    IMPROVEMENT    "]
[null,null,null,null,null,null,null,null,null,null,null,null,null,null,null,null,null,null,null,null,null,null,null,null,null,null,null,null,null,"4 4050 6521 105 BI BLDG IMPROV/MAINT"]
[null,null,null,null,null,null,null,null,null,null,null,null,null,null,null,null,null,null,null,null,null,null,null,null,null,null,null,null,null,"4 4050 6521 300 BI BLDG IMPROV/MAINT"]
[null,null,null,null,null,null,null,null,null,null,null,null,null,null,null,null,null,null,null,null,null,null,null,null,null,null,null,null,null,"4 4050 6521 402 BI BLDG IMPROV/MAINT"]
[null,null,null,null,null,null,null,null,null,null,null,null,null,null,null,null,null,null,null,null,null,null,null,null,null,null,null,null,null,"***  FUNCTION  5110  :    "]
[null,null,null,null,null,null,null,null,null,null,null,null,null,null,null,null,null,null,null,null,null,null,null,null,null,null,null,null,null,"3 5110 6611 800 DS   RET  OF  BONDS"]
[null,null,null,null,null,null,null,null,null,null,null,null,null,null,null,null,null,null,null,null,null,null,null,null,null,null,null,null,null,"*** FUNCTION 5210  "]
[null,null,null,null,null,null,null,null,null,null,null,null,null,null,null,null,null,null,null,null,null,null,null,null,null,null,null,null,null,"3 5210 6621 800 DS  INTEREST    ON  BONDS"]
[null,null,null,null,null,null,null,null,null,null,null,null,null,null,null,null,null,null,null,null,null,null,null,null,null,null,null,null,null,"*** FUNCTION 5230  "]
[null,null,null,null,null,null,null,null,null,null,null,null,null,null,null,null,null,null,null,null,null,null,null,null,null,null,null,null,null,"4 5230 6623 300 LP  LEAS/PURC  INTEREST"]
[null,null,null,null,null,null,null,null,null,null,null,null,null,null,null,null,null,null,null,null,null,null,null,null,null,null,null,null,null,"*** FUNCTION 5310  "]
[null,null,null,null,null,null,null,null,null,null,null,null,null,null,null,null,null,null,null,null,null,null,null,null,null,null,null,null,null,"3 5310 6631 800 DS   OTHER FEES"]
[null,null,null,null,null,null,null,null,null,null,null,null,null,null,null,null,null,null,null,null,null,null,null,null,null,null,null,null,null,"*** FUNCTION 5330  "]
[null,null,null,null,null,null,null,null,null,null,null,null,null,null,null,null,null,null,null,null,null,null,null,null,null,null,null,null,null,"4 5330 6631 300 LP   OTHER FEES"]
[]
[]
[]
[]
[]
[]
[]
[]
[]
[]
[]
[]
[]
[]
[]
[]
[]
[]
[]
[]
[]
[]
[]
[]
[]
[]
[]
[]
[]
[]
[]
[]
[]
[]
[]
[]
[]
[]
[]
[]
[]
[]
[]
[]
[]
[]
[]
[]
[]
[]
[]
[]
[]
[]
[null,null,null,null,null,null,null,null,null,null,null,null,null,null,null,null,null,null,null,null,null,null,null,null,null,null,null,null,null,"   "]
[null,null,null,null,null,null,null,null,null,null,null,null,null,null,null,null,null,null,null,null,null,null,null,null,null,null,null,null,null,"   "]
[null,null,null,null,null,null,null,null,null,null,null,null,null,null,null,null,null,null,null,null,null,null,null,null,null,null,null,null,null,"   "]
[null,null,null,null,null,null,null,null,null,null,null,null,null,null,null,null,null,null,null,null,null,null,null,null,null,null,null,null,null,"   "]
[null,null,null,null,null,null,null,null,null,null,null,null,null,null,null,null,null,null,null,null,null,null,null,null,null,null,null,null,null,"   "]
[null,null,null,null,null,null,null,null,null,null,null,null,null,null,null,null,null,null,null,null,null,null,null,null,null,null,null,null,null,"   "]